Workbook

Sheet 1. Information Sheet
U1: a | AA1: =IF(OR(F16="", F16="(if applicable)"), F14, F14 & " - " & F16) -> Canadian Niagara Power Inc. - Fort Erie, Port Colborne, Gananoque
M12: Version | N12: 1.1
E14: Utility Name | F14: Canadian Niagara Power Inc.
E16: Service Territory | F16: Fort Erie, Port Colborne, Gananoque
E18: Assigned EB Number | F18: EB-2014-0061
E20: Name of Contact and Title | F20: Douglas R. Bradbury, Director Regulatory Affairs
E22: Phone Number | F22: (905) 994-3634
E24: Email Address | F24: doug.bradbury@fortisontario.com
E26: We are applying for rates effective | F26: 2015-01-01
E28: Rate-Setting Method | F28: Price Cap IR
A30: Please indicate in which Rate Year the Group 1 accounts were last cleared1 | F30: 2013
A32: Please indicate the last Cost of Service Re-Basing Year | F32: 2013
B35: Notes
C37: Pale green cells represent input cells.
C39: Pale blue cells represent drop-down lists. The applicant should select the appropriate item from the drop-down list.
C41: White cells contain fixed values, automatically generated values or formulae.
A44: Note: 1. Rate year of application

Sheet 2. Related Links
A13: ● | B13: Ontario Energy Board's 2015 Electricity Distribution Rates Webpage
A15: ● | B15: An updated version of Chapter 3 of the Filing Requirements for Electricity Distribution Rate Applications for 2015 rates.

Sheet 3. Rate Class Selection
A12: Select the appropriate rate classes as they appear on your most recent Board-Approved Tariff of Rates and Charges, including the MicroFit Class.
A14: How many classes are on your most recent Board-Approved Tariff of Rates and Charges? | J14: 6
A16: Select Your Rate Classes from the Blue Cells below. Please ensure that a rate class is assigned to each shaded cell.
B18: Rate Class Classification | Q18: # of duplicates
A19: 1 | B19: RESIDENTIAL | P19: =COUNTIF($B$19:$J$40, B19) -> 1 | Q19: =COUNTIF(P19:P40, 2)/2 -> 0
A20: 2 | B20: GENERAL SERVICE LESS THAN 50 KW | P20: =COUNTIF($B$19:$J$40, B20) -> 1
A21: 3 | B21: GENERAL SERVICE 50 TO 4,999 KW | P21: 1
A22: 4 | B22: UNMETERED SCATTERED LOAD | P22: 1
A23: 5 | B23: SENTINEL LIGHTING | P23: 1
A24: 6 | B24: STREET LIGHTING | P24: 1
P25: 0
P26: 0
P27: 0
P28: 0
P29: 0
P30: 0
P31: 0
P32: 0
P33: 0

Sheet 4. Current Tariff Schedule
Z1: 3 | AA1: January | AB1: ≥
AA2: February
AA3: March
AA4: April
AA5: May
AA6: June
AA7: July
AA8: August
AA9: September
AA10: October
AA11: November
B12: For each class, Applicants are required to copy and paste the class descriptions (located directly under the class name) and the description of the applicability of those rates (description is found under the class name and directly under the word "APPLICATION"). By using the drop-down lists located under the column labeled "Rate Description", please select the descriptions of the rates and charges that BEST MATCHES the descriptions on your most recent Board-Approved Tariff of Rates and Charges. If the description is not found in the drop-down list, please enter the description in the green cells under the correct class exactly as it appears on the tariff. Please do not enter more than one "Service Charge" for each class for which a base monthly fixed charge applies. | AA12: December
B21: =IF(ISBLANK('1. Information Sheet'!F14), "Please Choose Distributor Name on Sheet 1", '1. Information Sheet'!F14) -> Canadian Niagara Power Inc.
B22: TARIFF OF RATES AND CHARGES
A24: RESIDENTIAL | B24: RESIDENTIAL Service Classification
A25: RESIDENTIAL
A26: RESIDENTIAL
A27: RESIDENTIAL
A28: RESIDENTIAL
A29: RESIDENTIAL
A30: RESIDENTIAL
A31: RESIDENTIAL
A32: RESIDENTIAL | B32: APPLICATION
A33: RESIDENTIAL
A34: RESIDENTIAL
A35: RESIDENTIAL
A36: RESIDENTIAL
A37: RESIDENTIAL
A38: RESIDENTIAL
A39: RESIDENTIAL
A40: RESIDENTIAL
A41: RESIDENTIAL
A42: RESIDENTIAL
A43: RESIDENTIAL
A44: RESIDENTIAL
A45: RESIDENTIAL
A46: RESIDENTIAL
A47: RESIDENTIAL
A48: RESIDENTIAL | B48: MONTHLY RATES AND CHARGES - Delivery Component (If applicable, Effective Date MUST be included in rate description)
A49: RESIDENTIAL | B49: Retail Transmission Rate - Network Service Rate | H49: $/kWh | I49: 0.007 | K49: 1_C_RTSR_Network
A50: RESIDENTIAL | B50: Retail Transmission Rate - Line and Transformation Connection Service Rate | H50: $/kWh | I50: 0.0054 | K50: 1_C_RTSR_Connection
A51: RESIDENTIAL
A52: RESIDENTIAL
A53: RESIDENTIAL
A54: RESIDENTIAL
A55: RESIDENTIAL
A56: RESIDENTIAL
A57: RESIDENTIAL
A58: RESIDENTIAL
A59: RESIDENTIAL
A60: RESIDENTIAL
A61: RESIDENTIAL
A62: RESIDENTIAL
A63: RESIDENTIAL
A64: RESIDENTIAL
A65: RESIDENTIAL
A66: RESIDENTIAL
A67: RESIDENTIAL
A68: RESIDENTIAL
A69: RESIDENTIAL
A70: RESIDENTIAL
A71: RESIDENTIAL
A72: RESIDENTIAL
A73: RESIDENTIAL
A74: RESIDENTIAL
A75: RESIDENTIAL
A76: RESIDENTIAL
A77: RESIDENTIAL
A78: RESIDENTIAL
A79: RESIDENTIAL | B79: MONTHLY RATES AND CHARGES - Regulatory Component
A80: RESIDENTIAL
A81: RESIDENTIAL | B81: Wholesale Market Service Rate | H81: $/kWh | I81: 0.0044 | K81: 1_C_WMSR
A82: RESIDENTIAL | B82: Rural or Remote Electricity Rate Protection Charge (RRRP) | H82: $/kWh | I82: 0.0013 | K82: 1_C_RRPC
A83: RESIDENTIAL | B83: Standard Supply Service - Administrative Charge (if applicable) | H83: $ | I83: 0.25 | K83: 1_C_SSS
A84: RESIDENTIAL
A87: GENERAL SERVICE LESS THAN 50 KW | B87: GENERAL SERVICE LESS THAN 50 KW Service Classification
A88: GENERAL SERVICE LESS THAN 50 KW
A89: GENERAL SERVICE LESS THAN 50 KW
A90: GENERAL SERVICE LESS THAN 50 KW
A91: GENERAL SERVICE LESS THAN 50 KW
A92: GENERAL SERVICE LESS THAN 50 KW
A93: GENERAL SERVICE LESS THAN 50 KW
A94: GENERAL SERVICE LESS THAN 50 KW
A95: GENERAL SERVICE LESS THAN 50 KW | B95: APPLICATION
A96: GENERAL SERVICE LESS THAN 50 KW
A97: GENERAL SERVICE LESS THAN 50 KW
A98: GENERAL SERVICE LESS THAN 50 KW
A99: GENERAL SERVICE LESS THAN 50 KW
A100: GENERAL SERVICE LESS THAN 50 KW
A101: GENERAL SERVICE LESS THAN 50 KW
A102: GENERAL SERVICE LESS THAN 50 KW
A103: GENERAL SERVICE LESS THAN 50 KW
A104: GENERAL SERVICE LESS THAN 50 KW
A105: GENERAL SERVICE LESS THAN 50 KW
A106: GENERAL SERVICE LESS THAN 50 KW
A107: GENERAL SERVICE LESS THAN 50 KW
A108: GENERAL SERVICE LESS THAN 50 KW
A109: GENERAL SERVICE LESS THAN 50 KW
A110: GENERAL SERVICE LESS THAN 50 KW
A111: GENERAL SERVICE LESS THAN 50 KW | B111: MONTHLY RATES AND CHARGES - Delivery Component (If applicable, Effective Date MUST be included in rate description)
A112: GENERAL SERVICE LESS THAN 50 KW | B112: Retail Transmission Rate - Network Service Rate | H112: $/kWh | I112: 0.006 | K112: 2_C_RTSR_Network
A113: GENERAL SERVICE LESS THAN 50 KW | B113: Retail Transmission Rate - Line and Transformation Connection Service Rate | H113: $/kWh | I113: 0.0047 | K113: 2_C_RTSR_Connection
A114: GENERAL SERVICE LESS THAN 50 KW
A115: GENERAL SERVICE LESS THAN 50 KW
A116: GENERAL SERVICE LESS THAN 50 KW
A117: GENERAL SERVICE LESS THAN 50 KW
A118: GENERAL SERVICE LESS THAN 50 KW
A119: GENERAL SERVICE LESS THAN 50 KW
A120: GENERAL SERVICE LESS THAN 50 KW
A121: GENERAL SERVICE LESS THAN 50 KW
A122: GENERAL SERVICE LESS THAN 50 KW
A123: GENERAL SERVICE LESS THAN 50 KW
A124: GENERAL SERVICE LESS THAN 50 KW
A125: GENERAL SERVICE LESS THAN 50 KW
A126: GENERAL SERVICE LESS THAN 50 KW
A127: GENERAL SERVICE LESS THAN 50 KW
A128: GENERAL SERVICE LESS THAN 50 KW
A129: GENERAL SERVICE LESS THAN 50 KW
A130: GENERAL SERVICE LESS THAN 50 KW
A131: GENERAL SERVICE LESS THAN 50 KW
A132: GENERAL SERVICE LESS THAN 50 KW
A133: GENERAL SERVICE LESS THAN 50 KW
A134: GENERAL SERVICE LESS THAN 50 KW
A135: GENERAL SERVICE LESS THAN 50 KW
A136: GENERAL SERVICE LESS THAN 50 KW
A137: GENERAL SERVICE LESS THAN 50 KW
A138: GENERAL SERVICE LESS THAN 50 KW
A139: GENERAL SERVICE LESS THAN 50 KW
A140: GENERAL SERVICE LESS THAN 50 KW
A141: GENERAL SERVICE LESS THAN 50 KW
A142: GENERAL SERVICE LESS THAN 50 KW | B142: MONTHLY RATES AND CHARGES - Regulatory Component
A143: GENERAL SERVICE LESS THAN 50 KW
A144: GENERAL SERVICE LESS THAN 50 KW | B144: Wholesale Market Service Rate | H144: =H81 -> $/kWh | I144: 0.0044 | K144: 2_C_WMSR
A145: GENERAL SERVICE LESS THAN 50 KW | B145: Rural or Remote Electricity Rate Protection Charge (RRRP) | H145: $/kWh | I145: 0.0013 | K145: 2_C_RRPC
A146: GENERAL SERVICE LESS THAN 50 KW | B146: Standard Supply Service - Administrative Charge (if applicable) | H146: $ | I146: 0.25 | K146: 2_C_SSS
A147: GENERAL SERVICE LESS THAN 50 KW
A150: GENERAL SERVICE 50 TO 4,999 KW | B150: GENERAL SERVICE 50 TO 4,999 KW Service Classification
A151: GENERAL SERVICE 50 TO 4,999 KW
A152: GENERAL SERVICE 50 TO 4,999 KW
A153: GENERAL SERVICE 50 TO 4,999 KW
A154: GENERAL SERVICE 50 TO 4,999 KW
A155: GENERAL SERVICE 50 TO 4,999 KW
A156: GENERAL SERVICE 50 TO 4,999 KW
A157: GENERAL SERVICE 50 TO 4,999 KW
A158: GENERAL SERVICE 50 TO 4,999 KW | B158: APPLICATION
A159: GENERAL SERVICE 50 TO 4,999 KW
A160: GENERAL SERVICE 50 TO 4,999 KW
A161: GENERAL SERVICE 50 TO 4,999 KW
A162: GENERAL SERVICE 50 TO 4,999 KW
A163: GENERAL SERVICE 50 TO 4,999 KW
A164: GENERAL SERVICE 50 TO 4,999 KW
A165: GENERAL SERVICE 50 TO 4,999 KW
A166: GENERAL SERVICE 50 TO 4,999 KW
A167: GENERAL SERVICE 50 TO 4,999 KW
A168: GENERAL SERVICE 50 TO 4,999 KW
A169: GENERAL SERVICE 50 TO 4,999 KW
A170: GENERAL SERVICE 50 TO 4,999 KW
A171: GENERAL SERVICE 50 TO 4,999 KW
A172: GENERAL SERVICE 50 TO 4,999 KW
A173: GENERAL SERVICE 50 TO 4,999 KW
A174: GENERAL SERVICE 50 TO 4,999 KW | B174: MONTHLY RATES AND CHARGES - Delivery Component (If applicable, Effective Date MUST be included in rate description)
A175: GENERAL SERVICE 50 TO 4,999 KW | B175: Retail Transmission Rate - Network Service Rate | H175: $/kW | I175: 2.5401 | K175: 3_C_RTSR_Network
A176: GENERAL SERVICE 50 TO 4,999 KW | B176: Retail Transmission Rate - Line and Transformation Connection Service Rate | H176: $/kW | I176: 1.9351 | K176: 3_C_RTSR_Connection
A177: GENERAL SERVICE 50 TO 4,999 KW
A178: GENERAL SERVICE 50 TO 4,999 KW
A179: GENERAL SERVICE 50 TO 4,999 KW
A180: GENERAL SERVICE 50 TO 4,999 KW
A181: GENERAL SERVICE 50 TO 4,999 KW
A182: GENERAL SERVICE 50 TO 4,999 KW
A183: GENERAL SERVICE 50 TO 4,999 KW
A184: GENERAL SERVICE 50 TO 4,999 KW
A185: GENERAL SERVICE 50 TO 4,999 KW
A186: GENERAL SERVICE 50 TO 4,999 KW
A187: GENERAL SERVICE 50 TO 4,999 KW
A188: GENERAL SERVICE 50 TO 4,999 KW
A189: GENERAL SERVICE 50 TO 4,999 KW
A190: GENERAL SERVICE 50 TO 4,999 KW
A191: GENERAL SERVICE 50 TO 4,999 KW
A192: GENERAL SERVICE 50 TO 4,999 KW
A193: GENERAL SERVICE 50 TO 4,999 KW
A194: GENERAL SERVICE 50 TO 4,999 KW
A195: GENERAL SERVICE 50 TO 4,999 KW
A196: GENERAL SERVICE 50 TO 4,999 KW
A197: GENERAL SERVICE 50 TO 4,999 KW
A198: GENERAL SERVICE 50 TO 4,999 KW
A199: GENERAL SERVICE 50 TO 4,999 KW
A200: GENERAL SERVICE 50 TO 4,999 KW
A201: GENERAL SERVICE 50 TO 4,999 KW
A202: GENERAL SERVICE 50 TO 4,999 KW
A203: GENERAL SERVICE 50 TO 4,999 KW
A204: GENERAL SERVICE 50 TO 4,999 KW
A205: GENERAL SERVICE 50 TO 4,999 KW | B205: MONTHLY RATES AND CHARGES - Regulatory Component
A206: GENERAL SERVICE 50 TO 4,999 KW
A207: GENERAL SERVICE 50 TO 4,999 KW | B207: Wholesale Market Service Rate | H207: =H81 -> $/kWh | I207: 0.0044 | K207: 3_C_WMSR
A208: GENERAL SERVICE 50 TO 4,999 KW | B208: Rural or Remote Electricity Rate Protection Charge (RRRP) | H208: $/kWh | I208: 0.0013 | K208: 3_C_RRPC
A209: GENERAL SERVICE 50 TO 4,999 KW | B209: Standard Supply Service - Administrative Charge (if applicable) | H209: $ | I209: 0.25 | K209: 3_C_SSS
A210: GENERAL SERVICE 50 TO 4,999 KW
A213: UNMETERED SCATTERED LOAD | B213: UNMETERED SCATTERED LOAD Service Classification
A214: UNMETERED SCATTERED LOAD
A215: UNMETERED SCATTERED LOAD
... 180 more rows

Sheet 4. Hidden (hidden)
M1: Current Rate Classes | N1: Changed to Rate Classes | O1: Values in A that are NOT in B | P1: Values in B that are Not in A | Q1: Count of A | R1: Count of B
M2: RESIDENTIAL | N2: RESIDENTIAL | Q2: 6 | R2: 6
M3: GENERAL SERVICE LESS THAN 50 KW | N3: GENERAL SERVICE LESS THAN 50 KW
M4: GENERAL SERVICE 50 TO 4,999 KW | N4: GENERAL SERVICE 50 TO 4,999 KW
M5: UNMETERED SCATTERED LOAD | N5: UNMETERED SCATTERED LOAD
M6: SENTINEL LIGHTING | N6: SENTINEL LIGHTING
M7: STREET LIGHTING | N7: STREET LIGHTING
A24: RESIDENTIAL | B24: RESIDENTIAL Service Classification
A25: RESIDENTIAL
A26: RESIDENTIAL
A27: RESIDENTIAL
A28: RESIDENTIAL
A29: RESIDENTIAL
A30: RESIDENTIAL
A31: RESIDENTIAL
A32: RESIDENTIAL | B32: APPLICATION
A33: RESIDENTIAL
A34: RESIDENTIAL
A35: RESIDENTIAL
A36: RESIDENTIAL
A37: RESIDENTIAL
A38: RESIDENTIAL
A39: RESIDENTIAL
A40: RESIDENTIAL
A41: RESIDENTIAL
A42: RESIDENTIAL
A43: RESIDENTIAL
A44: RESIDENTIAL
A45: RESIDENTIAL
A46: RESIDENTIAL
A47: RESIDENTIAL
A48: RESIDENTIAL | B48: MONTHLY RATES AND CHARGES - Delivery Component (If applicable, Effective Date MUST be included in rate description)
A49: RESIDENTIAL | B49: Standby Charge - for a month where standby power is not provided. The charge is applied to the contracted amount (e.g. nameplate rating of the generation facility).
A50: RESIDENTIAL
A51: RESIDENTIAL
A52: RESIDENTIAL
A53: RESIDENTIAL
A54: RESIDENTIAL
A55: RESIDENTIAL
A56: RESIDENTIAL
A57: RESIDENTIAL
A58: RESIDENTIAL
A59: RESIDENTIAL
A60: RESIDENTIAL
A61: RESIDENTIAL
A62: RESIDENTIAL
A63: RESIDENTIAL
A64: RESIDENTIAL
A65: RESIDENTIAL
A66: RESIDENTIAL
A67: RESIDENTIAL
A68: RESIDENTIAL
A69: RESIDENTIAL
A70: RESIDENTIAL
A71: RESIDENTIAL
A72: RESIDENTIAL
A73: RESIDENTIAL
A74: RESIDENTIAL
A75: RESIDENTIAL
A76: RESIDENTIAL
A77: RESIDENTIAL
A78: RESIDENTIAL
A79: RESIDENTIAL | B79: MONTHLY RATES AND CHARGES - Regulatory Component
A80: RESIDENTIAL
A81: RESIDENTIAL | B81: Wholesale Market Service Rate | H81: $/kWh | I81: 0.0044
A82: RESIDENTIAL | B82: Rural or Remote Electricity Rate Protection Charge (RRRP) | H82: $/kWh | I82: 0.0013
A83: RESIDENTIAL | B83: Standard Supply Service - Administrative Charge (if applicable) | H83: $ | I83: 0.25
A84: RESIDENTIAL
A87: STREET LIGHTING | B87: STREET LIGHTING Service Classification
A88: STREET LIGHTING
A89: STREET LIGHTING
A90: STREET LIGHTING
A91: STREET LIGHTING
A92: STREET LIGHTING
A93: STREET LIGHTING
A94: STREET LIGHTING
A95: STREET LIGHTING | B95: APPLICATION
A96: STREET LIGHTING
A97: STREET LIGHTING
A98: STREET LIGHTING
A99: STREET LIGHTING
A100: STREET LIGHTING
A101: STREET LIGHTING
A102: STREET LIGHTING
A103: STREET LIGHTING
A104: STREET LIGHTING
A105: STREET LIGHTING
A106: STREET LIGHTING
A107: STREET LIGHTING
A108: STREET LIGHTING
A109: STREET LIGHTING
A110: STREET LIGHTING
A111: STREET LIGHTING | B111: MONTHLY RATES AND CHARGES - Delivery Component (If applicable, Effective Date MUST be included in rate description)
A112: STREET LIGHTING
A113: STREET LIGHTING
A114: STREET LIGHTING
A115: STREET LIGHTING
A116: STREET LIGHTING
A117: STREET LIGHTING
A118: STREET LIGHTING
A119: STREET LIGHTING
A120: STREET LIGHTING
A121: STREET LIGHTING
A122: STREET LIGHTING
A123: STREET LIGHTING
A124: STREET LIGHTING
A125: STREET LIGHTING
A126: STREET LIGHTING
A127: STREET LIGHTING
A128: STREET LIGHTING
A129: STREET LIGHTING
A130: STREET LIGHTING
A131: STREET LIGHTING
A132: STREET LIGHTING
A133: STREET LIGHTING
A134: STREET LIGHTING
A135: STREET LIGHTING
A136: STREET LIGHTING
A137: STREET LIGHTING
A138: STREET LIGHTING
A139: STREET LIGHTING
A140: STREET LIGHTING
A141: STREET LIGHTING
A142: STREET LIGHTING | B142: MONTHLY RATES AND CHARGES - Regulatory Component
A143: STREET LIGHTING
A144: STREET LIGHTING | B144: Wholesale Market Service Rate | H144: $/kWh | I144: 0.0044
A145: STREET LIGHTING | B145: Rural or Remote Electricity Rate Protection Charge (RRRP) | H145: $/kWh | I145: 0.0013
A146: STREET LIGHTING | B146: Standard Supply Service - Administrative Charge (if applicable) | H146: $ | I146: 0.25
A147: STREET LIGHTING
A150: STANDBY POWER | B150: STANDBY POWER Service Classification
A151: STANDBY POWER
A152: STANDBY POWER
A153: STANDBY POWER
A154: STANDBY POWER
A155: STANDBY POWER
A156: STANDBY POWER
A157: STANDBY POWER
A158: STANDBY POWER | B158: APPLICATION
A159: STANDBY POWER
A160: STANDBY POWER
A161: STANDBY POWER
A162: STANDBY POWER
A163: STANDBY POWER
A164: STANDBY POWER
A165: STANDBY POWER
A166: STANDBY POWER
A167: STANDBY POWER
A168: STANDBY POWER
A169: STANDBY POWER
A170: STANDBY POWER
A171: STANDBY POWER
A172: STANDBY POWER
A173: STANDBY POWER
A174: STANDBY POWER | B174: MONTHLY RATES AND CHARGES - Delivery Component (If applicable, Effective Date MUST be included in rate description)
A175: STANDBY POWER
A176: STANDBY POWER
A177: STANDBY POWER
A178: STANDBY POWER
A179: STANDBY POWER
A180: STANDBY POWER
A181: STANDBY POWER
A182: STANDBY POWER
A183: STANDBY POWER
A184: STANDBY POWER
A185: STANDBY POWER
A186: STANDBY POWER
A187: STANDBY POWER
A188: STANDBY POWER
A189: STANDBY POWER
A190: STANDBY POWER
A191: STANDBY POWER
A192: STANDBY POWER
A193: STANDBY POWER
A194: STANDBY POWER
A195: STANDBY POWER
A196: STANDBY POWER
A197: STANDBY POWER
A198: STANDBY POWER
A199: STANDBY POWER
A200: STANDBY POWER
A201: STANDBY POWER
A202: STANDBY POWER
A203: STANDBY POWER
A204: STANDBY POWER
A205: STANDBY POWER | B205: MONTHLY RATES AND CHARGES - Regulatory Component
A206: STANDBY POWER
A207: STANDBY POWER | B207: Wholesale Market Service Rate | H207: =H81 -> $/kWh | I207: 0.0044
A208: STANDBY POWER | B208: Rural or Remote Electricity Rate Protection Charge (RRRP) | H208: $/kWh | I208: 0.0013
A209: STANDBY POWER | B209: Standard Supply Service - Administrative Charge (if applicable) | H209: $ | I209: 0.25
A210: STANDBY POWER

Sheet 5. 2014 Continuity Schedule
C15: Please complete the following continuity schedule for the following Deferral / Variance Accounts. Enter information into green cells only. If you have received approval to dispose of balances from prior years, the starting point for entries in the 2015 DVA schedule below will be the balance sheet date as per your G/L for which you received approval. For example, if in the 2014 EDR process (CoS or IRM) you received approval for the December 31, 2012 balances, the starting point for your entries below should be the 2011 year. This will allow for the correct starting point for the 2012 opening balance columns for both principal and interest. Please refer to the footnotes for further instructions.
E19: 2010 | O19: 2011 | Y19: 2012 | AL19: 2013 | AY19: 2014 | BC19: Projected Interest on Dec-31-13 Balances | BF19: 2.1.7 RRR
C20: Account Descriptions | D20: Account Number | E20: Opening Principal Amounts as of Jan-1-10 | F20: Transactions Debit / (Credit) during 2010 excluding interest and adjustments 2 | G20: Board-Approved Disposition during 2010 | H20: Adjustments during 2010 - other 1 | I20: Closing Principal Balance as of Dec-31-10 | J20: Opening Interest Amounts as of Jan-1-10 | K20: Interest Jan-1 to Dec-31-10 | L20: Board-Approved Disposition during 2010 | M20: Adjustments during 2010 - other 2 | N20: Closing Interest Amounts as of Dec-31-10 | O20: Opening Principal Amounts as of Jan-1-11 | P20: Transactions Debit / (Credit) during 2011 excluding interest and adjustments 2 | Q20: Board-Approved Disposition during 2011 | R20: Adjustments during 2011 - other 1 | S20: Closing Principal Balance as of Dec-31-11 | T20: Opening Interest Amounts as of Jan-1-11 | U20: Interest Jan-1 to Dec-31-11 | V20: Board-Approved Disposition during 2011 | W20: Adjustments during 2011 - other 2 | X20: Closing Interest Amounts as of Dec-31-11 | Y20: Opening Principal Amounts as of Jan-1-12 | Z20: Transactions Debit / (Credit) during 2012 excluding interest and adjustments 2 | AA20: Board-Approved Disposition during 2012 | AB20: Other 1 Adjustments during Q1 2012 | AC20: Other 1 Adjustments during Q2 2012 | AD20: Other 1 Adjustments during Q3 2012 | AE20: Other 1 Adjustments during Q4 2012 | AF20: Closing Principal Balance as of Dec-31-12 | AG20: Opening Interest Amounts as of Jan-1-12 | AH20: Interest Jan-1 to Dec-31-12 | AI20: Board-Approved Disposition during 2012 | AJ20: Adjustments during 2012 - other 1 | AK20: Closing Interest Amounts as of Dec-31-12 | AL20: Opening Principal Amounts as of Jan-1-13 | AM20: Transactions Debit / (Credit) during 2013 excluding interest and adjustments 2 | AN20: Board-Approved Disposition during 2013 | AO20: Other 1 Adjustments during Q1 2013 | AP20: Other 1 Adjustments during Q2 2013 | AQ20: Other 1 Adjustments during Q3 2013 | AR20: Other 1 Adjustments during Q4 2013 | AS20: Closing Principal Balance as of Dec-31-13 | AT20: Opening Interest Amounts as of Jan-1-13 | AU20: Interest Jan-1 to Dec-31-13 | AV20: Board-Approved Disposition during 2013 | AW20: Adjustments during 2013 - other 1 | AX20: Closing Interest Amounts as of Dec-31-13 | AY20: Principal Disposition during 2014 - instructed by Board | AZ20: Interest Disposition during 2014 - instructed by Board | BA20: Closing Principal Balances as of Dec 31-13 Adjusted for Dispositions during 2014 | BB20: Closing Interest Balances as of Dec 31-13 Adjusted for Dispositions during 2014 | BC20: Projected Interest from Jan 1, 2014 to December 31, 2014 on Dec 31 -13 balance adjusted for disposition during 2014 3 | BD20: Projected Interest from January 1, 2015 to April 30, 2015 on Dec 31 -13 balance adjusted for disposition during 2014 3 | BE20: Total Claim | BF20: As of Dec 31-13 | BG20: Variance RRR vs. 2013 Balance (Principal + Interest)
BE22: Claim before Forecasted Transactions
C23: Group 1 Accounts
A24: 1 | C24: LV Variance Account | D24: 1550 | I24: =E24+F24-G24+H24 -> 0 | N24: =J24+K24-L24+M24 -> 0 | O24: =I24 -> 0 | S24: =O24+P24-Q24+R24 -> 0 | T24: =N24 -> 0 | X24: =T24+U24-V24+W24 -> 0 | Y24: =S24 -> 0 | AF24: =Y24+Z24-AA24+SUM(AB24:AE24) -> 0 | AG24: =X24 -> 0 | AK24: =AG24+AH24-AI24+AJ24 -> 0 | AL24: =AF24 -> 0 | AS24: =AL24+AM24-AN24+SUM(AO24:AR24) -> 0 | AT24: =AK24 -> 0 | AX24: =AT24+AU24-AV24+AW24 -> 0 | BA24: =AS24-AY24 -> 0 | BB24: =AX24-AZ24 -> 0 | BE24: =SUM(BA24:BD24) -> 0 | BG24: =BF24-SUM(AS24,AX24) -> 0
C25: Smart Metering Entity Charge Variance | D25: 1551 | AK25: 0 | AL25: =AK25 -> 0 | AS25: =AL25+AM25-AN25+SUM(AO25:AR25) -> 0 | AT25: =AK25 -> 0 | AX25: 0 | BA25: =AS25-AY25 -> 0 | BB25: =AX25-AZ25 -> 0 | BE25: =SUM(BA25:BD25) -> 0 | BG25: =BF25-SUM(AS25,AX25) -> 0
A26: 2 | C26: RSVA - Wholesale Market Service Charge | D26: 1580 | I26: =E26+F26-G26+SUM(H26:H26) -> 0 | N26: =J26+K26-L26+M26 -> 0 | O26: =I26 -> 0 | S26: =O26+P26-Q26+SUM(R26:R26) -> 0 | T26: 0 | X26: =T26+U26-V26+W26 -> 0 | Y26: =S26 -> 0 | AF26: 0 | AG26: =X26 -> 0 | AK26: 0 | AL26: =AF26 -> 0 | AS26: 0 | AT26: =AK26 -> 0 | AX26: 0 | BA26: 0 | BB26: 0 | BE26: =SUM(BA26:BD26) -> 0 | BG26: 0
A27: 3 | C27: RSVA - Retail Transmission Network Charge | D27: 1584 | I27: 0 | N27: 0 | O27: 0 | S27: 0 | T27: 0 | X27: 0 | Y27: 0 | AF27: 0 | AG27: 0 | AK27: 0 | AL27: 0 | AS27: 0 | AT27: 0 | AX27: 0 | BA27: 0 | BB27: 0 | BE27: 0 | BG27: 0
A28: 4 | C28: RSVA - Retail Transmission Connection Charge | D28: 1586 | I28: 0 | N28: 0 | O28: 0 | S28: 0 | T28: 0 | X28: 0 | Y28: 0 | AF28: 0 | AG28: 0 | AK28: 0 | AL28: 0 | AS28: 0 | AT28: 0 | AX28: 0 | BA28: 0 | BB28: 0 | BE28: 0 | BG28: 0
A29: 5 | C29: RSVA - Power (excluding Global Adjustment) | D29: 1588 | I29: 0 | N29: 0 | O29: 0 | S29: 0 | T29: 0 | X29: 0 | Y29: 0 | AF29: 0 | AG29: 0 | AK29: 0 | AL29: 0 | AS29: 0 | AT29: 0 | AX29: 0 | BA29: 0 | BB29: 0 | BE29: 0 | BG29: 0
A30: 6 | C30: RSVA - Global Adjustment | D30: 1589 | I30: 0 | N30: 0 | O30: 0 | S30: 0 | T30: 0 | X30: 0 | Y30: 0 | AF30: 0 | AG30: 0 | AK30: 0 | AL30: 0 | AS30: 0 | AT30: 0 | AX30: 0 | BA30: 0 | BB30: 0 | BE30: 0 | BG30: 0
A31: 7 | C31: Recovery of Regulatory Asset Balances | D31: 1590 | I31: 0 | N31: 0 | O31: 0 | S31: 0 | T31: 0 | X31: 0 | Y31: 0 | AF31: 0 | AG31: 0 | AK31: 0 | AL31: 0 | AS31: 0 | AT31: 0 | AX31: 0 | BA31: 0 | BB31: 0 | BE31: 0 | BG31: 0
A32: 8 | C32: Disposition and Recovery/Refund of Regulatory Balances (2008)4 | D32: 1595 | I32: 0 | N32: 0 | O32: =I32 -> 0 | S32: 0 | T32: 0 | X32: 0 | Y32: 0 | AF32: 0 | AG32: 0 | AK32: 0 | AL32: 0 | AS32: 0 | AT32: 0 | AX32: 0 | BA32: 0 | BB32: 0 | BE32: 0 | BG32: 0
A33: 9 | C33: Disposition and Recovery/Refund of Regulatory Balances (2009)4 | D33: 1595 | I33: 0 | N33: 0 | O33: =I33 -> 0 | S33: 0 | T33: 0 | X33: 0 | Y33: 0 | AF33: 0 | AG33: 0 | AK33: 0 | AL33: 0 | AS33: 0 | AT33: 0 | AX33: 0 | BA33: 0 | BB33: 0 | BE33: 0 | BG33: 0
A34: 9 | C34: Disposition and Recovery/Refund of Regulatory Balances (2010)4 | D34: 1595 | I34: 0 | N34: 0 | O34: =I34 -> 0 | S34: 0 | T34: 0 | X34: 0 | Y34: 0 | AF34: 0 | AG34: 0 | AK34: 0 | AL34: 0 | AS34: 0 | AT34: 0 | AX34: 0 | BA34: 0 | BB34: 0 | BE34: 0 | BG34: 0
A35: 9 | C35: Disposition and Recovery/Refund of Regulatory Balances (2011)4 | D35: 1595 | I35: 0 | N35: 0 | O35: =I35 -> 0 | S35: 0 | T35: 0 | X35: 0 | Y35: 0 | AF35: 0 | AG35: 0 | AK35: 0 | AL35: 0 | AS35: 0 | AT35: 0 | AX35: 0 | BA35: 0 | BB35: 0 | BE35: =SUM(BA35:BD35) -> 0 | BG35: 0
A36: 9 | C36: Disposition and Recovery/Refund of Regulatory Balances (2012)4 | D36: 1595 | I36: 0 | N36: 0 | O36: =I36 -> 0 | S36: 0 | T36: =N36 -> 0 | X36: 0 | Y36: =S36 -> 0 | AF36: =Y36+Z36-AA36+SUM(AB36:AE36) -> 0 | AG36: =X36 -> 0 | AK36: =AG36+AH36-AI36+AJ36 -> 0 | AL36: =AF36 -> 0 | AS36: =AL36+AM36-AN36+SUM(AO36:AR36) -> 0 | AT36: =AK36 -> 0 | AX36: =AT36+AU36-AV36+AW36 -> 0 | BA36: 0 | BB36: 0 | BE36: =SUM(BA36:BD36) -> 0 | BG36: 0
C38: RSVA - Global Adjustment | D38: 1589 | E38: =E30 -> 0 | F38: =F30 -> 0 | G38: 0 | H38: 0 | I38: 0 | J38: 0 | K38: 0 | L38: 0 | M38: 0 | N38: 0 | O38: =O30 -> 0 | P38: =P30 -> 0 | Q38: 0 | R38: 0 | S38: 0 | T38: 0 | U38: 0 | V38: 0 | W38: 0 | X38: 0 | Y38: =Y30 -> 0 | Z38: =Z30 -> 0 | AA38: 0 | AB38: 0 | AC38: 0 | AD38: 0 | AE38: 0 | AF38: =AF30 -> 0 | AG38: 0 | AH38: 0 | AI38: 0 | AJ38: =AJ30 -> 0 | AK38: 0 | AL38: =AL30 -> 0 | AM38: =AM30 -> 0 | AN38: 0 | AO38: 0 | AP38: 0 | AQ38: 0 | AR38: 0 | AS38: 0 | AT38: 0 | AU38: 0 | AV38: 0 | AW38: 0 | AX38: 0 | AY38: 0 | AZ38: =AZ30 -> 0 | BA38: 0 | BB38: 0 | BC38: 0 | BD38: 0 | BE38: 0 | BF38: 0 | BG38: 0
C39: Total Group 1 Balance excluding Account 1589 - Global Adjustment | E39: =SUM(E24:E29,E31:E36) -> 0 | F39: =SUM(F24:F29,F31:F36) -> 0 | G39: 0 | H39: 0 | I39: 0 | J39: 0 | K39: 0 | L39: 0 | M39: 0 | N39: 0 | O39: =SUM(O24:O29,O31:O36) -> 0 | P39: =SUM(P24:P29,P31:P36) -> 0 | Q39: 0 | R39: 0 | S39: 0 | T39: 0 | U39: 0 | V39: 0 | W39: 0 | X39: 0 | Y39: =SUM(Y24:Y29,Y31:Y36) -> 0 | Z39: =SUM(Z24:Z29,Z31:Z36) -> 0 | AA39: 0 | AB39: 0 | AC39: 0 | AD39: 0 | AE39: 0 | AF39: =SUM(AF24:AF29,AF31:AF36) -> 0 | AG39: 0 | AH39: 0 | AI39: 0 | AJ39: =SUM(AJ24:AJ29,AJ31:AJ36) -> 0 | AK39: 0 | AL39: =SUM(AL24:AL29,AL31:AL36) -> 0 | AM39: =SUM(AM24:AM29,AM31:AM36) -> 0 | AN39: 0 | AO39: 0 | AP39: 0 | AQ39: 0 | AR39: 0 | AS39: 0 | AT39: 0 | AU39: 0 | AV39: 0 | AW39: 0 | AX39: 0 | AY39: 0 | AZ39: =SUM(AZ24:AZ29,AZ31:AZ36) -> 0 | BA39: 0 | BB39: 0 | BC39: 0 | BD39: 0 | BE39: 0 | BF39: 0 | BG39: 0
C40: Total Group 1 Balance | E40: =SUM(E24:E36) -> 0 | F40: =SUM(F24:F36) -> 0 | G40: 0 | H40: 0 | I40: 0 | J40: 0 | K40: 0 | L40: 0 | M40: 0 | N40: 0 | O40: =SUM(O24:O36) -> 0 | P40: =SUM(P24:P36) -> 0 | Q40: 0 | R40: 0 | S40: 0 | T40: 0 | U40: 0 | V40: 0 | W40: 0 | X40: 0 | Y40: =SUM(Y24:Y36) -> 0 | Z40: =SUM(Z24:Z36) -> 0 | AA40: 0 | AB40: 0 | AC40: 0 | AD40: 0 | AE40: 0 | AF40: =SUM(AF24:AF36) -> 0 | AG40: 0 | AH40: 0 | AI40: 0 | AJ40: =SUM(AJ24:AJ36) -> 0 | AK40: 0 | AL40: =SUM(AL24:AL36) -> 0 | AM40: =SUM(AM24:AM36) -> 0 | AN40: 0 | AO40: 0 | AP40: 0 | AQ40: 0 | AR40: 0 | AS40: 0 | AT40: 0 | AU40: 0 | AV40: 0 | AW40: 0 | AX40: 0 | AY40: 0 | AZ40: =SUM(AZ24:AZ36) -> 0 | BA40: 0 | BB40: 0 | BC40: 0 | BD40: 0 | BE40: 0 | BF40: 0 | BG40: 0
C42: LRAM Variance Account | D42: 1568 | I42: =E42+F42-G42+SUM(H42:H42) -> 0 | N42: =J42+K42-L42+M42 -> 0 | S42: =O42+P42-Q42+SUM(R42:R42) -> 0 | X42: =T42+U42-V42+W42 -> 0 | Y42: =S42 -> 0 | AF42: =Y42+Z42-AA42+SUM(AB42:AE42) -> 0 | AG42: =X42 -> 0 | AK42: =AG42+AH42-AI42+AJ42 -> 0 | AL42: =AF42 -> 0 | AS42: =AL42+AM42-AN42+SUM(AO42:AR42) -> 0 | AT42: =AK42 -> 0 | AX42: =AT42+AU42-AV42+AW42 -> 0 | AY42: 0 | AZ42: 0 | BA42: =AS42-AY42 -> 0 | BB42: =AX42-AZ42 -> 0 | BE42: =SUM(BA42:BD42) -> 0 | BG42: =BF42-SUM(AS42,AX42) -> 0
C44: Total including Account 1568 | E44: =E42+E40 -> 0 | F44: =F42+F40 -> 0 | G44: 0 | H44: 0 | I44: 0 | J44: 0 | K44: 0 | L44: 0 | M44: 0 | N44: 0 | O44: 0 | P44: 0 | Q44: 0 | R44: 0 | S44: 0 | T44: 0 | U44: 0 | V44: 0 | W44: 0 | X44: 0 | Y44: 0 | Z44: 0 | AA44: 0 | AB44: 0 | AC44: 0 | AD44: 0 | AE44: 0 | AF44: 0 | AG44: 0 | AH44: 0 | AI44: 0 | AJ44: 0 | AK44: 0 | AL44: 0 | AM44: 0 | AN44: 0 | AO44: 0 | AP44: 0 | AQ44: 0 | AR44: 0 | AS44: 0 | AT44: 0 | AU44: 0 | AV44: 0 | AW44: 0 | AX44: 0 | AY44: 0 | AZ44: 0 | BA44: 0 | BB44: 0 | BC44: 0 | BD44: 0 | BE44: 0 | BF44: 0 | BG44: 0
C47: For all Board-Approved dispositions, please ensure that the disposition amount has the same sign (e.g: debit balances are to have a positive figure and credit balance are to have a negative figure) as per the related Board decision.
B50: 1 | C50: Please provide explanations for the nature of the adjustments. If the adjustment relates to previously Board Approved disposed balances, please provide amounts for adjustments and include supporting documentations.
B51: 2 | C51: For RSVA accounts only, report the net variance to the account during the year. For all other accounts, record the transactions during the year.
B52: 3 | C52: If the LDC’s rate year begins on January 1, 2015, the projected interest is recorded from January 1, 2014 to December 31, 2014 on the December 31, 2013 balances adjusted for the disposed balances approved by the Board in the 2014 rate decision. If the LDC’s rate year begins on May 1, 2015, the projected interest is recorded from January 1, 2014 to April 30, 2015 on the December 31, 2013 balances adjusted for the disposed interest balances approved by the Board in the 2014 rate decision.
B53: 4 | C53: Include Account 1595 as part of Group 1 accounts (lines 31, 32, 33 and 34) for review and disposition if the recovery (or refund) period has been completed. If the recovery (or refund) period has not been completed, do not include the respective balance in Account 1595 for disposition at this time.

Sheet 6. Billing Det. for Def-Var
AS1: As per Section 3.2.3 of the 2015 Filing Requirements for Electricity Distribution Rate Applications, an applicant may elect to dispose of the Group 1 account balances below the threshold. If doing so, please select YES from the adjacent drop-down cell and also indicate so in the Manager's Summary. If not, please select NO.
A13: In the green shaded cells, enter the most recent Board Approved volumetric forecast. If there is a material difference between the latest Board-approved volumetric forecast and the most recent 12-month actual volumetric data, use the most recent 12-month actual data. Do not enter data for the MicroFit class.
E15: Billed kWh for Non-RPP Customers | F15: Estimated kW for Non-RPP Customers | H15: 1590 Recovery Share Proportion* | I15: 1595 Recovery Share Proportion (2008) 1 | J15: 1595 Recovery Share Proportion (2009) 1 | K15: 1595 Recovery Share Proportion (2010) 1 | L15: 1595 Recovery Share Proportion (2011) 1 | M15: 1595 Recovery Share Proportion (2012) 1 | N15: 1568 LRAM Variance Account Class Allocation ($ amounts) | O15: Number of Customers for Residential and GS<50 classes3
A16: Rate Class | B16: Unit | C16: Metered kWh | D16: Metered kW
A17: RESIDENTIAL | B17: $/kWh | F17: =IF(ISERROR(D17/C17*E17), 0, D17/C17*E17) -> 0
A18: GENERAL SERVICE LESS THAN 50 KW | B18: $/kWh | F18: 0
A19: GENERAL SERVICE 50 TO 4,999 KW | B19: $/kW | F19: 0
A20: UNMETERED SCATTERED LOAD | B20: $/kWh | F20: 0
A21: SENTINEL LIGHTING | B21: $/kW | F21: 0
A22: STREET LIGHTING | B22: $/kW | F22: 0
B24: Total | C24: =SUM(C17:C22) -> 0 | D24: =SUM(D17:D22) -> 0 | E24: 0 | F24: 0 | H24: 0 | I24: 0 | J24: 0 | K24: 0 | L24: 0 | M24: 0 | N24: 0 | O24: 0
M25: Balance as per Sheet 5 | N25: =ROUND('5. 2014 Continuity Schedule'!BE42, 0) -> 0
M26: Variance | N26: =N24-N25 -> 0
A28: Threshold Test
A29: Total Claim (including Account 1568) | B29: ='5. 2014 Continuity Schedule'!BE44 -> 0
A30: Total Claim for Threshold Test (All Group 1 Accounts) | B30: ='5. 2014 Continuity Schedule'!BE40 -> 0
A31: Threshold Test (Total claim per kWh) 2 | B31: =IF(ISERROR(B30/C24), 0, B30/C24) -> 0 | D31: =IF(AND(B31>-0.001,B31<0.001),"Claim does not meet the threshold test.","") -> Claim does not meet the threshold test.
A33: =IF(AND(B31>-0.001, B31<0.001), AS1, "") -> As per Section 3.2.3 of the 2015 Filing Requirements for Electricity Distribution Rate Applications, an applicant may elect to dispose of the Group 1 account balances below the threshold. If doing so, please select YES from the adjacent drop-down cell and also indicate so in the Manager's Summary. If not, please select NO.
A37: 1 Residual Account balance to be allocated to rate classes in proportion to the recovery share as established when rate riders were implemented.
A38: 2 The Threshold Test does not include the amount in 1568.
A39: 3 The proportion of customers for the Residential and GS<50 Classes will be used to allocate Account 1551.

Sheet 6. hidden (hidden)
E1: Billed kWh for Non-RPP Customers | F1: Estimated kW for Non-RPP Customers | G1: Distribution Revenue 1 | H1: 1590 Recovery Share Proportion* | I1: 1595 Recovery Share Proportion (2008) 2 | J1: 1595 Recovery Share Proportion (2009) 2 | K1: 1595 Recovery Share Proportion (2010) 2 | L1: 1595 Recovery Share Proportion (2011) 2 | M1: 1568 LRAM Variance Account Class Allocation
A2: Rate Class | B2: Unit | C2: Metered kWh | D2: Metered kW
A3: RESIDENTIAL | B3: $/kWh | C3: 0 | D3: 0 | E3: 0 | G3: 0 | H3: 0 | I3: 0 | J3: 0 | K3: 0 | L3: 0 | M3: 0 | N3: 0 | O3: 0
A4: GENERAL SERVICE LESS THAN 50 KW | B4: $/kWh | C4: 0 | D4: 0 | E4: 0 | G4: 0 | H4: 0 | I4: 0 | J4: 0 | K4: 0 | L4: 0 | M4: 0 | N4: 0 | O4: 0
A5: GENERAL SERVICE 50 TO 4,999 KW | B5: $/kW | C5: 0 | D5: 0 | E5: 0 | G5: 0 | H5: 0 | I5: 0 | J5: 0 | K5: 0 | L5: 0 | M5: 0 | N5: 0 | O5: 0
A6: UNMETERED SCATTERED LOAD | B6: $/kWh | C6: 0 | D6: 0 | E6: 0 | G6: 0 | H6: 0 | I6: 0 | J6: 0 | K6: 0 | L6: 0 | M6: 0 | N6: 0 | O6: 0
A7: SENTINEL LIGHTING | B7: $/kW | C7: 0 | D7: 0 | E7: 0 | G7: 0 | H7: 0 | I7: 0 | J7: 0 | K7: 0 | L7: 0 | M7: 0 | N7: 0 | O7: 0
A8: STREET LIGHTING | B8: $/kW | C8: 0 | D8: 0 | E8: 0 | G8: 0 | H8: 0 | I8: 0 | J8: 0 | K8: 0 | L8: 0 | M8: 0 | N8: 0 | O8: 0

Sheet 7. Allocating Def-Var Balances
A13: No input required. This workshseet allocates the deferral/variance account balances (Group 1, 1589, and 1568) to the appropriate classes as per the EDDVAR Report dated July 31, 2009
A15: Allocation of Group 1 Accounts (including Account 1568)
C16: % of Total kWh | D16: % of Total non-RPP kWh | E16: % of Customer Numbers ** | N16: 1595 (2008) | O16: 1595 (2009) | P16: 1595 (2010) | Q16: 1595 (2011) | R16: 1595 (2012) | S16: 1568
A17: Rate Class | F17: 1550 | G17: 1551 | H17: 1580 | I17: 1584 | J17: 1586 | K17: 1588 | L17: 1589 | M17: 1590
A19: RESIDENTIAL | C19: =VLOOKUP(A19, '6. Billing Det. for Def-Var'!A17:D22, 3,0)/'6. Billing Det. for Def-Var'!C24 ->  | D19: =VLOOKUP(A19, '6. Billing Det. for Def-Var'!A17:E22, 5,0)/'6. Billing Det. for Def-Var'!E24 ->  | E19: =VLOOKUP(A19, '6. Billing Det. for Def-Var'!A17:O22, 15,0)/'6. Billing Det. for Def-Var'!O24 ->  | F19: 0 | G19: 0 | H19: 0 | I19: 0 | J19: 0 | K19: 0 | L19: 0 | M19: ='6. Billing Det. for Def-Var'!H17* '5. 2014 Continuity Schedule'!BE31 -> 0 | N19: ='6. Billing Det. for Def-Var'!I17* '5. 2014 Continuity Schedule'!BE32 -> 0 | O19: ='6. Billing Det. for Def-Var'!J17* '5. 2014 Continuity Schedule'!BE33 -> 0 | P19: ='6. Billing Det. for Def-Var'!K17* '5. 2014 Continuity Schedule'!BE34 -> 0 | Q19: ='6. Billing Det. for Def-Var'!L17* '5. 2014 Continuity Schedule'!BE35 -> 0 | R19: ='6. Billing Det. for Def-Var'!M17* '5. 2014 Continuity Schedule'!BE36 -> 0 | S19: ='6. Billing Det. for Def-Var'!N17 -> 0
A20: GENERAL SERVICE LESS THAN 50 KW | C20: =VLOOKUP(A20, '6. Billing Det. for Def-Var'!A17:D22, 3,0)/'6. Billing Det. for Def-Var'!C24 ->  | D20: =VLOOKUP(A20, '6. Billing Det. for Def-Var'!A17:E22, 5,0)/'6. Billing Det. for Def-Var'!E24 ->  | E20: =VLOOKUP(A20, '6. Billing Det. for Def-Var'!A17:O22, 15,0)/'6. Billing Det. for Def-Var'!O24 ->  | F20: 0 | G20: 0 | H20: 0 | I20: 0 | J20: 0 | K20: 0 | L20: 0 | M20: ='6. Billing Det. for Def-Var'!H18* '5. 2014 Continuity Schedule'!BE31 -> 0 | N20: ='6. Billing Det. for Def-Var'!I18* '5. 2014 Continuity Schedule'!BE32 -> 0 | O20: ='6. Billing Det. for Def-Var'!J18* '5. 2014 Continuity Schedule'!BE33 -> 0 | P20: ='6. Billing Det. for Def-Var'!K18* '5. 2014 Continuity Schedule'!BE34 -> 0 | Q20: ='6. Billing Det. for Def-Var'!L18* '5. 2014 Continuity Schedule'!BE35 -> 0 | R20: ='6. Billing Det. for Def-Var'!M18* '5. 2014 Continuity Schedule'!BE36 -> 0 | S20: ='6. Billing Det. for Def-Var'!N18 -> 0
A21: GENERAL SERVICE 50 TO 4,999 KW | C21: =VLOOKUP(A21, '6. Billing Det. for Def-Var'!A17:D22, 3,0)/'6. Billing Det. for Def-Var'!C24 ->  | D21: =VLOOKUP(A21, '6. Billing Det. for Def-Var'!A17:E22, 5,0)/'6. Billing Det. for Def-Var'!E24 ->  | F21: 0 | G21: =E21* '5. 2014 Continuity Schedule'!BE25 -> 0 | H21: 0 | I21: 0 | J21: 0 | K21: 0 | L21: 0 | M21: ='6. Billing Det. for Def-Var'!H19* '5. 2014 Continuity Schedule'!BE31 -> 0 | N21: ='6. Billing Det. for Def-Var'!I19* '5. 2014 Continuity Schedule'!BE32 -> 0 | O21: ='6. Billing Det. for Def-Var'!J19* '5. 2014 Continuity Schedule'!BE33 -> 0 | P21: ='6. Billing Det. for Def-Var'!K19* '5. 2014 Continuity Schedule'!BE34 -> 0 | Q21: ='6. Billing Det. for Def-Var'!L19* '5. 2014 Continuity Schedule'!BE35 -> 0 | R21: ='6. Billing Det. for Def-Var'!M19* '5. 2014 Continuity Schedule'!BE36 -> 0 | S21: ='6. Billing Det. for Def-Var'!N19 -> 0
A22: UNMETERED SCATTERED LOAD | C22: =VLOOKUP(A22, '6. Billing Det. for Def-Var'!A17:D22, 3,0)/'6. Billing Det. for Def-Var'!C24 ->  | D22: =VLOOKUP(A22, '6. Billing Det. for Def-Var'!A17:E22, 5,0)/'6. Billing Det. for Def-Var'!E24 ->  | F22: 0 | G22: =E22* '5. 2014 Continuity Schedule'!BE25 -> 0 | H22: 0 | I22: 0 | J22: 0 | K22: 0 | L22: 0 | M22: ='6. Billing Det. for Def-Var'!H20* '5. 2014 Continuity Schedule'!BE31 -> 0 | N22: ='6. Billing Det. for Def-Var'!I20* '5. 2014 Continuity Schedule'!BE32 -> 0 | O22: ='6. Billing Det. for Def-Var'!J20* '5. 2014 Continuity Schedule'!BE33 -> 0 | P22: ='6. Billing Det. for Def-Var'!K20* '5. 2014 Continuity Schedule'!BE34 -> 0 | Q22: ='6. Billing Det. for Def-Var'!L20* '5. 2014 Continuity Schedule'!BE35 -> 0 | R22: ='6. Billing Det. for Def-Var'!M20* '5. 2014 Continuity Schedule'!BE36 -> 0 | S22: ='6. Billing Det. for Def-Var'!N20 -> 0
A23: SENTINEL LIGHTING | C23: =VLOOKUP(A23, '6. Billing Det. for Def-Var'!A17:D22, 3,0)/'6. Billing Det. for Def-Var'!C24 ->  | D23: =VLOOKUP(A23, '6. Billing Det. for Def-Var'!A17:E22, 5,0)/'6. Billing Det. for Def-Var'!E24 ->  | F23: 0 | G23: =E23* '5. 2014 Continuity Schedule'!BE25 -> 0 | H23: 0 | I23: 0 | J23: 0 | K23: 0 | L23: 0 | M23: ='6. Billing Det. for Def-Var'!H21* '5. 2014 Continuity Schedule'!BE31 -> 0 | N23: ='6. Billing Det. for Def-Var'!I21* '5. 2014 Continuity Schedule'!BE32 -> 0 | O23: ='6. Billing Det. for Def-Var'!J21* '5. 2014 Continuity Schedule'!BE33 -> 0 | P23: ='6. Billing Det. for Def-Var'!K21* '5. 2014 Continuity Schedule'!BE34 -> 0 | Q23: ='6. Billing Det. for Def-Var'!L21* '5. 2014 Continuity Schedule'!BE35 -> 0 | R23: ='6. Billing Det. for Def-Var'!M21* '5. 2014 Continuity Schedule'!BE36 -> 0 | S23: ='6. Billing Det. for Def-Var'!N21 -> 0
A24: STREET LIGHTING | C24: =VLOOKUP(A24, '6. Billing Det. for Def-Var'!A17:D22, 3,0)/'6. Billing Det. for Def-Var'!C24 ->  | D24: =VLOOKUP(A24, '6. Billing Det. for Def-Var'!A17:E22, 5,0)/'6. Billing Det. for Def-Var'!E24 ->  | F24: 0 | G24: =E24* '5. 2014 Continuity Schedule'!BE25 -> 0 | H24: 0 | I24: 0 | J24: 0 | K24: 0 | L24: 0 | M24: ='6. Billing Det. for Def-Var'!H22* '5. 2014 Continuity Schedule'!BE31 -> 0 | N24: ='6. Billing Det. for Def-Var'!I22* '5. 2014 Continuity Schedule'!BE32 -> 0 | O24: ='6. Billing Det. for Def-Var'!J22* '5. 2014 Continuity Schedule'!BE33 -> 0 | P24: ='6. Billing Det. for Def-Var'!K22* '5. 2014 Continuity Schedule'!BE34 -> 0 | Q24: ='6. Billing Det. for Def-Var'!L22* '5. 2014 Continuity Schedule'!BE35 -> 0 | R24: ='6. Billing Det. for Def-Var'!M22* '5. 2014 Continuity Schedule'!BE36 -> 0 | S24: ='6. Billing Det. for Def-Var'!N22 -> 0
A26: Total | C26: =SUM(C19:C24) ->  | D26: =SUM(D19:D24) ->  | E26: =SUM(E19:E24) ->  | F26: =SUM(F19:F24) -> 0 | G26: =SUM(G19:G24) -> 0 | H26: =SUM(H19:H24) -> 0 | I26: =SUM(I19:I24) -> 0 | J26: =SUM(J19:J24) -> 0 | K26: =SUM(K19:K24) -> 0 | L26: =SUM(L19:L24) -> 0 | M26: =SUM(M19:M24) -> 0 | N26: =SUM(N19:N24) -> 0 | O26: =SUM(O19:O24) -> 0 | P26: =SUM(P19:P24) -> 0 | Q26: =SUM(Q19:Q24) -> 0 | R26: =SUM(R19:R24) -> 0 | S26: =SUM(S19:S24) -> 0
A29: * RSVA - Power (Excluding Global Adjustment)
A30: ** Used to allocate Account 1551 as this account records the variances arising from the Smart Metering Entity Charges to Residential and GS<50 customers.

Sheet 8. Calculation of Def-Var RR
A12: Input required at cell C15 only. This workshseet calculates rate riders related to the Deferral/Variance Account Disposition (if applicable), associated rate riders for the global adjustment account (1589) and Account 1568. Rate Riders will not be generated for the microFIT class.
A15: Please indicate the Rate Rider Recovery Period (in years) | C15: 1
E17: Balance of Accounts Allocated by kWh/kW (RPP) or Distribution Revenue | F17: Deferral/Variance Account Rate Rider | G17: Allocation of Balance in Account 1589 | H17: Billed kWh or Estimated kW for Non-RPP Customers | I17: Global Adjustment Rate Rider | J17: Allocation of Account 1568 | K17: Account 1568 Rate Rider
A18: Rate Class | B18: Unit | C18: Billed kWh | D18: Billed kW or kVA
A20: RESIDENTIAL | B20: $/kWh | E20: =SUM('7. Allocating Def-Var Balances'!#REF!)+SUM('7. Allocating Def-Var Balances'!#REF!) ->  | F20: 0 | G20: 0 | I20: 0
A21: GENERAL SERVICE LESS THAN 50 KW | B21: $/kWh | E21: =SUM('7. Allocating Def-Var Balances'!#REF!)+SUM('7. Allocating Def-Var Balances'!#REF!) ->  | F21: 0 | G21: 0 | I21: 0
A22: GENERAL SERVICE 50 TO 4,999 KW | B22: $/kW | E22: =SUM('7. Allocating Def-Var Balances'!#REF!)+SUM('7. Allocating Def-Var Balances'!#REF!) ->  | F22: 0 | G22: 0 | H22: 0 | I22: 0
A23: UNMETERED SCATTERED LOAD | B23: $/kWh | E23: =SUM('7. Allocating Def-Var Balances'!#REF!)+SUM('7. Allocating Def-Var Balances'!#REF!) ->  | F23: 0 | G23: 0 | I23: 0
A24: SENTINEL LIGHTING | B24: $/kW | E24: =SUM('7. Allocating Def-Var Balances'!#REF!)+SUM('7. Allocating Def-Var Balances'!#REF!) ->  | F24: 0 | G24: 0 | H24: 0 | I24: 0
A25: STREET LIGHTING | B25: $/kW | E25: =SUM('7. Allocating Def-Var Balances'!#REF!)+SUM('7. Allocating Def-Var Balances'!#REF!) ->  | F25: 0 | G25: 0 | H25: 0 | I25: 0
A26: Total | C26: =SUM(C20:C25) -> 0 | D26: =SUM(D20:D25) -> 0 | E26: =SUM(E20:E25) ->  | G26: =SUM(G20:G25) -> 0 | H26: =SUM(H20:H25) -> 0 | J26: =SUM(J20:J25) -> 0
A30: One or more rate classes appear to have negligible rate riders in columns F and/or I. As per Appendix B of the Filing Requirements, please provide details of the Applicant's proposal in the Manager's Summary.

Sheet 9. STS - Billing Det & Rates
A11: Shared Tax Savings
A13: ="Enter your " & '1. Information Sheet'!F32 & " Board-Approved Billing Determinents into columns B, C and D." -> Enter your 2013 Board-Approved Billing Determinents into columns B, C and D.
A14: ="Enter your " & '1. Information Sheet'!F32 & " Board-Approved Base monthly service and volumetric charges into columns G, H and I." -> Enter your 2013 Board-Approved Base monthly service and volumetric charges into columns G, H and I.
A16: Rate Class | B16: Units | C16: Re-based Billed Customers or Connections | D16: Re-based Billed kWh | E16: Re-based Billed kW (if applicable) | G16: ='1. Information Sheet'!F32 &" Base Monthly Service Charge" -> 2013 Base Monthly Service Charge | H16: ='1. Information Sheet'!F32 &" Base Distribution Volumetric Rate kWh" -> 2013 Base Distribution Volumetric Rate kWh | I16: ='1. Information Sheet'!F32 &" Base Distribution Volumetric Rate kW" -> 2013 Base Distribution Volumetric Rate kW
A17: RESIDENTIAL | B17: $/kWh | C17: 0 | D17: 0 | E17: 0 | G17: 0 | H17: 0 | I17: 0
A18: GENERAL SERVICE LESS THAN 50 KW | B18: $/kWh
A19: GENERAL SERVICE 50 TO 4,999 KW | B19: $/kW
A20: UNMETERED SCATTERED LOAD | B20: $/kWh
A21: SENTINEL LIGHTING | B21: $/kW
A22: STREET LIGHTING | B22: $/kW | C22: 0 | D22: 0 | E22: 0 | G22: 0 | H22: 0 | I22: 0

Sheet 10. STS - Rebased Rev
A12: Calculation of Rebased Revenue Requirement. No input required.
A15: Rate Class | C15: Re-based Billed Customers or Connections | D15: Re-based Billed kWh | E15: Re-based Billed kW | G15: Rate ReBal Base Service Charge | H15: Rate ReBal Base Distribution Volumetric Rate kWh | I15: Rate ReBal Base Distribution Volumetric Rate kW | K15: Service Charge Revenue | L15: Distribution Volumetric Rate Revenue kWh | M15: Distribution Volumetric Rate Revenue kW | N15: Revenue Requirement from Rates | P15: Service Charge % Revenue | Q15: Distribution Volumetric Rate % Revenue kWh | R15: Distribution Volumetric Rate % Revenue kW | S15: Total % Revenue
C16: A | D16: B | E16: C | G16: D | H16: E | I16: F | K16: G = A * D *12 | L16: H = B * E | M16: I = C * F | N16: J = G + H + I | P16: K = G / J | Q16: L = H / J | R16: M = I / J | S16: N = J / R
A17: RESIDENTIAL | C17: 0 | D17: 0 | E17: 0 | G17: 0 | H17: 0 | I17: 0 | K17: =G17*C17*12 -> 0 | L17: 0 | M17: 0 | N17: =SUM(K17,L17,M17) -> 0 | P17: =IF(ISERROR(K17/N17),0,K17/N17) -> 0 | Q17: =IF(ISERROR(L17/N17),0,L17/N17) -> 0 | R17: =IF(ISERROR(M17/N17),0,M17/N17) -> 0
A18: GENERAL SERVICE LESS THAN 50 KW
A19: GENERAL SERVICE 50 TO 4,999 KW
A20: UNMETERED SCATTERED LOAD
A21: SENTINEL LIGHTING
A22: STREET LIGHTING

Sheet 9. STS - Billing Det & Rate HID (hidden)
A11: Shared Tax Savings
A12: ="Enter your " & '1. Information Sheet'!F32 & " Board-Approved Billing Determinents into columns B, C and D." -> Enter your 2013 Board-Approved Billing Determinents into columns B, C and D.
A16: Rate Class | B16: Units | C16: Re-based Billed Customers or Connections | D16: Re-based Billed kWh | E16: Re-based Billed kW (if applicable) | G16: ='1. Information Sheet'!F32 &" Base Monthly Service Charge" -> 2013 Base Monthly Service Charge | H16: ='1. Information Sheet'!F32 &" Base Distribution Volumetric Rate kWh" -> 2013 Base Distribution Volumetric Rate kWh | I16: ='1. Information Sheet'!F32 &" Base Distribution Volumetric Rate kW" -> 2013 Base Distribution Volumetric Rate kW
A17: RESIDENTIAL | B17: $/kWh | C17: 0 | D17: 0 | E17: 0 | G17: 0 | H17: 0 | I17: 0
A18: GENERAL SERVICE LESS THAN 50 KW | B18: $/kWh
A19: GENERAL SERVICE 50 TO 4,999 KW | B19: $/kW
A20: UNMETERED SCATTERED LOAD | B20: $/kWh
A21: SENTINEL LIGHTING | B21: $/kW
A22: STREET LIGHTING | B22: $/kW | C22: 0 | D22: 0 | E22: 0 | G22: 0 | H22: 0 | I22: 0

Sheet 11. STS - Tax Change
T1: Rate Base | U1: Federal Tax Rate
T2: 500000 | U2: 0.11
T3: 10000000 | U3: 0.11
T4: =T3+100000 -> 10100000 | U4: 0.11
T5: =T4+100000 -> 10200000 | U5: 0.11
T6: 10300000 | U6: 0.11
T7: 10400000 | U7: 0.11
T8: 10500000 | U8: 0.11
T9: 10600000 | U9: 0.11
T10: 10700000 | U10: 0.11
T11: 10800000 | U11: 0.11
T12: 10900000 | U12: 0.11
A13: Summary - Sharing of Tax Change Forecast Amounts | T13: 11000000 | U13: 0.11
T14: 11100000 | U14: 0.111
A15: ="For the " & '1. Information Sheet'!F32 & " year, enter any Tax Credits from the Cost of Service Tax Calculation (Positive #)" -> For the 2013 year, enter any Tax Credits from the Cost of Service Tax Calculation (Positive #) | L15: 0 | T15: 11200000 | U15: =U14+0.13% -> 0.1123 | V15: =U15-U14 -> 0.0013
T16: 11300000 | U16: =U15+0.13% -> 0.1136 | V16: =U16-U15 -> 0.0013
T17: 11400000 | U17: 0.1149 | V17: 0.0013
A18: 1. Tax Related Amounts Forecast from Capital Tax Rate Changes | L18: ='1. Information Sheet'!F32 -> 2013 | N18: 2015 | T18: 11500000 | U18: 0.1162 | V18: 0.0013
A19: Taxable Capital (if you are not claiming capital tax, please enter your Board-Approved Rate Base) | N19: =L19 -> 0 | T19: 11600000 | U19: =U18+0.12% -> 0.1174 | V19: 0.0012
T20: 11700000 | U20: =U19+0.12% -> 0.1186 | V20: 0.0012
A21: Deduction from taxable capital up to $15,000,000 | N21: =L21 -> 0 | T21: 11800000 | U21: 0.1198 | V21: 0.0012
T22: 11900000 | U22: 0.121 | V22: 0.0012
A23: Net Taxable Capital | L23: =L19-L21 -> 0 | N23: =N19-N21 -> 0 | T23: 12000000 | U23: =U22+0.112% -> 0.12212 | V23: 0.00112
T24: 12100000 | U24: =U23+0.112% -> 0.12324 | V24: 0.00112
A25: Rate | N25: 0 | T25: 12200000 | U25: 0.12436 | V25: 0.00112
T26: 12300000 | U26: 0.12548 | V26: 0.00112
A27: Ontario Capital Tax (Deductible, not grossed-up) | L27: =IF(L23>0, L23*L25, 0)*181/365 -> 0 | N27: 0 | T27: 12400000 | U27: 0.1266 | V27: 0.00112
T28: 12500000 | U28: 0.12772 | V28: 0.00112
A29: 2. Tax Related Amounts Forecast from lncome Tax Rate Changes | T29: 12600000 | U29: =U28+0.102% -> 0.12874 | V29: 0.00102
A30: Regulatory Taxable Income | N30: =L30 -> 0 | T30: 12700000 | U30: =U29+0.102% -> 0.12976 | V30: 0.00102
T31: 12800000 | U31: 0.13078 | V31: 0.00102
A32: Corporate Tax Rate | N32: =IF(N30=0,0,IF(N30<=500000,4.5%+11%,IF(N30>500000,(11.5%*N30-35000)/N30+VLOOKUP(N19,T:U,2,TRUE),""))) -> 0 | T32: 12900000 | U32: 0.1318 | V32: 0.00102
T33: 13000000 | U33: 0.13282 | V33: 0.00102
A34: Tax Impact | N34: =N30*N32-L15 -> 0 | T34: 13100000 | U34: =U33+0.096% -> 0.13378 | V34: 0.00096
T35: 13200000 | U35: =U34+0.096% -> 0.13474 | V35: 0.00096
A36: Grossed-up Tax Amount | N36: =N34/(1-N32) -> 0 | T36: 13300000 | U36: 0.1357 | V36: 0.00096
T37: 13400000 | U37: 0.13666 | V37: 0.00096
A38: Tax Related Amounts Forecast from Capital Tax Rate Changes | L38: =L27 -> 0 | N38: =N27 -> 0 | T38: 13500000 | U38: 0.13762 | V38: 0.00096
T39: 13600000 | U39: =U38+0.088% -> 0.1385 | V39: 0.00088
A40: Tax Related Amounts Forecast from lncome Tax Rate Changes | L40: =L36 -> 0 | N40: =N36 -> 0 | T40: 13700000 | U40: =U39+0.088% -> 0.13938 | V40: 0.00088
T41: 13800000 | U41: 0.14026 | V41: 0.00088
A42: Total Tax Related Amounts | L42: =SUM(L40,L38) -> 0 | N42: =SUM(N40,N38) -> 0 | T42: 13900000 | U42: 0.14114 | V42: 0.00088
T43: 14000000 | U43: 0.14202 | V43: 0.00088
A44: Incremental Tax Savings | N44: =N42-L42 -> 0 | T44: 14100000 | U44: =U43+0.082% -> 0.14284 | V44: 0.00082
T45: 14200000 | U45: =U44+0.082% -> 0.14366 | V45: 0.00082
A46: Sharing of Tax Savings (50%) | N46: =0.5*N44 -> 0 | T46: 14300000 | U46: 0.14448 | V46: 0.00082
T47: 14400000 | U47: 0.1453 | V47: 0.00082
T48: 14500000 | U48: 0.14612 | V48: 0.00082
T49: 14600000 | U49: =U48+0.076% -> 0.14688 | V49: 0.00076
T50: 14700000 | U50: =U49+0.076% -> 0.14764 | V50: 0.00076
T51: 14800000 | U51: 0.1484 | V51: 0.00076
T52: 14900000 | U52: 0.14916 | V52: 0.00076
T53: 15000000 | U53: 0.15 | V53: 0.00084

Sheet 12. STS - Tax Change Rate Rider
A11: This worksheet calculates a tax change volumetric rate rider. If the rate riders are material (round to 4 decimal places), then the outputs in columns M and O will appear on Sheet 27 - Final Tariff Schedule.
A15: Rate Class | C15: Total Revenue $ by Rate Class | E15: Total Revenue % by Rate Class | G15: Allocation of Tax Savings by Rate Class | I15: Billed kWh | K15: Billed kW | M15: Distribution Volumetric Rate kWh Rate Rider | O15: Distribution Volumetric Rate kW Rate Rider
A17: RESIDENTIAL | C17: 0 | E17: =C17/C23 ->  | G17: =E17*G23 ->  | I17: 0 | K17: 0
A18: GENERAL SERVICE LESS THAN 50 KW | E18: =C18/C23 ->  | G18: =E18*G23 -> 
A19: GENERAL SERVICE 50 TO 4,999 KW | E19: =C19/C23 ->  | G19: =E19*G23 -> 
A20: UNMETERED SCATTERED LOAD | E20: =C20/C23 ->  | G20: =E20*G23 -> 
A21: SENTINEL LIGHTING | E21: =C21/C23 ->  | G21: =E21*G23 -> 
A22: STREET LIGHTING | E22: =C22/C23 ->  | G22: =E22*G23 -> 
A23: Total | C23: =SUM(C17:C22) -> 0 | E23: =SUM(E17:E22) ->  | G23: 0 | I23: =SUM(I17:I22) -> 0 | K23: =SUM(K17:K22) -> 0

Sheet 13. RTSR Rate Sheet
A13: No input required. This sheet consolidates all Current Retail Transmission Rates entered on Sheet 4.
A15: Rate Class | B15: Rate Description | C15: Unit | D15: RTSR-Network | E15: RTSR-Connection
A17: RESIDENTIAL | B17: Retail Transmission Rate - Network Service Rate | C17: $/kWh | D17: 0.007
A18: RESIDENTIAL | B18: Retail Transmission Rate - Line and Transformation Connection Service Rate | C18: $/kWh | E18: 0.0054
A19: GENERAL SERVICE LESS THAN 50 KW | B19: Retail Transmission Rate - Network Service Rate | C19: $/kWh | D19: 0.006
A20: GENERAL SERVICE LESS THAN 50 KW | B20: Retail Transmission Rate - Line and Transformation Connection Service Rate | C20: $/kWh | E20: 0.0047
A21: GENERAL SERVICE 50 TO 4,999 KW | B21: Retail Transmission Rate - Network Service Rate | C21: $/kW | D21: 2.5401
A22: GENERAL SERVICE 50 TO 4,999 KW | B22: Retail Transmission Rate - Line and Transformation Connection Service Rate | C22: $/kW | E22: 1.9351
A23: UNMETERED SCATTERED LOAD | B23: Retail Transmission Rate - Network Service Rate | C23: $/kWh | D23: 0.0062
A24: UNMETERED SCATTERED LOAD | B24: Retail Transmission Rate - Line and Transformation Connection Service Rate | C24: $/kWh | E24: 0.0048
A25: SENTINEL LIGHTING | B25: Retail Transmission Rate - Network Service Rate | C25: $/kW | D25: 2.1647
A26: SENTINEL LIGHTING | B26: Retail Transmission Rate - Line and Transformation Connection Service Rate | C26: $/kW | E26: 1.5793
A27: STREET LIGHTING | B27: Retail Transmission Rate - Network Service Rate | C27: $/kW | D27: 1.8801
A28: STREET LIGHTING | B28: Retail Transmission Rate - Line and Transformation Connection Service Rate | C28: $/kW | E28: 1.4766

Sheet 14. RTSR RRR Data
A12: In the green shaded cells, enter the most recent reported RRR billing determinants. Please ensure that billing determinants are non-loss adjusted.
A14: Rate Class | B14: Rate Description | C14: Unit | D14: Non-Loss Adjusted Metered kWh | E14: Non-Loss Adjusted Metered kW | F14: Applicable Loss Factor | H14: Load Factor | I14: Loss Adjusted Billed kWh | J14: Billed kW
A15: RESIDENTIAL | B15: Retail Transmission Rate - Network Service Rate | C15: $/kWh | D15: 206257082.4 | E15: 0 | F15: 1.0542 | H15: =IF(C15="$/kW", D15/(E15* 30.4 * 24), "" ) ->  | I15: =IF(OR(F15=0, OR(ISBLANK(F15), TRIM(F15)="")), F15, F15 * D15) -> 217436216.3 | J15: =IF(OR(F15=0, OR(ISBLANK(F15), TRIM(F15)="")), E15, E15) -> 0
A16: RESIDENTIAL | B16: Retail Transmission Rate - Line and Transformation Connection Service Rate | C16: $/kWh | D16: 206257082.4 | E16: 0 | F16: 1.0542 | H16: =IF(C16="$/kW", D16/(E16* 30.4 * 24), "" ) ->  | I16: =IF(OR(F16=0, OR(ISBLANK(F16), TRIM(F16)="")), F16, F16 * D16) -> 217436216.3 | J16: =IF(OR(F16=0, OR(ISBLANK(F16), TRIM(F16)="")), E16, E16) -> 0
A17: GENERAL SERVICE LESS THAN 50 KW | B17: Retail Transmission Rate - Network Service Rate | C17: $/kWh | D17: 68674576.6 | E17: 0 | F17: 1.0542 | H17: =IF(C17="$/kW", D17/(E17* 30.4 * 24), "" ) ->  | I17: =IF(OR(F17=0, OR(ISBLANK(F17), TRIM(F17)="")), F17, F17 * D17) -> 72396738.65 | J17: =IF(OR(F17=0, OR(ISBLANK(F17), TRIM(F17)="")), E17, E17) -> 0
A18: GENERAL SERVICE LESS THAN 50 KW | B18: Retail Transmission Rate - Line and Transformation Connection Service Rate | C18: $/kWh | D18: 68674576.6 | E18: 0 | F18: 1.0542 | H18: =IF(C18="$/kW", D18/(E18* 30.4 * 24), "" ) ->  | I18: =IF(OR(F18=0, OR(ISBLANK(F18), TRIM(F18)="")), F18, F18 * D18) -> 72396738.65 | J18: =IF(OR(F18=0, OR(ISBLANK(F18), TRIM(F18)="")), E18, E18) -> 0
A19: GENERAL SERVICE 50 TO 4,999 KW | B19: Retail Transmission Rate - Network Service Rate | C19: $/kW | D19: 223619908.2 | E19: 701974 | F19: 0 | H19: 0 | I19: =IF(OR(F19=0, OR(ISBLANK(F19), TRIM(F19)="")), F19, F19 * D19) -> 0 | J19: =IF(OR(F19=0, OR(ISBLANK(F19), TRIM(F19)="")), E19, E19) -> 701974
A20: GENERAL SERVICE 50 TO 4,999 KW | B20: Retail Transmission Rate - Line and Transformation Connection Service Rate | C20: $/kW | D20: 223619908.2 | E20: 701974 | F20: 0 | H20: 0 | I20: =IF(OR(F20=0, OR(ISBLANK(F20), TRIM(F20)="")), F20, F20 * D20) -> 0 | J20: =IF(OR(F20=0, OR(ISBLANK(F20), TRIM(F20)="")), E20, E20) -> 701974
A21: UNMETERED SCATTERED LOAD | B21: Retail Transmission Rate - Network Service Rate | C21: $/kWh | D21: 1532801.7 | E21: 0 | F21: 1.0542 | H21: =IF(C21="$/kW", D21/(E21* 30.4 * 24), "" ) ->  | I21: =IF(OR(F21=0, OR(ISBLANK(F21), TRIM(F21)="")), F21, F21 * D21) -> 1615879.552 | J21: =IF(OR(F21=0, OR(ISBLANK(F21), TRIM(F21)="")), E21, E21) -> 0
A22: UNMETERED SCATTERED LOAD | B22: Retail Transmission Rate - Line and Transformation Connection Service Rate | C22: $/kWh | D22: 1532801.7 | E22: 0 | F22: 1.0542 | H22: =IF(C22="$/kW", D22/(E22* 30.4 * 24), "" ) ->  | I22: =IF(OR(F22=0, OR(ISBLANK(F22), TRIM(F22)="")), F22, F22 * D22) -> 1615879.552 | J22: =IF(OR(F22=0, OR(ISBLANK(F22), TRIM(F22)="")), E22, E22) -> 0
A23: SENTINEL LIGHTING | B23: Retail Transmission Rate - Network Service Rate | C23: $/kW | D23: 636304.7 | E23: 3213 | F23: 0 | H23: 0 | I23: =IF(OR(F23=0, OR(ISBLANK(F23), TRIM(F23)="")), F23, F23 * D23) -> 0 | J23: =IF(OR(F23=0, OR(ISBLANK(F23), TRIM(F23)="")), E23, E23) -> 3213
A24: SENTINEL LIGHTING | B24: Retail Transmission Rate - Line and Transformation Connection Service Rate | C24: $/kW | D24: 636304.7 | E24: 3213 | F24: 0 | H24: 0 | I24: =IF(OR(F24=0, OR(ISBLANK(F24), TRIM(F24)="")), F24, F24 * D24) -> 0 | J24: =IF(OR(F24=0, OR(ISBLANK(F24), TRIM(F24)="")), E24, E24) -> 3213
A25: STREET LIGHTING | B25: Retail Transmission Rate - Network Service Rate | C25: $/kW | D25: 4446652.8 | E25: 13844 | F25: 0 | H25: 0 | I25: =IF(OR(F25=0, OR(ISBLANK(F25), TRIM(F25)="")), F25, F25 * D25) -> 0 | J25: =IF(OR(F25=0, OR(ISBLANK(F25), TRIM(F25)="")), E25, E25) -> 13844
A26: STREET LIGHTING | B26: Retail Transmission Rate - Line and Transformation Connection Service Rate | C26: $/kW | D26: 4446652.8 | E26: 13844 | F26: 0 | H26: 0 | I26: =IF(OR(F26=0, OR(ISBLANK(F26), TRIM(F26)="")), F26, F26 * D26) -> 0 | J26: =IF(OR(F26=0, OR(ISBLANK(F26), TRIM(F26)="")), E26, E26) -> 13844

Sheet 14. RTSR RRR Data Copy (hidden)
A12: In the green shaded cells, enter the most recent reported RRR billing determinants. Please ensure that billing determinants are non-loss adjusted.
A14: Rate Class | B14: Rate Description | C14: Unit | D14: Non-Loss Adjusted Metered kWh | E14: Non-Loss Adjusted Metered kW | F14: Applicable Loss Factor | H14: Load Factor | I14: Loss Adjusted Billed kWh | J14: Billed kW
A15: RESIDENTIAL | B15: Retail Transmission Rate - Network Service Rate | C15: $/kWh | D15: 206257082.4 | E15: 0 | F15: 1.0542
A16: RESIDENTIAL | B16: Retail Transmission Rate - Line and Transformation Connection Service Rate | C16: $/kWh | D16: 206257082.4 | E16: 0 | F16: 1.0542
A17: GENERAL SERVICE LESS THAN 50 KW | B17: Retail Transmission Rate - Network Service Rate | C17: $/kWh | D17: 68674576.6 | E17: 0 | F17: 1.0542
A18: GENERAL SERVICE LESS THAN 50 KW | B18: Retail Transmission Rate - Line and Transformation Connection Service Rate | C18: $/kWh | D18: 68674576.6 | E18: 0 | F18: 1.0542
A19: GENERAL SERVICE 50 TO 4,999 KW | B19: Retail Transmission Rate - Network Service Rate | C19: $/kW | D19: 223619908.2 | E19: 701974 | F19: 0
A20: GENERAL SERVICE 50 TO 4,999 KW | B20: Retail Transmission Rate - Line and Transformation Connection Service Rate | C20: $/kW | D20: 223619908.2 | E20: 701974 | F20: 0
A21: UNMETERED SCATTERED LOAD | B21: Retail Transmission Rate - Network Service Rate | C21: $/kWh | D21: 1532801.7 | E21: 0 | F21: 1.0542
A22: UNMETERED SCATTERED LOAD | B22: Retail Transmission Rate - Line and Transformation Connection Service Rate | C22: $/kWh | D22: 1532801.7 | E22: 0 | F22: 1.0542
A23: SENTINEL LIGHTING | B23: Retail Transmission Rate - Network Service Rate | C23: $/kW | D23: 636304.7 | E23: 3213 | F23: 0
A24: SENTINEL LIGHTING | B24: Retail Transmission Rate - Line and Transformation Connection Service Rate | C24: $/kW | D24: 636304.7 | E24: 3213 | F24: 0
A25: STREET LIGHTING | B25: Retail Transmission Rate - Network Service Rate | C25: $/kW | D25: 4446652.8 | E25: 13844 | F25: 0
A26: STREET LIGHTING | B26: Retail Transmission Rate - Line and Transformation Connection Service Rate | C26: $/kW | D26: 4446652.8 | E26: 13844 | F26: 0

Sheet 15. RTSR - UTRs & Sub-Tx
B18: Uniform Transmission Rates | C18: Unit | E18: Effective January 1, 2013 | G18: Effective January 1, 2014 | I18: Effective January 1, 2015
B20: Rate Description | E20: Rate | G20: Rate | I20: Rate
B22: Network Service Rate | C22: kW | E22: 3.63 | G22: 3.82 | I22: 3.82
B24: Line Connection Service Rate | C24: kW | E24: 0.75 | G24: 0.82 | I24: 0.82
B26: Transformation Connection Service Rate | C26: kW | E26: 1.85 | G26: 1.98 | I26: 1.98
B29: Hydro One Sub-Transmission Rates | C29: Unit | E29: Effective January 1, 2013 | G29: Effective January 1, 2014 | I29: Effective January 1, 2015
B33: Rate Description | E33: Rate | G33: Rate | I33: Rate
B35: Network Service Rate | C35: kW | E35: 3.18 | G35: 3.23 | I35: =+G35 -> 3.23
B37: Line Connection Service Rate | C37: kW | E37: 0.7 | G37: 0.65 | I37: =+G37 -> 0.65
B39: Transformation Connection Service Rate | C39: kW | E39: 1.63 | G39: 1.62 | I39: =+G39 -> 1.62
B41: Both Line and Transformation Connection Service Rate | C41: kW | E41: =E39+E37 -> 2.33 | G41: =G39+G37 -> 2.27 | I41: =I39+I37 -> 2.27
B44: If needed , add extra host here (I) | C44: Unit | E44: Effective January 1, 2013 | G44: Effective January 1, 2014 | I44: Effective January 1, 2015
B48: Rate Description | E48: Rate | G48: Rate | I48: Rate
B50: Network Service Rate | C50: kW
B52: Line Connection Service Rate | C52: kW
B54: Transformation Connection Service Rate | C54: kW
B56: Both Line and Transformation Connection Service Rate | C56: kW | E56: =E54+E52 -> 0 | G56: =G54+G52 -> 0 | I56: =I54+I52 -> 0
B59: If needed , add extra host here (II) | C59: Unit | E59: Effective January 1, 2013 | G59: Effective January 1, 2014 | I59: Effective January 1, 2015
B63: Rate Description | E63: Rate | G63: Rate | I63: Rate
B65: Network Service Rate | C65: kW
B67: Line Connection Service Rate | C67: kW
B69: Transformation Connection Service Rate | C69: kW
B71: Both Line and Transformation Connection Service Rate | C71: kW | E71: =E69+E67 -> 0 | G71: =G69+G67 -> 0 | I71: =I69+I67 -> 0
B75: Hydro One Sub-Transmission Rate Rider 9A | C75: Unit | E75: Effective January 1, 2013 | G75: Effective January 1, 2014 | I75: Effective January 1, 2015
B77: Rate Description | E77: Rate | G77: Rate | I77: Rate
B79: RSVA Transmission network – 4714 – which affects 1584 | C79: kW | E79: 0 | G79: 0.1465
B81: RSVA Transmission connection – 4716 – which affects 1586 | C81: kW | E81: 0 | G81: 0.0667
B83: RSVA LV – 4750 – which affects 1550 | C83: kW | E83: 0 | G83: 0.0475
B85: RARA 1 – 2252 – which affects 1590 | C85: kW | E85: 0 | G85: 0.0419
B87: RARA 1 – 2252 – which affects 1590 (2008) | C87: kW | E87: 0 | G87: -0.027
B89: RARA 1 – 2252 – which affects 1590 (2009) | C89: kW | E89: 0 | G89: -0.0006
B91: Hydro One Sub-Transmission Rate Rider 9A | C91: kW | E91: =SUM(E79:E89) -> 0 | G91: =SUM(G79:G89) -> 0.275 | I91: =SUM(I79:I89) -> 0
E94: Historical 2013 | G94: Current 2014 | I94: Forecast 2015
B95: Low Voltage Switchgear Credit (if applicable, enter as a negative value) | C95: $

Sheet 16. RTSR - Historical Wholesale
B13: In the green shaded cells, enter billing detail for wholesale transmission for the same reporting period as the billing determinants on Sheet "14. RTSR RRR Data". For Hydro One Sub-transmission Rates, if you are charged a combined Line and Transformer connection rate, please ensure that both the line connection and transformer connection columns are completed.
B16: IESO | D16: Network | H16: Line Connection | L16: Transformation Connection | P16: Total Line
B17: Month | D17: Units Billed | E17: Rate | F17: Amount | H17: Units Billed | I17: Rate | J17: Amount | L17: Units Billed | M17: Rate | N17: Amount | P17: Amount
B19: January | D19: 75187 | E19: =IF(D19<>0,F19/D19,0) -> 3.63 | F19: 272928.81 | H19: 79693 | I19: =IF(H19<>0,J19/H19,0) -> 0.75 | J19: 59769.75 | L19: 79693 | M19: =IF(L19<>0,N19/L19,0) -> 1.85 | N19: 147432.05 | P19: =J19+N19 -> 207201.8
B20: February | D20: 72435 | E20: 3.63 | F20: 262939.05 | H20: 75851 | I20: 0.75 | J20: 56888.25 | L20: 75851 | M20: 1.85 | N20: 140324.35 | P20: 197212.6
B21: March | D21: 66758 | E21: 3.63 | F21: 242331.54 | H21: 70877 | I21: 0.75 | J21: 53157.75 | L21: 70877 | M21: 1.85 | N21: 131122.45 | P21: 184280.2
B22: April | D22: 77984 | E22: 3.63 | F22: 283081.92 | H22: 89153 | I22: 0.75 | J22: 66864.75 | L22: 89153 | M22: 1.85 | N22: 164933.05 | P22: 231797.8
B23: May | D23: 88165 | E23: 3.63 | F23: 320038.95 | H23: 94399 | I23: 0.75 | J23: 70799.25 | L23: 94399 | M23: 1.85 | N23: 174638.15 | P23: 245437.4
B24: June | D24: 72925 | E24: 3.63 | F24: 264717.75 | H24: 74397 | I24: 0.75 | J24: 55797.75 | L24: 74397 | M24: 1.85 | N24: 137634.45 | P24: 193432.2
B25: July | D25: 94577 | E25: 3.63 | F25: 343314.51 | H25: 96575 | I25: 0.75 | J25: 72431.25 | L25: 96575 | M25: 1.85 | N25: 178663.75 | P25: 251095
B26: August | D26: 83887 | E26: 3.63 | F26: 304509.81 | H26: 86682 | I26: 0.75 | J26: 65011.5 | L26: 86682 | M26: 1.85 | N26: 160361.7 | P26: 225373.2
B27: September | D27: 81578 | E27: 3.63 | F27: 296128.14 | H27: 83826 | I27: 0.75 | J27: 62869.5 | L27: 83826 | M27: 1.85 | N27: 155078.1 | P27: 217947.6
B28: October | D28: 75605 | E28: 3.63 | F28: 274446.15 | H28: 86772 | I28: 0.75 | J28: 65079 | L28: 86772 | M28: 1.85 | N28: 160528.2 | P28: 225607.2
B29: November | D29: 64921 | E29: 3.63 | F29: 235663.23 | H29: 69706 | I29: 0.75 | J29: 52279.5 | L29: 69706 | M29: 1.85 | N29: 128956.1 | P29: 181235.6
B30: December | D30: 68277 | E30: 3.63 | F30: 247845.51 | H30: 74282 | I30: 0.75 | J30: 55711.5 | L30: 74282 | M30: 1.85 | N30: 137421.7 | P30: 193133.2
B32: Total | D32: =SUM(D19:D30) -> 922299 | E32: =IF(D32<>0,F32/D32,0) -> 3.63 | F32: =SUM(F19:F30) -> 3347945.37 | H32: =SUM(H19:H30) -> 982213 | I32: =IF(H32<>0,J32/H32,0) -> 0.75 | J32: =SUM(J19:J30) -> 736659.75 | L32: =SUM(L19:L30) -> 982213 | M32: =IF(L32<>0,N32/L32,0) -> 1.85 | N32: =SUM(N19:N30) -> 1817094.05 | P32: =SUM(P19:P30) -> 2553753.8
B34: Hydro One | D34: Network | H34: Line Connection | L34: Transformation Connection | P34: Total Line
B36: Month | D36: Units Billed | E36: Rate | F36: Amount | H36: Units Billed | I36: Rate | J36: Amount | L36: Units Billed | M36: Rate | N36: Amount | P36: Amount
B38: January | D38: 11837 | E38: =IF(D38<>0,F38/D38,0) -> 3.18 | F38: 37641.66 | H38: 11837 | I38: =IF(H38<>0,J38/H38,0) -> 0.7 | J38: 8285.9 | L38: 11837 | M38: =IF(L38<>0,N38/L38,0) -> 1.63 | N38: 19294.31 | P38: =J38+N38 -> 27580.21
B39: February | D39: 7378 | E39: 3.18 | F39: 23462.04 | H39: 7507 | I39: 0.7 | J39: 5254.9 | L39: 7507 | M39: 1.63 | N39: 12236.41 | P39: 17491.31
B40: March | D40: 9096 | E40: 3.18 | F40: 28925.28 | H40: 9121 | I40: 0.7 | J40: 6384.7 | L40: 9121 | M40: 1.63 | N40: 14867.23 | P40: 21251.93
B41: April | D41: 10599.75 | E41: 3.180000472 | F41: 33707.21 | H41: 14083.16 | I41: 0.7000019882 | J41: 9858.24 | L41: 14083.16 | M41: 1.630000653 | N41: 22955.56 | P41: 32813.8
B42: May | D42: 11096.27 | E42: 3.18000283 | F42: 35286.17 | H42: 11744.08 | I42: 0.6999994891 | J42: 8220.85 | L42: 11744.08 | M42: 1.629999114 | N42: 19142.84 | P42: 27363.69
B43: June | D43: 12059.88 | E43: 3.180000962 | F43: 38350.43 | H43: 12159.14 | I43: 0.7000001645 | J43: 8511.4 | L43: 12159.14 | M43: 1.63000097 | N43: 19819.41 | P43: 28330.81
B44: July | D44: 11695.08 | E44: 3.179999624 | F44: 37190.35 | H44: 11695.08 | I44: 0.699999487 | J44: 8186.55 | L44: 11695.08 | M44: 1.629999966 | N44: 19062.98 | P44: 27249.53
B45: August | D45: 11442.96 | E45: 3.180001503 | F45: 36388.63 | H45: 11442.96 | I45: 0.6999998252 | J45: 8010.07 | L45: 11442.96 | M45: 1.630000454 | N45: 18652.03 | P45: 26662.1
B46: September | D46: 9693.58 | E46: 3.179998514 | F46: 30825.57 | H46: 9712.3 | I46: 0.7 | J46: 6798.61 | L46: 9712.3 | M46: 1.630000103 | N46: 15831.05 | P46: 22629.66
B47: October | D47: 10529.17 | E47: 3.180000893 | F47: 33482.77 | H47: 10640.85 | I47: 0.6999995301 | J47: 7448.59 | L47: 10640.85 | M47: 1.629998543 | N47: 17344.57 | P47: 24793.16
B48: November | D48: 10301.79 | E48: 3.180000757 | F48: 32759.7 | H48: 10320.63 | I48: 0.6999999031 | J48: 7224.44 | L48: 10320.63 | M48: 1.6300003 | N48: 16822.63 | P48: 24047.07
B49: December | D49: 12152.94 | E49: 3.188866233 | F49: 38754.1 | H49: 12161.37 | I49: 0.6911301934 | J49: 8405.09 | L49: 12161.37 | M49: 1.628226096 | N49: 19801.46 | P49: 28206.55
B51: Total | D51: =SUM(D38:D49) -> 127882.42 | E51: =IF(D51<>0,F51/D51,0) -> 3.180843074 | F51: =SUM(F38:F49) -> 406773.91 | H51: =SUM(H38:H49) -> 132424.57 | I51: =IF(H51<>0,J51/H51,0) -> 0.6991855061 | J51: =SUM(J38:J49) -> 92589.34 | L51: =SUM(L38:L49) -> 132424.57 | M51: =IF(L51<>0,N51/L51,0) -> 1.629837122 | N51: =SUM(N38:N49) -> 215830.48 | P51: =SUM(P38:P49) -> 308419.82
B53: Add Extra Host Here (I) | D53: Network | H53: Line Connection | L53: Transformation Connection | P53: Total Line
B54: (if needed)
B55: Month | D55: Units Billed | E55: Rate | F55: Amount | H55: Units Billed | I55: Rate | J55: Amount | L55: Units Billed | M55: Rate | N55: Amount | P55: Amount
B57: January | E57: =IF(D57<>0,F57/D57,0) -> 0 | I57: =IF(H57<>0,J57/H57,0) -> 0 | M57: =IF(L57<>0,N57/L57,0) -> 0 | P57: =J57+N57 -> 0
B58: February | E58: 0 | I58: 0 | M58: 0 | P58: 0
B59: March | E59: 0 | I59: 0 | M59: 0 | P59: 0
B60: April | E60: 0 | I60: 0 | M60: 0 | P60: 0
B61: May | E61: 0 | I61: 0 | M61: 0 | P61: 0
B62: June | E62: 0 | I62: 0 | M62: 0 | P62: 0
B63: July | E63: 0 | I63: 0 | M63: 0 | P63: 0
B64: August | E64: 0 | I64: 0 | M64: 0 | P64: 0
B65: September | E65: 0 | I65: 0 | M65: 0 | P65: 0
B66: October | E66: 0 | I66: 0 | M66: 0 | P66: 0
B67: November | E67: 0 | I67: 0 | M67: 0 | P67: 0
B68: December | E68: 0 | I68: 0 | M68: 0 | P68: 0
B70: Total | D70: =SUM(D57:D68) -> 0 | E70: =IF(D70<>0,F70/D70,0) -> 0 | F70: =SUM(F57:F68) -> 0 | H70: =SUM(H57:H68) -> 0 | I70: =IF(H70<>0,J70/H70,0) -> 0 | J70: =SUM(J57:J68) -> 0 | L70: =SUM(L57:L68) -> 0 | M70: =IF(L70<>0,N70/L70,0) -> 0 | N70: =SUM(N57:N68) -> 0 | P70: =SUM(P57:P68) -> 0
B72: Add Extra Host Here (II) | D72: Network | H72: Line Connection | L72: Transformation Connection | P72: Total Line
B73: (if needed)
B74: Month | D74: Units Billed | E74: Rate | F74: Amount | H74: Units Billed | I74: Rate | J74: Amount | L74: Units Billed | M74: Rate | N74: Amount | P74: Amount
B76: January | E76: =IF(D76<>0,F76/D76,0) -> 0 | I76: =IF(H76<>0,J76/H76,0) -> 0 | M76: =IF(L76<>0,N76/L76,0) -> 0 | P76: =J76+N76 -> 0
B77: February | E77: 0 | I77: 0 | M77: 0 | P77: 0
B78: March | E78: 0 | I78: 0 | M78: 0 | P78: 0
B79: April | E79: 0 | I79: 0 | M79: 0 | P79: 0
B80: May | E80: 0 | I80: 0 | M80: 0 | P80: 0
B81: June | E81: 0 | I81: 0 | M81: 0 | P81: 0
B82: July | E82: 0 | I82: 0 | M82: 0 | P82: 0
B83: August | E83: 0 | I83: 0 | M83: 0 | P83: 0
B84: September | E84: 0 | I84: 0 | M84: 0 | P84: 0
B85: October | E85: 0 | I85: 0 | M85: 0 | P85: 0
B86: November | E86: 0 | I86: 0 | M86: 0 | P86: 0
B87: December | E87: 0 | I87: 0 | M87: 0 | P87: 0
B89: Total | D89: =SUM(D76:D87) -> 0 | E89: =IF(D89<>0,F89/D89,0) -> 0 | F89: =SUM(F76:F87) -> 0 | H89: =SUM(H76:H87) -> 0 | I89: =IF(H89<>0,J89/H89,0) -> 0 | J89: =SUM(J76:J87) -> 0 | L89: =SUM(L76:L87) -> 0 | M89: =IF(L89<>0,N89/L89,0) -> 0 | N89: =SUM(N76:N87) -> 0 | P89: =SUM(P76:P87) -> 0
B91: Total | D91: Network | H91: Line Connection | L91: Transformation Connection | P91: Total Line
B93: Month | D93: Units Billed | E93: Rate | F93: Amount | H93: Units Billed | I93: Rate | J93: Amount | L93: Units Billed | M93: Rate | N93: Amount | P93: Amount
B95: January | D95: =D19+D38+D57+D76 -> 87024 | E95: =IF(D95<>0,F95/D95,0) -> 3.568791023 | F95: =F19+F38+F57+F76 -> 310570.47 | H95: =H19+H38+H57+H76 -> 91530 | I95: =IF(H95<>0,J95/H95,0) -> 0.7435338141 | J95: =J19+J38+J57+J76 -> 68055.65 | L95: =L19+L38+L57+L76 -> 91530 | M95: =IF(L95<>0,N95/L95,0) -> 1.821548782 | N95: =N19+N38+N57+N76 -> 166726.36 | P95: =J95+N95 -> 234782.01
B96: February | D96: =D20+D39+D58+D77 -> 79813 | E96: 3.588401514 | F96: =F20+F39+F58+F77 -> 286401.09 | H96: =H20+H39+H58+H77 -> 83358 | I96: 0.7454971328 | J96: =J20+J39+J58+J77 -> 62143.15 | L96: =L20+L39+L58+L77 -> 83358 | M96: 1.830187385 | N96: =N20+N39+N58+N77 -> 152560.76 | P96: 214703.91
B97: March | D97: 75854 | E97: 3.576038442 | F97: 271256.82 | H97: 79998 | I97: 0.7442992325 | J97: 59542.45 | L97: 79998 | M97: 1.824916623 | N97: 145989.68 | P97: 205532.13
B98: April | D98: 88583.75 | E98: 3.576153979 | F98: 316789.13 | H98: 103236.16 | I98: 0.7431794247 | J98: 76722.99 | L98: 103236.16 | M98: 1.819988365 | N98: 187888.61 | P98: 264611.6
B99: May | D99: 99261.27 | E99: 3.579695484 | F99: 355325.12 | H99: 106143.08 | I99: 0.7444677505 | J99: 79020.1 | L99: 106143.08 | M99: 1.825658253 | N99: 193780.99 | P99: 272801.09
B100: June | D100: 84984.88 | E100: 3.566142354 | F100: 303068.18 | H100: 86556.14 | I100: 0.7429761771 | J100: 64309.15 | L100: 86556.14 | M100: 1.819095214 | N100: 157453.86 | P100: 221763.01
B101: July | D101: 106272.08 | E101: 3.580478146 | F101: 380504.86 | H101: 108270.08 | I101: 0.7445990619 | J101: 80617.8 | L101: 108270.08 | M101: 1.826236113 | N101: 197726.73 | P101: 278344.53
B102: August | D102: 95329.96 | E102: 3.575984297 | F102: 340898.44 | H102: 98124.96 | I102: 0.7441691696 | J102: 73021.57 | L102: 98124.96 | M102: 1.824344489 | N102: 179013.73 | P102: 252035.3
B103: September | D103: 91271.58 | E103: 3.582207189 | F103: 326953.71 | H103: 93538.3 | I103: 0.7448083833 | J103: 69668.11 | L103: 93538.3 | M103: 1.827156897 | N103: 170909.15 | P103: 240577.26
B104: October | D104: 86134.17 | E104: 3.574991435 | F104: 307928.92 | H104: 97412.85 | I104: 0.7445382206 | J104: 72527.59 | L104: 97412.85 | M104: 1.825968237 | N104: 177872.77 | P104: 250400.36
B105: November | D105: 75222.79 | E105: 3.568372431 | F105: 268422.93 | H105: 80026.63 | I105: 0.7435517402 | J105: 59503.94 | L105: 80026.63 | M105: 1.821627751 | N105: 145778.73 | P105: 205282.67
B106: December | D106: 80429.94 | E106: 3.563344819 | F106: 286599.61 | H106: 86443.37 | I106: 0.7417178437 | J106: 64116.59 | L106: 86443.37 | M106: 1.818799522 | N106: 157223.16 | P106: 221339.75
B108: Total | D108: =SUM(D95:D106) -> 1050181.42 | E108: =IF(D108<>0,F108/D108,0) -> 3.575305379 | F108: =SUM(F95:F106) -> 3754719.28 | H108: =SUM(H95:H106) -> 1114637.57 | I108: =IF(H108<>0,J108/H108,0) -> 0.7439629816 | J108: =SUM(J95:J106) -> 829249.09 | L108: =SUM(L95:L106) -> 1114637.57 | M108: =IF(L108<>0,N108/L108,0) -> 1.823843539 | N108: =SUM(N95:N106) -> 2032924.53 | P108: =SUM(P95:P106) -> 2862173.62
N110: Transformer Allowance Credit (if applicable) | P110: ='15. RTSR - UTRs & Sub-Tx'!E95 -> 0
N112: Total including deduction for Transformer Allowance Credit | P112: =P108+P110 -> 2862173.62

Sheet 17. RTSR - Current Wholesale
B13: The purpose of this sheet is to calculate the expected billing when current 2014 Uniform Transmission Rates are applied against historical 2013 transmission units.
B16: IESO | D16: Network | H16: Line Connection | L16: Transformation Connection | P16: Total Line
B18: Month | D18: Units Billed | E18: Rate | F18: Amount | H18: Units Billed | I18: Rate | J18: Amount | L18: Units Billed | M18: Rate | N18: Amount | P18: Amount
B20: January | D20: ='16. RTSR - Historical Wholesale'!D19 -> 75187 | E20: ='15. RTSR - UTRs & Sub-Tx'!G22 -> 3.82 | F20: =D20*E20 -> 287214.34 | H20: ='16. RTSR - Historical Wholesale'!H19 -> 79693 | I20: ='15. RTSR - UTRs & Sub-Tx'!G24 -> 0.82 | J20: =H20*I20 -> 65348.26 | L20: ='16. RTSR - Historical Wholesale'!L19 -> 79693 | M20: ='15. RTSR - UTRs & Sub-Tx'!G26 -> 1.98 | N20: =L20*M20 -> 157792.14 | P20: =J20+N20 -> 223140.4
B21: February | D21: ='16. RTSR - Historical Wholesale'!D20 -> 72435 | E21: =E20 -> 3.82 | F21: =D21*E21 -> 276701.7 | H21: ='16. RTSR - Historical Wholesale'!H20 -> 75851 | I21: =I20 -> 0.82 | J21: =H21*I21 -> 62197.82 | L21: ='16. RTSR - Historical Wholesale'!L20 -> 75851 | M21: =M20 -> 1.98 | N21: =L21*M21 -> 150184.98 | P21: 212382.8
B22: March | D22: ='16. RTSR - Historical Wholesale'!D21 -> 66758 | E22: =E21 -> 3.82 | F22: 255015.56 | H22: ='16. RTSR - Historical Wholesale'!H21 -> 70877 | I22: =I21 -> 0.82 | J22: 58119.14 | L22: ='16. RTSR - Historical Wholesale'!L21 -> 70877 | M22: =M21 -> 1.98 | N22: 140336.46 | P22: 198455.6
B23: April | D23: ='16. RTSR - Historical Wholesale'!D22 -> 77984 | E23: 3.82 | F23: 297898.88 | H23: ='16. RTSR - Historical Wholesale'!H22 -> 89153 | I23: 0.82 | J23: 73105.46 | L23: ='16. RTSR - Historical Wholesale'!L22 -> 89153 | M23: 1.98 | N23: 176522.94 | P23: 249628.4
B24: May | D24: ='16. RTSR - Historical Wholesale'!D23 -> 88165 | E24: 3.82 | F24: 336790.3 | H24: ='16. RTSR - Historical Wholesale'!H23 -> 94399 | I24: 0.82 | J24: 77407.18 | L24: ='16. RTSR - Historical Wholesale'!L23 -> 94399 | M24: 1.98 | N24: 186910.02 | P24: 264317.2
B25: June | D25: ='16. RTSR - Historical Wholesale'!D24 -> 72925 | E25: 3.82 | F25: 278573.5 | H25: ='16. RTSR - Historical Wholesale'!H24 -> 74397 | I25: 0.82 | J25: 61005.54 | L25: ='16. RTSR - Historical Wholesale'!L24 -> 74397 | M25: 1.98 | N25: 147306.06 | P25: 208311.6
B26: July | D26: ='16. RTSR - Historical Wholesale'!D25 -> 94577 | E26: 3.82 | F26: 361284.14 | H26: ='16. RTSR - Historical Wholesale'!H25 -> 96575 | I26: 0.82 | J26: 79191.5 | L26: ='16. RTSR - Historical Wholesale'!L25 -> 96575 | M26: 1.98 | N26: 191218.5 | P26: 270410
B27: August | D27: ='16. RTSR - Historical Wholesale'!D26 -> 83887 | E27: 3.82 | F27: 320448.34 | H27: ='16. RTSR - Historical Wholesale'!H26 -> 86682 | I27: 0.82 | J27: 71079.24 | L27: ='16. RTSR - Historical Wholesale'!L26 -> 86682 | M27: 1.98 | N27: 171630.36 | P27: 242709.6
B28: September | D28: ='16. RTSR - Historical Wholesale'!D27 -> 81578 | E28: 3.82 | F28: 311627.96 | H28: ='16. RTSR - Historical Wholesale'!H27 -> 83826 | I28: 0.82 | J28: 68737.32 | L28: ='16. RTSR - Historical Wholesale'!L27 -> 83826 | M28: 1.98 | N28: 165975.48 | P28: 234712.8
B29: October | D29: ='16. RTSR - Historical Wholesale'!D28 -> 75605 | E29: 3.82 | F29: 288811.1 | H29: ='16. RTSR - Historical Wholesale'!H28 -> 86772 | I29: 0.82 | J29: 71153.04 | L29: ='16. RTSR - Historical Wholesale'!L28 -> 86772 | M29: 1.98 | N29: 171808.56 | P29: 242961.6
B30: November | D30: ='16. RTSR - Historical Wholesale'!D29 -> 64921 | E30: 3.82 | F30: 247998.22 | H30: ='16. RTSR - Historical Wholesale'!H29 -> 69706 | I30: 0.82 | J30: 57158.92 | L30: ='16. RTSR - Historical Wholesale'!L29 -> 69706 | M30: 1.98 | N30: 138017.88 | P30: 195176.8
B31: December | D31: ='16. RTSR - Historical Wholesale'!D30 -> 68277 | E31: 3.82 | F31: 260818.14 | H31: ='16. RTSR - Historical Wholesale'!H30 -> 74282 | I31: 0.82 | J31: 60911.24 | L31: ='16. RTSR - Historical Wholesale'!L30 -> 74282 | M31: 1.98 | N31: 147078.36 | P31: 207989.6
B33: Total | D33: =SUM(D20:D31) -> 922299 | E33: =IF(D33<>0,F33/D33,0) -> 3.82 | F33: =SUM(F20:F31) -> 3523182.18 | H33: =SUM(H20:H31) -> 982213 | I33: =IF(H33<>0,J33/H33,0) -> 0.82 | J33: =SUM(J20:J31) -> 805414.66 | L33: =SUM(L20:L31) -> 982213 | M33: =IF(L33<>0,N33/L33,0) -> 1.98 | N33: =SUM(N20:N31) -> 1944781.74 | P33: =SUM(P20:P31) -> 2750196.4
B35: Hydro One | D35: Network | H35: Line Connection | L35: Transformation Connection | P35: Total Line
B37: Month | D37: Units Billed | E37: Rate | F37: Amount | H37: Units Billed | I37: Rate | J37: Amount | L37: Units Billed | M37: Rate | N37: Amount | P37: Amount
B39: January | D39: ='16. RTSR - Historical Wholesale'!D38 -> 11837 | E39: ='15. RTSR - UTRs & Sub-Tx'!G35+'15. RTSR - UTRs & Sub-Tx'!G79 -> 3.3765 | F39: =D39*E39 -> 39967.6305 | H39: ='16. RTSR - Historical Wholesale'!H38 -> 11837 | I39: ='15. RTSR - UTRs & Sub-Tx'!G37+'15. RTSR - UTRs & Sub-Tx'!G81 -> 0.7167 | J39: =H39*I39 -> 8483.5779 | L39: ='16. RTSR - Historical Wholesale'!L38 -> 11837 | M39: ='15. RTSR - UTRs & Sub-Tx'!G39 -> 1.62 | N39: =L39*M39 -> 19175.94 | P39: =J39+N39 -> 27659.5179
B40: February | D40: ='16. RTSR - Historical Wholesale'!D39 -> 7378 | E40: =E39 -> 3.3765 | F40: =D40*E40 -> 24911.817 | H40: ='16. RTSR - Historical Wholesale'!H39 -> 7507 | I40: =I39 -> 0.7167 | J40: =H40*I40 -> 5380.2669 | L40: ='16. RTSR - Historical Wholesale'!L39 -> 7507 | M40: =M39 -> 1.62 | N40: =L40*M40 -> 12161.34 | P40: 17541.6069
B41: March | D41: ='16. RTSR - Historical Wholesale'!D40 -> 9096 | E41: =E40 -> 3.3765 | F41: 30712.644 | H41: ='16. RTSR - Historical Wholesale'!H40 -> 9121 | I41: =I40 -> 0.7167 | J41: 6537.0207 | L41: ='16. RTSR - Historical Wholesale'!L40 -> 9121 | M41: =M40 -> 1.62 | N41: 14776.02 | P41: 21313.0407
B42: April | D42: ='16. RTSR - Historical Wholesale'!D41 -> 10599.75 | E42: 3.3765 | F42: 35790.05587 | H42: ='16. RTSR - Historical Wholesale'!H41 -> 14083.16 | I42: 0.7167 | J42: 10093.40077 | L42: ='16. RTSR - Historical Wholesale'!L41 -> 14083.16 | M42: =M41 -> 1.62 | N42: 22814.7192 | P42: 32908.11997
B43: May | D43: ='16. RTSR - Historical Wholesale'!D42 -> 11096.27 | E43: 3.3765 | F43: 37466.55566 | H43: ='16. RTSR - Historical Wholesale'!H42 -> 11744.08 | I43: 0.7167 | J43: 8416.982136 | L43: ='16. RTSR - Historical Wholesale'!L42 -> 11744.08 | M43: 1.62 | N43: 19025.4096 | P43: 27442.39174
B44: June | D44: ='16. RTSR - Historical Wholesale'!D43 -> 12059.88 | E44: 3.3765 | F44: 40720.18482 | H44: ='16. RTSR - Historical Wholesale'!H43 -> 12159.14 | I44: 0.7167 | J44: 8714.455638 | L44: ='16. RTSR - Historical Wholesale'!L43 -> 12159.14 | M44: 1.62 | N44: 19697.8068 | P44: 28412.26244
B45: July | D45: ='16. RTSR - Historical Wholesale'!D44 -> 11695.08 | E45: 3.3765 | F45: 39488.43762 | H45: ='16. RTSR - Historical Wholesale'!H44 -> 11695.08 | I45: 0.7167 | J45: 8381.863836 | L45: ='16. RTSR - Historical Wholesale'!L44 -> 11695.08 | M45: 1.62 | N45: 18946.0296 | P45: 27327.89344
B46: August | D46: ='16. RTSR - Historical Wholesale'!D45 -> 11442.96 | E46: 3.3765 | F46: 38637.15444 | H46: ='16. RTSR - Historical Wholesale'!H45 -> 11442.96 | I46: 0.7167 | J46: 8201.169432 | L46: ='16. RTSR - Historical Wholesale'!L45 -> 11442.96 | M46: 1.62 | N46: 18537.5952 | P46: 26738.76463
B47: September | D47: ='16. RTSR - Historical Wholesale'!D46 -> 9693.58 | E47: 3.3765 | F47: 32730.37287 | H47: ='16. RTSR - Historical Wholesale'!H46 -> 9712.3 | I47: 0.7167 | J47: 6960.80541 | L47: ='16. RTSR - Historical Wholesale'!L46 -> 9712.3 | M47: 1.62 | N47: 15733.926 | P47: 22694.73141
B48: October | D48: ='16. RTSR - Historical Wholesale'!D47 -> 10529.17 | E48: 3.3765 | F48: 35551.74251 | H48: ='16. RTSR - Historical Wholesale'!H47 -> 10640.85 | I48: 0.7167 | J48: 7626.297195 | L48: ='16. RTSR - Historical Wholesale'!L47 -> 10640.85 | M48: 1.62 | N48: 17238.177 | P48: 24864.47419
B49: November | D49: ='16. RTSR - Historical Wholesale'!D48 -> 10301.79 | E49: 3.3765 | F49: 34783.99394 | H49: ='16. RTSR - Historical Wholesale'!H48 -> 10320.63 | I49: 0.7167 | J49: 7396.795521 | L49: ='16. RTSR - Historical Wholesale'!L48 -> 10320.63 | M49: 1.62 | N49: 16719.4206 | P49: 24116.21612
B50: December | D50: ='16. RTSR - Historical Wholesale'!D49 -> 12152.94 | E50: 3.3765 | F50: 41034.40191 | H50: ='16. RTSR - Historical Wholesale'!H49 -> 12161.37 | I50: 0.7167 | J50: 8716.053879 | L50: ='16. RTSR - Historical Wholesale'!L49 -> 12161.37 | M50: 1.62 | N50: 19701.4194 | P50: 28417.47328
B52: Total | D52: =SUM(D39:D50) -> 127882.42 | E52: =IF(D52<>0,F52/D52,0) -> 3.3765 | F52: =SUM(F39:F50) -> 431794.9911 | H52: =SUM(H39:H50) -> 132424.57 | I52: =IF(H52<>0,J52/H52,0) -> 0.7167 | J52: =SUM(J39:J50) -> 94908.68932 | L52: =SUM(L39:L50) -> 132424.57 | M52: =IF(L52<>0,N52/L52,0) -> 1.62 | N52: =SUM(N39:N50) -> 214527.8034 | P52: =SUM(P39:P50) -> 309436.4927
B54: ='16. RTSR - Historical Wholesale'!B53 -> Add Extra Host Here (I) | D54: Network | H54: Line Connection | L54: Transformation Connection | P54: Total Line
B56: Month | D56: Units Billed | E56: Rate | F56: Amount | H56: Units Billed | I56: Rate | J56: Amount | L56: Units Billed | M56: Rate | N56: Amount | P56: Amount
B58: January | D58: ='16. RTSR - Historical Wholesale'!D57 -> 0 | E58: ='15. RTSR - UTRs & Sub-Tx'!G50 -> 0 | F58: =D58*E58 -> 0 | H58: ='16. RTSR - Historical Wholesale'!H57 -> 0 | I58: ='15. RTSR - UTRs & Sub-Tx'!G52 -> 0 | J58: =H58*I58 -> 0 | L58: ='16. RTSR - Historical Wholesale'!L57 -> 0 | M58: ='15. RTSR - UTRs & Sub-Tx'!G54 -> 0 | N58: =L58*M58 -> 0 | P58: =J58+N58 -> 0
B59: February | D59: ='16. RTSR - Historical Wholesale'!D58 -> 0 | E59: =E58 -> 0 | F59: =D59*E59 -> 0 | H59: ='16. RTSR - Historical Wholesale'!H58 -> 0 | I59: =I58 -> 0 | J59: =H59*I59 -> 0 | L59: ='16. RTSR - Historical Wholesale'!L58 -> 0 | M59: =M58 -> 0 | N59: =L59*M59 -> 0 | P59: 0
B60: March | D60: ='16. RTSR - Historical Wholesale'!D59 -> 0 | E60: =E59 -> 0 | F60: 0 | H60: ='16. RTSR - Historical Wholesale'!H59 -> 0 | I60: =I59 -> 0 | J60: 0 | L60: ='16. RTSR - Historical Wholesale'!L59 -> 0 | M60: =M59 -> 0 | N60: 0 | P60: 0
B61: April | D61: ='16. RTSR - Historical Wholesale'!D60 -> 0 | E61: 0 | F61: 0 | H61: ='16. RTSR - Historical Wholesale'!H60 -> 0 | I61: 0 | J61: 0 | L61: ='16. RTSR - Historical Wholesale'!L60 -> 0 | M61: =M60 -> 0 | N61: 0 | P61: 0
B62: May | D62: ='16. RTSR - Historical Wholesale'!D61 -> 0 | E62: 0 | F62: 0 | H62: ='16. RTSR - Historical Wholesale'!H61 -> 0 | I62: 0 | J62: 0 | L62: ='16. RTSR - Historical Wholesale'!L61 -> 0 | M62: 0 | N62: 0 | P62: 0
B63: June | D63: ='16. RTSR - Historical Wholesale'!D62 -> 0 | E63: 0 | F63: 0 | H63: ='16. RTSR - Historical Wholesale'!H62 -> 0 | I63: 0 | J63: 0 | L63: ='16. RTSR - Historical Wholesale'!L62 -> 0 | M63: 0 | N63: 0 | P63: 0
B64: July | D64: ='16. RTSR - Historical Wholesale'!D63 -> 0 | E64: 0 | F64: 0 | H64: ='16. RTSR - Historical Wholesale'!H63 -> 0 | I64: 0 | J64: 0 | L64: ='16. RTSR - Historical Wholesale'!L63 -> 0 | M64: 0 | N64: 0 | P64: 0
B65: August | D65: ='16. RTSR - Historical Wholesale'!D64 -> 0 | E65: 0 | F65: 0 | H65: ='16. RTSR - Historical Wholesale'!H64 -> 0 | I65: 0 | J65: 0 | L65: ='16. RTSR - Historical Wholesale'!L64 -> 0 | M65: 0 | N65: 0 | P65: 0
B66: September | D66: ='16. RTSR - Historical Wholesale'!D65 -> 0 | E66: 0 | F66: 0 | H66: ='16. RTSR - Historical Wholesale'!H65 -> 0 | I66: 0 | J66: 0 | L66: ='16. RTSR - Historical Wholesale'!L65 -> 0 | M66: 0 | N66: 0 | P66: 0
B67: October | D67: ='16. RTSR - Historical Wholesale'!D66 -> 0 | E67: 0 | F67: 0 | H67: ='16. RTSR - Historical Wholesale'!H66 -> 0 | I67: 0 | J67: 0 | L67: ='16. RTSR - Historical Wholesale'!L66 -> 0 | M67: 0 | N67: 0 | P67: 0
B68: November | D68: ='16. RTSR - Historical Wholesale'!D67 -> 0 | E68: 0 | F68: 0 | H68: ='16. RTSR - Historical Wholesale'!H67 -> 0 | I68: 0 | J68: 0 | L68: ='16. RTSR - Historical Wholesale'!L67 -> 0 | M68: 0 | N68: 0 | P68: 0
B69: December | D69: ='16. RTSR - Historical Wholesale'!D68 -> 0 | E69: 0 | F69: 0 | H69: ='16. RTSR - Historical Wholesale'!H68 -> 0 | I69: 0 | J69: 0 | L69: ='16. RTSR - Historical Wholesale'!L68 -> 0 | M69: 0 | N69: 0 | P69: 0
B71: Total | D71: =SUM(D58:D69) -> 0 | E71: =IF(D71<>0,F71/D71,0) -> 0 | F71: =SUM(F58:F69) -> 0 | H71: =SUM(H58:H69) -> 0 | I71: =IF(H71<>0,J71/H71,0) -> 0 | J71: =SUM(J58:J69) -> 0 | L71: =SUM(L58:L69) -> 0 | M71: =IF(L71<>0,N71/L71,0) -> 0 | N71: =SUM(N58:N69) -> 0 | P71: =SUM(P58:P69) -> 0
B73: ='16. RTSR - Historical Wholesale'!B72 -> Add Extra Host Here (II) | D73: Network | H73: Line Connection | L73: Transformation Connection | P73: Total Line
B75: Month | D75: Units Billed | E75: Rate | F75: Amount | H75: Units Billed | I75: Rate | J75: Amount | L75: Units Billed | M75: Rate | N75: Amount | P75: Amount
B77: January | D77: ='16. RTSR - Historical Wholesale'!D76 -> 0 | E77: ='15. RTSR - UTRs & Sub-Tx'!G65 -> 0 | F77: =D77*E77 -> 0 | H77: ='16. RTSR - Historical Wholesale'!H76 -> 0 | I77: ='15. RTSR - UTRs & Sub-Tx'!G67 -> 0 | J77: =H77*I77 -> 0 | L77: ='16. RTSR - Historical Wholesale'!L76 -> 0 | M77: ='15. RTSR - UTRs & Sub-Tx'!G69 -> 0 | N77: =L77*M77 -> 0 | P77: =J77+N77 -> 0
B78: February | D78: ='16. RTSR - Historical Wholesale'!D77 -> 0 | E78: =E77 -> 0 | F78: =D78*E78 -> 0 | H78: ='16. RTSR - Historical Wholesale'!H77 -> 0 | I78: =I77 -> 0 | J78: =H78*I78 -> 0 | L78: ='16. RTSR - Historical Wholesale'!L77 -> 0 | M78: =M77 -> 0 | N78: =L78*M78 -> 0 | P78: 0
B79: March | D79: ='16. RTSR - Historical Wholesale'!D78 -> 0 | E79: =E78 -> 0 | F79: 0 | H79: ='16. RTSR - Historical Wholesale'!H78 -> 0 | I79: =I78 -> 0 | J79: 0 | L79: ='16. RTSR - Historical Wholesale'!L78 -> 0 | M79: =M78 -> 0 | N79: 0 | P79: 0
B80: April | D80: ='16. RTSR - Historical Wholesale'!D79 -> 0 | E80: 0 | F80: 0 | H80: ='16. RTSR - Historical Wholesale'!H79 -> 0 | I80: 0 | J80: 0 | L80: ='16. RTSR - Historical Wholesale'!L79 -> 0 | M80: =M79 -> 0 | N80: 0 | P80: 0
B81: May | D81: ='16. RTSR - Historical Wholesale'!D80 -> 0 | E81: 0 | F81: 0 | H81: ='16. RTSR - Historical Wholesale'!H80 -> 0 | I81: 0 | J81: 0 | L81: ='16. RTSR - Historical Wholesale'!L80 -> 0 | M81: 0 | N81: 0 | P81: 0
B82: June | D82: ='16. RTSR - Historical Wholesale'!D81 -> 0 | E82: 0 | F82: 0 | H82: ='16. RTSR - Historical Wholesale'!H81 -> 0 | I82: 0 | J82: 0 | L82: ='16. RTSR - Historical Wholesale'!L81 -> 0 | M82: 0 | N82: 0 | P82: 0
B83: July | D83: ='16. RTSR - Historical Wholesale'!D82 -> 0 | E83: 0 | F83: 0 | H83: ='16. RTSR - Historical Wholesale'!H82 -> 0 | I83: 0 | J83: 0 | L83: ='16. RTSR - Historical Wholesale'!L82 -> 0 | M83: 0 | N83: 0 | P83: 0
B84: August | D84: ='16. RTSR - Historical Wholesale'!D83 -> 0 | E84: 0 | F84: 0 | H84: ='16. RTSR - Historical Wholesale'!H83 -> 0 | I84: 0 | J84: 0 | L84: ='16. RTSR - Historical Wholesale'!L83 -> 0 | M84: 0 | N84: 0 | P84: 0
B85: September | D85: ='16. RTSR - Historical Wholesale'!D84 -> 0 | E85: 0 | F85: 0 | H85: ='16. RTSR - Historical Wholesale'!H84 -> 0 | I85: 0 | J85: 0 | L85: ='16. RTSR - Historical Wholesale'!L84 -> 0 | M85: 0 | N85: 0 | P85: 0
B86: October | D86: ='16. RTSR - Historical Wholesale'!D85 -> 0 | E86: 0 | F86: 0 | H86: ='16. RTSR - Historical Wholesale'!H85 -> 0 | I86: 0 | J86: 0 | L86: ='16. RTSR - Historical Wholesale'!L85 -> 0 | M86: 0 | N86: 0 | P86: 0
B87: November | D87: ='16. RTSR - Historical Wholesale'!D86 -> 0 | E87: 0 | F87: 0 | H87: ='16. RTSR - Historical Wholesale'!H86 -> 0 | I87: 0 | J87: 0 | L87: ='16. RTSR - Historical Wholesale'!L86 -> 0 | M87: 0 | N87: 0 | P87: 0
B88: December | D88: ='16. RTSR - Historical Wholesale'!D87 -> 0 | E88: 0 | F88: 0 | H88: ='16. RTSR - Historical Wholesale'!H87 -> 0 | I88: 0 | J88: 0 | L88: ='16. RTSR - Historical Wholesale'!L87 -> 0 | M88: 0 | N88: 0 | P88: 0
B90: Total | D90: =SUM(D77:D88) -> 0 | E90: =IF(D90<>0,F90/D90,0) -> 0 | F90: =SUM(F77:F88) -> 0 | H90: =SUM(H77:H88) -> 0 | I90: =IF(H90<>0,J90/H90,0) -> 0 | J90: =SUM(J77:J88) -> 0 | L90: =SUM(L77:L88) -> 0 | M90: =IF(L90<>0,N90/L90,0) -> 0 | N90: =SUM(N77:N88) -> 0 | P90: =SUM(P77:P88) -> 0
B92: Total | D92: Network | H92: Line Connection | L92: Transformation Connection | P92: Total Line
B94: Month | D94: Units Billed | E94: Rate | F94: Amount | H94: Units Billed | I94: Rate | J94: Amount | L94: Units Billed | M94: Rate | N94: Amount | P94: Amount
B96: January | D96: =D20+D39+D58+D77 -> 87024 | E96: =IF(D96<>0,F96/D96,0) -> 3.759675153 | F96: =F20+F39+F58+F77 -> 327181.9705 | H96: =H20+H39+H58+H77 -> 91530 | I96: =IF(H96<>0,J96/H96,0) -> 0.8066408598 | J96: =J20+J39+J58+J77 -> 73831.8379 | L96: =L20+L39+L58+L77 -> 91530 | M96: =IF(L96<>0,N96/L96,0) -> 1.933443461 | N96: =N20+N39+N58+N77 -> 176968.08 | P96: =J96+N96 -> 250799.9179
B97: February | D97: =D21+D40+D59+D78 -> 79813 | E97: 3.779002381 | F97: =F21+F40+F59+F78 -> 301613.517 | H97: =H21+H40+H59+H78 -> 83358 | I97: 0.8106970765 | J97: =J21+J40+J59+J78 -> 67578.0869 | L97: =L21+L40+L59+L78 -> 83358 | M97: 1.947579357 | N97: =N21+N40+N59+N78 -> 162346.32 | P97: 229924.4069
B98: March | D98: 75854 | E98: 3.766817887 | F98: 285728.204 | H98: 79998 | I98: 0.8082222143 | J98: 64656.1607 | L98: 79998 | M98: 1.938954474 | N98: 155112.48 | P98: 219768.6407
B99: April | D99: 88583.75 | E99: 3.766931699 | F99: 333688.9359 | H99: 103236.16 | I99: 0.8059081311 | J99: 83198.86077 | L99: 103236.16 | M99: 1.930889905 | N99: 199337.6592 | P99: 282536.52
B100: May | D100: 99261.27 | E100: 3.770421793 | F100: 374256.8557 | H100: 106143.08 | I100: 0.8085704893 | J100: 85824.16214 | L100: 106143.08 | M100: 1.940168211 | N100: 205935.4296 | P100: 291759.5917
B101: June | D101: 84984.88 | E101: 3.757064607 | F101: 319293.6848 | H101: 86556.14 | I101: 0.8054887341 | J101: 69719.99564 | L101: 86556.14 | M101: 1.929428309 | N101: 167003.8668 | P101: 236723.8624
B102: July | D102: 106272.08 | E102: 3.771193503 | F102: 400772.5776 | H102: 108270.08 | I102: 0.8088417764 | J102: 87573.36384 | L102: 108270.08 | M102: 1.941113645 | N102: 210164.5296 | P102: 297737.8934
B103: August | D103: 95329.96 | E103: 3.766764346 | F103: 359085.4944 | H103: 98124.96 | I103: 0.8079535465 | J103: 79280.40943 | L103: 98124.96 | M103: 1.938018168 | N103: 190167.9552 | P103: 269448.3646
B104: September | D104: 91271.58 | E104: 3.772897685 | F104: 344358.3329 | H104: 93538.3 | I104: 0.8092741199 | J104: 75698.12541 | L104: 93538.3 | M104: 1.94262036 | N104: 181709.406 | P104: 257407.5314
B105: October | D105: 86134.17 | E105: 3.765785895 | F105: 324362.8425 | H105: 97412.85 | I105: 0.8087160697 | J105: 78779.3372 | L105: 97412.85 | M105: 1.940675558 | N105: 189046.737 | P105: 267826.0742
B106: November | D106: 75222.79 | E106: 3.759262505 | F106: 282782.2139 | H106: 80026.63 | I106: 0.8066779211 | J106: 64555.71552 | L106: 80026.63 | M106: 1.93357262 | N106: 154737.3006 | P106: 219293.0161
B107: December | D107: 80429.94 | E107: 3.752987282 | F107: 301852.5419 | H107: 86443.37 | I107: 0.8054671385 | J107: 69627.29388 | L107: 86443.37 | M107: 1.929353048 | N107: 166779.7794 | P107: 236407.0733
B109: Total | D109: =SUM(D96:D107) -> 1050181.42 | E109: =IF(D109<>0,F109/D109,0) -> 3.765994233 | F109: =SUM(F96:F107) -> 3954977.171 | H109: =SUM(H96:H107) -> 1114637.57 | I109: =IF(H109<>0,J109/H109,0) -> 0.8077274385 | J109: =SUM(J96:J107) -> 900323.3493 | L109: =SUM(L96:L107) -> 1114637.57 | M109: =IF(L109<>0,N109/L109,0) -> 1.937230183 | N109: =SUM(N96:N107) -> 2159309.543 | P109: =SUM(P96:P107) -> 3059632.893
N111: Transformer Allowance Credit (if applicable) | P111: ='15. RTSR - UTRs & Sub-Tx'!G95 -> 0
N113: Total including deduction for Transformer Allowance Credit | P113: =P109+P111 -> 3059632.893

Sheet 18. RTSR - Forecast Wholesale
B13: The purpose of this sheet is to calculate the expected billing when forecasted 2015 Uniform Transmission Rates are applied against historical 2013 transmission units.
B16: IESO | D16: Network | H16: Line Connection | L16: Transformation Connection | P16: Total Line
B18: Month | D18: Units Billed | E18: Rate | F18: Amount | H18: Units Billed | I18: Rate | J18: Amount | L18: Units Billed | M18: Rate | N18: Amount | P18: Amount
B20: January | D20: ='16. RTSR - Historical Wholesale'!D19 -> 75187 | E20: ='15. RTSR - UTRs & Sub-Tx'!I22 -> 3.82 | F20: =D20*E20 -> 287214.34 | H20: ='16. RTSR - Historical Wholesale'!H19 -> 79693 | I20: ='15. RTSR - UTRs & Sub-Tx'!I24 -> 0.82 | J20: =H20*I20 -> 65348.26 | L20: ='16. RTSR - Historical Wholesale'!L19 -> 79693 | M20: ='15. RTSR - UTRs & Sub-Tx'!I26 -> 1.98 | N20: =L20*M20 -> 157792.14 | P20: =J20+N20 -> 223140.4
B21: February | D21: ='16. RTSR - Historical Wholesale'!D20 -> 72435 | E21: =E20 -> 3.82 | F21: 276701.7 | H21: ='16. RTSR - Historical Wholesale'!H20 -> 75851 | I21: =I20 -> 0.82 | J21: 62197.82 | L21: ='16. RTSR - Historical Wholesale'!L20 -> 75851 | M21: =M20 -> 1.98 | N21: 150184.98 | P21: 212382.8
B22: March | D22: ='16. RTSR - Historical Wholesale'!D21 -> 66758 | E22: 3.82 | F22: 255015.56 | H22: ='16. RTSR - Historical Wholesale'!H21 -> 70877 | I22: 0.82 | J22: 58119.14 | L22: ='16. RTSR - Historical Wholesale'!L21 -> 70877 | M22: 1.98 | N22: 140336.46 | P22: 198455.6
B23: April | D23: ='16. RTSR - Historical Wholesale'!D22 -> 77984 | E23: 3.82 | F23: 297898.88 | H23: ='16. RTSR - Historical Wholesale'!H22 -> 89153 | I23: 0.82 | J23: 73105.46 | L23: ='16. RTSR - Historical Wholesale'!L22 -> 89153 | M23: 1.98 | N23: 176522.94 | P23: 249628.4
B24: May | D24: ='16. RTSR - Historical Wholesale'!D23 -> 88165 | E24: 3.82 | F24: 336790.3 | H24: ='16. RTSR - Historical Wholesale'!H23 -> 94399 | I24: 0.82 | J24: 77407.18 | L24: ='16. RTSR - Historical Wholesale'!L23 -> 94399 | M24: 1.98 | N24: 186910.02 | P24: 264317.2
B25: June | D25: ='16. RTSR - Historical Wholesale'!D24 -> 72925 | E25: 3.82 | F25: 278573.5 | H25: ='16. RTSR - Historical Wholesale'!H24 -> 74397 | I25: 0.82 | J25: 61005.54 | L25: ='16. RTSR - Historical Wholesale'!L24 -> 74397 | M25: 1.98 | N25: 147306.06 | P25: 208311.6
B26: July | D26: ='16. RTSR - Historical Wholesale'!D25 -> 94577 | E26: 3.82 | F26: 361284.14 | H26: ='16. RTSR - Historical Wholesale'!H25 -> 96575 | I26: 0.82 | J26: 79191.5 | L26: ='16. RTSR - Historical Wholesale'!L25 -> 96575 | M26: 1.98 | N26: 191218.5 | P26: 270410
B27: August | D27: ='16. RTSR - Historical Wholesale'!D26 -> 83887 | E27: 3.82 | F27: 320448.34 | H27: ='16. RTSR - Historical Wholesale'!H26 -> 86682 | I27: 0.82 | J27: 71079.24 | L27: ='16. RTSR - Historical Wholesale'!L26 -> 86682 | M27: 1.98 | N27: 171630.36 | P27: 242709.6
B28: September | D28: ='16. RTSR - Historical Wholesale'!D27 -> 81578 | E28: 3.82 | F28: 311627.96 | H28: ='16. RTSR - Historical Wholesale'!H27 -> 83826 | I28: 0.82 | J28: 68737.32 | L28: ='16. RTSR - Historical Wholesale'!L27 -> 83826 | M28: 1.98 | N28: 165975.48 | P28: 234712.8
B29: October | D29: ='16. RTSR - Historical Wholesale'!D28 -> 75605 | E29: 3.82 | F29: 288811.1 | H29: ='16. RTSR - Historical Wholesale'!H28 -> 86772 | I29: 0.82 | J29: 71153.04 | L29: ='16. RTSR - Historical Wholesale'!L28 -> 86772 | M29: 1.98 | N29: 171808.56 | P29: 242961.6
B30: November | D30: ='16. RTSR - Historical Wholesale'!D29 -> 64921 | E30: 3.82 | F30: 247998.22 | H30: ='16. RTSR - Historical Wholesale'!H29 -> 69706 | I30: 0.82 | J30: 57158.92 | L30: ='16. RTSR - Historical Wholesale'!L29 -> 69706 | M30: 1.98 | N30: 138017.88 | P30: 195176.8
B31: December | D31: ='16. RTSR - Historical Wholesale'!D30 -> 68277 | E31: 3.82 | F31: 260818.14 | H31: ='16. RTSR - Historical Wholesale'!H30 -> 74282 | I31: 0.82 | J31: 60911.24 | L31: ='16. RTSR - Historical Wholesale'!L30 -> 74282 | M31: 1.98 | N31: 147078.36 | P31: 207989.6
B33: Total | D33: =SUM(D20:D31) -> 922299 | E33: =IF(D33<>0,F33/D33,0) -> 3.82 | F33: =SUM(F20:F31) -> 3523182.18 | H33: =SUM(H20:H31) -> 982213 | I33: =IF(H33<>0,J33/H33,0) -> 0.82 | J33: =SUM(J20:J31) -> 805414.66 | L33: =SUM(L20:L31) -> 982213 | M33: =IF(L33<>0,N33/L33,0) -> 1.98 | N33: =SUM(N20:N31) -> 1944781.74 | P33: =SUM(P20:P31) -> 2750196.4
B35: Hydro One | D35: Network | H35: Line Connection | L35: Transformation Connection | P35: Total Line
B37: Month | D37: Units Billed | E37: Rate | F37: Amount | H37: Units Billed | I37: Rate | J37: Amount | L37: Units Billed | M37: Rate | N37: Amount | P37: Amount
B39: January | D39: ='16. RTSR - Historical Wholesale'!D38 -> 11837 | E39: ='15. RTSR - UTRs & Sub-Tx'!I35+'15. RTSR - UTRs & Sub-Tx'!I79 -> 3.23 | F39: =D39*E39 -> 38233.51 | H39: ='16. RTSR - Historical Wholesale'!H38 -> 11837 | I39: ='15. RTSR - UTRs & Sub-Tx'!I37+'15. RTSR - UTRs & Sub-Tx'!I81 -> 0.65 | J39: =H39*I39 -> 7694.05 | L39: ='16. RTSR - Historical Wholesale'!L38 -> 11837 | M39: ='15. RTSR - UTRs & Sub-Tx'!I39 -> 1.62 | N39: =L39*M39 -> 19175.94 | P39: =J39+N39 -> 26869.99
B40: February | D40: ='16. RTSR - Historical Wholesale'!D39 -> 7378 | E40: =E39 -> 3.23 | F40: 23830.94 | H40: ='16. RTSR - Historical Wholesale'!H39 -> 7507 | I40: =I39 -> 0.65 | J40: 4879.55 | L40: ='16. RTSR - Historical Wholesale'!L39 -> 7507 | M40: =M39 -> 1.62 | N40: 12161.34 | P40: 17040.89
B41: March | D41: ='16. RTSR - Historical Wholesale'!D40 -> 9096 | E41: 3.23 | F41: 29380.08 | H41: ='16. RTSR - Historical Wholesale'!H40 -> 9121 | I41: 0.65 | J41: 5928.65 | L41: ='16. RTSR - Historical Wholesale'!L40 -> 9121 | M41: 1.62 | N41: 14776.02 | P41: 20704.67
B42: April | D42: ='16. RTSR - Historical Wholesale'!D41 -> 10599.75 | E42: 3.23 | F42: 34237.1925 | H42: ='16. RTSR - Historical Wholesale'!H41 -> 14083.16 | I42: 0.65 | J42: 9154.054 | L42: ='16. RTSR - Historical Wholesale'!L41 -> 14083.16 | M42: 1.62 | N42: 22814.7192 | P42: 31968.7732
B43: May | D43: ='16. RTSR - Historical Wholesale'!D42 -> 11096.27 | E43: 3.23 | F43: 35840.9521 | H43: ='16. RTSR - Historical Wholesale'!H42 -> 11744.08 | I43: 0.65 | J43: 7633.652 | L43: ='16. RTSR - Historical Wholesale'!L42 -> 11744.08 | M43: 1.62 | N43: 19025.4096 | P43: 26659.0616
B44: June | D44: ='16. RTSR - Historical Wholesale'!D43 -> 12059.88 | E44: 3.23 | F44: 38953.4124 | H44: ='16. RTSR - Historical Wholesale'!H43 -> 12159.14 | I44: 0.65 | J44: 7903.441 | L44: ='16. RTSR - Historical Wholesale'!L43 -> 12159.14 | M44: 1.62 | N44: 19697.8068 | P44: 27601.2478
B45: July | D45: ='16. RTSR - Historical Wholesale'!D44 -> 11695.08 | E45: 3.23 | F45: 37775.1084 | H45: ='16. RTSR - Historical Wholesale'!H44 -> 11695.08 | I45: 0.65 | J45: 7601.802 | L45: ='16. RTSR - Historical Wholesale'!L44 -> 11695.08 | M45: 1.62 | N45: 18946.0296 | P45: 26547.8316
B46: August | D46: ='16. RTSR - Historical Wholesale'!D45 -> 11442.96 | E46: 3.23 | F46: 36960.7608 | H46: ='16. RTSR - Historical Wholesale'!H45 -> 11442.96 | I46: 0.65 | J46: 7437.924 | L46: ='16. RTSR - Historical Wholesale'!L45 -> 11442.96 | M46: 1.62 | N46: 18537.5952 | P46: 25975.5192
B47: September | D47: ='16. RTSR - Historical Wholesale'!D46 -> 9693.58 | E47: 3.23 | F47: 31310.2634 | H47: ='16. RTSR - Historical Wholesale'!H46 -> 9712.3 | I47: 0.65 | J47: 6312.995 | L47: ='16. RTSR - Historical Wholesale'!L46 -> 9712.3 | M47: 1.62 | N47: 15733.926 | P47: 22046.921
B48: October | D48: ='16. RTSR - Historical Wholesale'!D47 -> 10529.17 | E48: 3.23 | F48: 34009.2191 | H48: ='16. RTSR - Historical Wholesale'!H47 -> 10640.85 | I48: 0.65 | J48: 6916.5525 | L48: ='16. RTSR - Historical Wholesale'!L47 -> 10640.85 | M48: 1.62 | N48: 17238.177 | P48: 24154.7295
B49: November | D49: ='16. RTSR - Historical Wholesale'!D48 -> 10301.79 | E49: 3.23 | F49: 33274.7817 | H49: ='16. RTSR - Historical Wholesale'!H48 -> 10320.63 | I49: 0.65 | J49: 6708.4095 | L49: ='16. RTSR - Historical Wholesale'!L48 -> 10320.63 | M49: 1.62 | N49: 16719.4206 | P49: 23427.8301
B50: December | D50: ='16. RTSR - Historical Wholesale'!D49 -> 12152.94 | E50: 3.23 | F50: 39253.9962 | H50: ='16. RTSR - Historical Wholesale'!H49 -> 12161.37 | I50: 0.65 | J50: 7904.8905 | L50: ='16. RTSR - Historical Wholesale'!L49 -> 12161.37 | M50: 1.62 | N50: 19701.4194 | P50: 27606.3099
B52: Total | D52: =SUM(D39:D50) -> 127882.42 | E52: =IF(D52<>0,F52/D52,0) -> 3.23 | F52: =SUM(F39:F50) -> 413060.2166 | H52: =SUM(H39:H50) -> 132424.57 | I52: =IF(H52<>0,J52/H52,0) -> 0.65 | J52: =SUM(J39:J50) -> 86075.9705 | L52: =SUM(L39:L50) -> 132424.57 | M52: =IF(L52<>0,N52/L52,0) -> 1.62 | N52: =SUM(N39:N50) -> 214527.8034 | P52: =SUM(P39:P50) -> 300603.7739
B54: ='16. RTSR - Historical Wholesale'!B53 -> Add Extra Host Here (I) | D54: Network | H54: Line Connection | L54: Transformation Connection | P54: Total Line
B56: Month | D56: Units Billed | E56: Rate | F56: Amount | H56: Units Billed | I56: Rate | J56: Amount | L56: Units Billed | M56: Rate | N56: Amount | P56: Amount
B58: January | D58: ='16. RTSR - Historical Wholesale'!D57 -> 0 | E58: ='15. RTSR - UTRs & Sub-Tx'!I50 -> 0 | F58: =D58*E58 -> 0 | H58: ='16. RTSR - Historical Wholesale'!H57 -> 0 | I58: ='15. RTSR - UTRs & Sub-Tx'!I52 -> 0 | J58: =H58*I58 -> 0 | L58: ='16. RTSR - Historical Wholesale'!L57 -> 0 | M58: ='15. RTSR - UTRs & Sub-Tx'!I54 -> 0 | N58: =L58*M58 -> 0 | P58: =J58+N58 -> 0
B59: February | D59: ='16. RTSR - Historical Wholesale'!D58 -> 0 | E59: =E58 -> 0 | F59: 0 | H59: ='16. RTSR - Historical Wholesale'!H58 -> 0 | I59: =I58 -> 0 | J59: 0 | L59: ='16. RTSR - Historical Wholesale'!L58 -> 0 | M59: =M58 -> 0 | N59: 0 | P59: 0
B60: March | D60: ='16. RTSR - Historical Wholesale'!D59 -> 0 | E60: 0 | F60: 0 | H60: ='16. RTSR - Historical Wholesale'!H59 -> 0 | I60: 0 | J60: 0 | L60: ='16. RTSR - Historical Wholesale'!L59 -> 0 | M60: 0 | N60: 0 | P60: 0
B61: April | D61: ='16. RTSR - Historical Wholesale'!D60 -> 0 | E61: 0 | F61: 0 | H61: ='16. RTSR - Historical Wholesale'!H60 -> 0 | I61: 0 | J61: 0 | L61: ='16. RTSR - Historical Wholesale'!L60 -> 0 | M61: 0 | N61: 0 | P61: 0
B62: May | D62: ='16. RTSR - Historical Wholesale'!D61 -> 0 | E62: 0 | F62: 0 | H62: ='16. RTSR - Historical Wholesale'!H61 -> 0 | I62: 0 | J62: 0 | L62: ='16. RTSR - Historical Wholesale'!L61 -> 0 | M62: 0 | N62: 0 | P62: 0
B63: June | D63: ='16. RTSR - Historical Wholesale'!D62 -> 0 | E63: 0 | F63: 0 | H63: ='16. RTSR - Historical Wholesale'!H62 -> 0 | I63: 0 | J63: 0 | L63: ='16. RTSR - Historical Wholesale'!L62 -> 0 | M63: 0 | N63: 0 | P63: 0
B64: July | D64: ='16. RTSR - Historical Wholesale'!D63 -> 0 | E64: 0 | F64: 0 | H64: ='16. RTSR - Historical Wholesale'!H63 -> 0 | I64: 0 | J64: 0 | L64: ='16. RTSR - Historical Wholesale'!L63 -> 0 | M64: 0 | N64: 0 | P64: 0
B65: August | D65: ='16. RTSR - Historical Wholesale'!D64 -> 0 | E65: 0 | F65: 0 | H65: ='16. RTSR - Historical Wholesale'!H64 -> 0 | I65: 0 | J65: 0 | L65: ='16. RTSR - Historical Wholesale'!L64 -> 0 | M65: 0 | N65: 0 | P65: 0
B66: September | D66: ='16. RTSR - Historical Wholesale'!D65 -> 0 | E66: 0 | F66: 0 | H66: ='16. RTSR - Historical Wholesale'!H65 -> 0 | I66: 0 | J66: 0 | L66: ='16. RTSR - Historical Wholesale'!L65 -> 0 | M66: 0 | N66: 0 | P66: 0
B67: October | D67: ='16. RTSR - Historical Wholesale'!D66 -> 0 | E67: 0 | F67: 0 | H67: ='16. RTSR - Historical Wholesale'!H66 -> 0 | I67: 0 | J67: 0 | L67: ='16. RTSR - Historical Wholesale'!L66 -> 0 | M67: 0 | N67: 0 | P67: 0
B68: November | D68: ='16. RTSR - Historical Wholesale'!D67 -> 0 | E68: 0 | F68: 0 | H68: ='16. RTSR - Historical Wholesale'!H67 -> 0 | I68: 0 | J68: 0 | L68: ='16. RTSR - Historical Wholesale'!L67 -> 0 | M68: 0 | N68: 0 | P68: 0
B69: December | D69: ='16. RTSR - Historical Wholesale'!D68 -> 0 | E69: 0 | F69: 0 | H69: ='16. RTSR - Historical Wholesale'!H68 -> 0 | I69: 0 | J69: 0 | L69: ='16. RTSR - Historical Wholesale'!L68 -> 0 | M69: 0 | N69: 0 | P69: 0
B71: Total | D71: =SUM(D58:D69) -> 0 | E71: =IF(D71<>0,F71/D71,0) -> 0 | F71: =SUM(F58:F69) -> 0 | H71: =SUM(H58:H69) -> 0 | I71: =IF(H71<>0,J71/H71,0) -> 0 | J71: =SUM(J58:J69) -> 0 | L71: =SUM(L58:L69) -> 0 | M71: =IF(L71<>0,N71/L71,0) -> 0 | N71: =SUM(N58:N69) -> 0 | P71: =SUM(P58:P69) -> 0
B73: ='16. RTSR - Historical Wholesale'!B72 -> Add Extra Host Here (II) | D73: Network | H73: Line Connection | L73: Transformation Connection | P73: Total Line
B75: Month | D75: Units Billed | E75: Rate | F75: Amount | H75: Units Billed | I75: Rate | J75: Amount | L75: Units Billed | M75: Rate | N75: Amount | P75: Amount
B77: January | D77: ='16. RTSR - Historical Wholesale'!D76 -> 0 | E77: ='15. RTSR - UTRs & Sub-Tx'!I65 -> 0 | F77: =D77*E77 -> 0 | H77: ='16. RTSR - Historical Wholesale'!H76 -> 0 | I77: ='15. RTSR - UTRs & Sub-Tx'!I67 -> 0 | J77: =H77*I77 -> 0 | L77: ='16. RTSR - Historical Wholesale'!L76 -> 0 | M77: ='15. RTSR - UTRs & Sub-Tx'!I69 -> 0 | N77: =L77*M77 -> 0 | P77: =J77+N77 -> 0
B78: February | D78: ='16. RTSR - Historical Wholesale'!D77 -> 0 | E78: =E77 -> 0 | F78: 0 | H78: ='16. RTSR - Historical Wholesale'!H77 -> 0 | I78: =I77 -> 0 | J78: 0 | L78: ='16. RTSR - Historical Wholesale'!L77 -> 0 | M78: =M77 -> 0 | N78: 0 | P78: 0
B79: March | D79: ='16. RTSR - Historical Wholesale'!D78 -> 0 | E79: 0 | F79: 0 | H79: ='16. RTSR - Historical Wholesale'!H78 -> 0 | I79: 0 | J79: 0 | L79: ='16. RTSR - Historical Wholesale'!L78 -> 0 | M79: 0 | N79: 0 | P79: 0
B80: April | D80: ='16. RTSR - Historical Wholesale'!D79 -> 0 | E80: 0 | F80: 0 | H80: ='16. RTSR - Historical Wholesale'!H79 -> 0 | I80: 0 | J80: 0 | L80: ='16. RTSR - Historical Wholesale'!L79 -> 0 | M80: 0 | N80: 0 | P80: 0
B81: May | D81: ='16. RTSR - Historical Wholesale'!D80 -> 0 | E81: 0 | F81: 0 | H81: ='16. RTSR - Historical Wholesale'!H80 -> 0 | I81: 0 | J81: 0 | L81: ='16. RTSR - Historical Wholesale'!L80 -> 0 | M81: 0 | N81: 0 | P81: 0
B82: June | D82: ='16. RTSR - Historical Wholesale'!D81 -> 0 | E82: 0 | F82: 0 | H82: ='16. RTSR - Historical Wholesale'!H81 -> 0 | I82: 0 | J82: 0 | L82: ='16. RTSR - Historical Wholesale'!L81 -> 0 | M82: 0 | N82: 0 | P82: 0
B83: July | D83: ='16. RTSR - Historical Wholesale'!D82 -> 0 | E83: 0 | F83: 0 | H83: ='16. RTSR - Historical Wholesale'!H82 -> 0 | I83: 0 | J83: 0 | L83: ='16. RTSR - Historical Wholesale'!L82 -> 0 | M83: 0 | N83: 0 | P83: 0
B84: August | D84: ='16. RTSR - Historical Wholesale'!D83 -> 0 | E84: 0 | F84: 0 | H84: ='16. RTSR - Historical Wholesale'!H83 -> 0 | I84: 0 | J84: 0 | L84: ='16. RTSR - Historical Wholesale'!L83 -> 0 | M84: 0 | N84: 0 | P84: 0
B85: September | D85: ='16. RTSR - Historical Wholesale'!D84 -> 0 | E85: 0 | F85: 0 | H85: ='16. RTSR - Historical Wholesale'!H84 -> 0 | I85: 0 | J85: 0 | L85: ='16. RTSR - Historical Wholesale'!L84 -> 0 | M85: 0 | N85: 0 | P85: 0
B86: October | D86: ='16. RTSR - Historical Wholesale'!D85 -> 0 | E86: 0 | F86: 0 | H86: ='16. RTSR - Historical Wholesale'!H85 -> 0 | I86: 0 | J86: 0 | L86: ='16. RTSR - Historical Wholesale'!L85 -> 0 | M86: 0 | N86: 0 | P86: 0
B87: November | D87: ='16. RTSR - Historical Wholesale'!D86 -> 0 | E87: 0 | F87: 0 | H87: ='16. RTSR - Historical Wholesale'!H86 -> 0 | I87: 0 | J87: 0 | L87: ='16. RTSR - Historical Wholesale'!L86 -> 0 | M87: 0 | N87: 0 | P87: 0
B88: December | D88: ='16. RTSR - Historical Wholesale'!D87 -> 0 | E88: 0 | F88: 0 | H88: ='16. RTSR - Historical Wholesale'!H87 -> 0 | I88: 0 | J88: 0 | L88: ='16. RTSR - Historical Wholesale'!L87 -> 0 | M88: 0 | N88: 0 | P88: 0
B90: Total | D90: =SUM(D77:D88) -> 0 | E90: =IF(D90<>0,F90/D90,0) -> 0 | F90: =SUM(F77:F88) -> 0 | H90: =SUM(H77:H88) -> 0 | I90: =IF(H90<>0,J90/H90,0) -> 0 | J90: =SUM(J77:J88) -> 0 | L90: =SUM(L77:L88) -> 0 | M90: =IF(L90<>0,N90/L90,0) -> 0 | N90: =SUM(N77:N88) -> 0 | P90: =SUM(P77:P88) -> 0
B92: Total | D92: Network | H92: Line Connection | L92: Transformation Connection | P92: Total Line
B94: Month | D94: Units Billed | E94: Rate | F94: Amount | H94: Units Billed | I94: Rate | J94: Amount | L94: Units Billed | M94: Rate | N94: Amount | P94: Amount
B96: January | D96: =D20+D39 -> 87024 | E96: =IF(D96<>0,F96/D96,0) -> 3.73974823 | F96: =F20+F39 -> 325447.85 | H96: =H20+H39 -> 91530 | I96: =IF(H96<>0,J96/H96,0) -> 0.7980149678 | J96: =J20+J39 -> 73042.31 | L96: =L20+L39 -> 91530 | M96: =IF(L96<>0,N96/L96,0) -> 1.933443461 | N96: =N20+N39 -> 176968.08 | P96: =J96+N96 -> 250010.39
B97: February | D97: 79813 | E97: 3.765459762 | F97: 300532.64 | H97: 83358 | I97: 0.8046902517 | J97: 67077.37 | L97: 83358 | M97: 1.947579357 | N97: 162346.32 | P97: 229423.69
B98: March | D98: 75854 | E98: 3.749250402 | F98: 284395.64 | H98: 79998 | I98: 0.8006173904 | J98: 64047.79 | L98: 79998 | M98: 1.938954474 | N98: 155112.48 | P98: 219160.27
B99: April | D99: 88583.75 | E99: 3.749401809 | F99: 332136.0725 | H99: 103236.16 | I99: 0.7968091219 | J99: 82259.514 | L99: 103236.16 | M99: 1.930889905 | N99: 199337.6592 | P99: 281597.1732
B100: May | D100: 99261.27 | E100: 3.754044776 | F100: 372631.2521 | H100: 106143.08 | I100: 0.8011905439 | J100: 85040.832 | L100: 106143.08 | M100: 1.940168211 | N100: 205935.4296 | P100: 290976.2616
B101: June | D101: 84984.88 | E101: 3.736275352 | F101: 317526.9124 | H101: 86556.14 | I101: 0.7961189235 | J101: 68908.981 | L101: 86556.14 | M101: 1.929428309 | N101: 167003.8668 | P101: 235912.8478
B102: July | D102: 106272.08 | E102: 3.755071402 | F102: 399059.2484 | H102: 108270.08 | I102: 0.8016369989 | J102: 86793.302 | L102: 108270.08 | M102: 1.941113645 | N102: 210164.5296 | P102: 296957.8316
B103: August | D103: 95329.96 | E103: 3.749179175 | F103: 357409.1008 | H103: 98124.96 | I103: 0.8001752459 | J103: 78517.164 | L103: 98124.96 | M103: 1.938018168 | N103: 190167.9552 | P103: 268685.1192
B104: September | D104: 91271.58 | E104: 3.757338521 | F104: 342938.2234 | H104: 93538.3 | I104: 0.8023485032 | J104: 75050.315 | L104: 93538.3 | M104: 1.94262036 | N104: 181709.406 | P104: 256759.721
B105: October | D105: 86134.17 | E105: 3.747877516 | F105: 322820.3191 | H105: 97412.85 | I105: 0.8014301245 | J105: 78069.5925 | L105: 97412.85 | M105: 1.940675558 | N105: 189046.737 | P105: 267116.3295
B106: November | D106: 75222.79 | E106: 3.739199273 | F106: 281273.0017 | H106: 80026.63 | I106: 0.7980759592 | J106: 63867.3295 | L106: 80026.63 | M106: 1.93357262 | N106: 154737.3006 | P106: 218604.6301
B107: December | D107: 80429.94 | E107: 3.730851176 | F107: 300072.1362 | H107: 86443.37 | I107: 0.7960833838 | J107: 68816.1305 | L107: 86443.37 | M107: 1.929353048 | N107: 166779.7794 | P107: 235595.9099
B109: Total | D109: =SUM(D96:D107) -> 1050181.42 | E109: =IF(D109<>0,F109/D109,0) -> 3.748154673 | F109: =SUM(F96:F107) -> 3936242.397 | H109: =SUM(H96:H107) -> 1114637.57 | I109: =IF(H109<>0,J109/H109,0) -> 0.7998031418 | J109: =SUM(J96:J107) -> 891490.6305 | L109: =SUM(L96:L107) -> 1114637.57 | M109: =IF(L109<>0,N109/L109,0) -> 1.937230183 | N109: =SUM(N96:N107) -> 2159309.543 | P109: =SUM(P96:P107) -> 3050800.174
N111: Transformer Allowance Credit (if applicable) | P111: ='15. RTSR - UTRs & Sub-Tx'!I95 -> 0
N113: Total including deduction for Transformer Allowance Credit | P113: =P109+P111 -> 3050800.174

Sheet 19. RTSR Ntwrk to Curren WS
A13: The purpose of this sheet is to re-align the current RTS Network Rates to recover current wholesale network costs.
A16: Rate Class | B16: Rate Description | C16: Unit | E16: Current RTSR-Network | G16: Loss Adjusted Billed kWh | I16: Loss Adjusted Billed kW | K16: Billed Amount | M16: Billed Amount % | O16: Current Wholesale Billing | Q16: Proposed RTSR Network
A19: RESIDENTIAL | B19: Retail Transmission Rate - Network Service Rate | C19: $/kWh | E19: 0.007 | G19: 217436216.3 | I19: 0 | K19: =IF(E19="", "", IF(C19="$/kWh", E19*G19, E19*I19)) -> 1522053.514 | M19: =IF(ISERROR(K19/SUM(K19:K100)),"",K19/SUM(K19:K100)) -> 0.4023914156 | O19: =IF(ISERROR('17. RTSR - Current Wholesale'!$F$109*M19), "", '17. RTSR - Current Wholesale'!$F$109*M19) -> 1591448.863 | Q19: =IF(C19="","",IF(C19="$/kWh",IF(G19<>0,O19/G19,),IF(I19<>0,O19/I19,0))) -> 0.007319152669
A20: GENERAL SERVICE LESS THAN 50 KW | B20: Retail Transmission Rate - Network Service Rate | C20: $/kWh | E20: 0.006 | G20: 72396738.65 | I20: 0 | K20: =IF(E20="", "", IF(C20="$/kWh", E20*G20, E20*I20)) -> 434380.4319 | M20: =IF(ISERROR(K20/SUM(K19:K100)),"",K20/SUM(K19:K100)) -> 0.1148389037 | O20: =IF(ISERROR('17. RTSR - Current Wholesale'!$F$109*M20), "", '17. RTSR - Current Wholesale'!$F$109*M20) -> 454185.2425 | Q20: =IF(C20="","",IF(C20="$/kWh",IF(G20<>0,O20/G20,),IF(I20<>0,O20/I20,0))) -> 0.006273559431
A21: GENERAL SERVICE 50 TO 4,999 KW | B21: Retail Transmission Rate - Network Service Rate | C21: $/kW | E21: 2.5401 | G21: 0 | I21: 701974 | K21: =IF(E21="", "", IF(C21="$/kWh", E21*G21, E21*I21)) -> 1783084.157 | M21: =IF(ISERROR(K21/SUM(K19:K100)),"",K21/SUM(K19:K100)) -> 0.4714011378 | O21: =IF(ISERROR('17. RTSR - Current Wholesale'!$F$109*M21), "", '17. RTSR - Current Wholesale'!$F$109*M21) -> 1864380.739 | Q21: =IF(C21="","",IF(C21="$/kWh",IF(G21<>0,O21/G21,),IF(I21<>0,O21/I21,0))) -> 2.655911385
A22: UNMETERED SCATTERED LOAD | B22: Retail Transmission Rate - Network Service Rate | C22: $/kWh | E22: 0.0062 | G22: 1615879.552 | I22: 0 | K22: =IF(E22="", "", IF(C22="$/kWh", E22*G22, E22*I22)) -> 10018.45322 | M22: =IF(ISERROR(K22/SUM(K19:K100)),"",K22/SUM(K19:K100)) -> 0.002648618816 | O22: =IF(ISERROR('17. RTSR - Current Wholesale'!$F$109*M22), "", '17. RTSR - Current Wholesale'!$F$109*M22) -> 10475.22695 | Q22: =IF(C22="","",IF(C22="$/kWh",IF(G22<>0,O22/G22,),IF(I22<>0,O22/I22,0))) -> 0.006482678079
A23: SENTINEL LIGHTING | B23: Retail Transmission Rate - Network Service Rate | C23: $/kW | E23: 2.1647 | G23: 0 | I23: 3213 | K23: =IF(E23="", "", IF(C23="$/kWh", E23*G23, E23*I23)) -> 6955.1811 | M23: =IF(ISERROR(K23/SUM(K19:K100)),"",K23/SUM(K19:K100)) -> 0.001838769231 | O23: =IF(ISERROR('17. RTSR - Current Wholesale'!$F$109*M23), "", '17. RTSR - Current Wholesale'!$F$109*M23) -> 7272.290331 | Q23: =IF(C23="","",IF(C23="$/kWh",IF(G23<>0,O23/G23,),IF(I23<>0,O23/I23,0))) -> 2.263395683
A24: STREET LIGHTING | B24: Retail Transmission Rate - Network Service Rate | C24: $/kW | E24: 1.8801 | G24: 0 | I24: 13844 | K24: =IF(E24="", "", IF(C24="$/kWh", E24*G24, E24*I24)) -> 26028.1044 | M24: =IF(ISERROR(K24/SUM(K19:K100)),"",K24/SUM(K19:K100)) -> 0.006881154756 | O24: =IF(ISERROR('17. RTSR - Current Wholesale'!$F$109*M24), "", '17. RTSR - Current Wholesale'!$F$109*M24) -> 27214.80997 | Q24: =IF(C24="","",IF(C24="$/kWh",IF(G24<>0,O24/G24,),IF(I24<>0,O24/I24,0))) -> 1.965819848

Sheet 20. RTSR Adj Conn to Current WS
A13: The purpose of this sheet is to re-align the current RTS Connection Rates to recover current wholesale connection costs.
A16: Rate Class | B16: Rate Description | C16: Unit | E16: Current RTSR-Connection | G16: Loss Adjusted Billed kWh | I16: Loss Adjusted Billed kW | K16: Billed Amount | M16: Billed Amount % | O16: Current Wholesale Billing | Q16: Proposed RTSR Connection
A19: RESIDENTIAL | B19: Retail Transmission Rate - Line and Transformation Connection Service Rate | C19: $/kWh | E19: 0.0054 | G19: 217436216.3 | I19: 0 | K19: =IF(E19="", "", IF(C19="$/kWh", E19*G19, E19*I19)) -> 1174155.568 | M19: =IF(ISERROR(K19/SUM(K19:K100)),"",K19/SUM(K19:K100)) -> 0.4040337778 | O19: =IF(ISERROR('17. RTSR - Current Wholesale'!$P$113*M19), "", '17. RTSR - Current Wholesale'!$P$113*M19) -> 1236195.036 | Q19: =IF(C19="","",IF(C19="$/kWh",IF(G19<>0,O19/G19,),IF(I19<>0,O19/I19,0))) -> 0.005685322609
A20: GENERAL SERVICE LESS THAN 50 KW | B20: Retail Transmission Rate - Line and Transformation Connection Service Rate | C20: $/kWh | E20: 0.0047 | G20: 72396738.65 | I20: 0 | K20: 340264.6717 | M20: =IF(ISERROR(K20/SUM(K19:K100)),"",K20/SUM(K19:K100)) -> 0.1170870577 | O20: =IF(ISERROR('17. RTSR - Current Wholesale'!$P$113*M20), "", '17. RTSR - Current Wholesale'!$P$113*M20) -> 358243.4131 | Q20: 0.004948336345
A21: GENERAL SERVICE 50 TO 4,999 KW | B21: Retail Transmission Rate - Line and Transformation Connection Service Rate | C21: $/kW | E21: 1.9351 | G21: 0 | I21: 701974 | K21: 1358389.887 | M21: =IF(ISERROR(K21/SUM(K19:K100)),"",K21/SUM(K19:K100)) -> 0.4674298815 | O21: =IF(ISERROR('17. RTSR - Current Wholesale'!$P$113*M21), "", '17. RTSR - Current Wholesale'!$P$113*M21) -> 1430163.84 | Q21: 2.037345885
A22: UNMETERED SCATTERED LOAD | B22: Retail Transmission Rate - Line and Transformation Connection Service Rate | C22: $/kWh | E22: 0.0048 | G22: 1615879.552 | I22: 0 | K22: 7756.22185 | M22: =IF(ISERROR(K22/SUM(K19:K100)),"",K22/SUM(K19:K100)) -> 0.002668961168 | O22: =IF(ISERROR('17. RTSR - Current Wholesale'!$P$113*M22), "", '17. RTSR - Current Wholesale'!$P$113*M22) -> 8166.041379 | Q22: 0.005053620097
A23: SENTINEL LIGHTING | B23: Retail Transmission Rate - Line and Transformation Connection Service Rate | C23: $/kW | E23: 1.5793 | G23: 0 | I23: 3213 | K23: 5074.2909 | M23: =IF(ISERROR(K23/SUM(K19:K100)),"",K23/SUM(K19:K100)) -> 0.001746093089 | O23: =IF(ISERROR('17. RTSR - Current Wholesale'!$P$113*M23), "", '17. RTSR - Current Wholesale'!$P$113*M23) -> 5342.403848 | Q23: 1.662746296
A24: STREET LIGHTING | B24: Retail Transmission Rate - Line and Transformation Connection Service Rate | C24: $/kW | E24: 1.4766 | G24: 0 | I24: 13844 | K24: 20442.0504 | M24: =IF(ISERROR(K24/SUM(K19:K100)),"",K24/SUM(K19:K100)) -> 0.007034228747 | O24: =IF(ISERROR('17. RTSR - Current Wholesale'!$P$113*M24), "", '17. RTSR - Current Wholesale'!$P$113*M24) -> 21522.15765 | Q24: 1.554619882

Sheet 21. RTSR Adj Ntwk to Forcast WS
A13: The purpose of this sheet is to update the re-align RTS Network Rates to recover forecast wholesale network costs.
A16: Rate Class | B16: Rate Description | C16: Unit | E16: Adjusted RTSR-Network | G16: Loss Adjusted Billed kWh | I16: Loss Adjusted Billed kW | K16: Billed Amount | M16: Billed Amount % | O16: Forecast Wholesale Billing | Q16: Proposed RTSR Network
A19: RESIDENTIAL | B19: Retail Transmission Rate - Network Service Rate | C19: $/kWh | E19: 0.007319152669 | G19: 217436216.3 | I19: 0 | K19: =IF(E19="", "", IF(C19="$/kWh", E19*G19, E19*I19)) -> 1591448.863 | M19: =IF(ISERROR(K19/SUM(K19:K100)),"",K19/SUM(K19:K100)) -> 0.4023914156 | O19: =IF(ISERROR('18. RTSR - Forecast Wholesale'!$F$109*M19), "", '18. RTSR - Forecast Wholesale'!$F$109*M19) -> 1583910.15 | Q19: =IF(C19="","",IF(C19="$/kWh",IF(G19<>0,O19/G19,),IF(I19<>0,O19/I19,0))) -> 0.007284481755
A20: GENERAL SERVICE LESS THAN 50 KW | B20: Retail Transmission Rate - Network Service Rate | C20: $/kWh | E20: 0.006273559431 | G20: 72396738.65 | I20: 0 | K20: 454185.2425 | M20: =IF(ISERROR(K20/SUM(K19:K100)),"",K20/SUM(K19:K100)) -> 0.1148389037 | O20: =IF(ISERROR('18. RTSR - Forecast Wholesale'!$F$109*M20), "", '18. RTSR - Forecast Wholesale'!$F$109*M20) -> 452033.7616 | Q20: 0.006243841504
A21: GENERAL SERVICE 50 TO 4,999 KW | B21: Retail Transmission Rate - Network Service Rate | C21: $/kW | E21: 2.655911385 | G21: 0 | I21: 701974 | K21: 1864380.739 | M21: =IF(ISERROR(K21/SUM(K19:K100)),"",K21/SUM(K19:K100)) -> 0.4714011378 | O21: =IF(ISERROR('18. RTSR - Forecast Wholesale'!$F$109*M21), "", '18. RTSR - Forecast Wholesale'!$F$109*M21) -> 1855549.145 | Q21: 2.643330301
A22: UNMETERED SCATTERED LOAD | B22: Retail Transmission Rate - Network Service Rate | C22: $/kWh | E22: 0.006482678079 | G22: 1615879.552 | I22: 0 | K22: 10475.22695 | M22: =IF(ISERROR(K22/SUM(K19:K100)),"",K22/SUM(K19:K100)) -> 0.002648618816 | O22: =IF(ISERROR('18. RTSR - Forecast Wholesale'!$F$109*M22), "", '18. RTSR - Forecast Wholesale'!$F$109*M22) -> 10425.60567 | Q22: 0.006451969554
A23: SENTINEL LIGHTING | B23: Retail Transmission Rate - Network Service Rate | C23: $/kW | E23: 2.263395683 | G23: 0 | I23: 3213 | K23: 7272.290331 | M23: =IF(ISERROR(K23/SUM(K19:K100)),"",K23/SUM(K19:K100)) -> 0.001838769231 | O23: =IF(ISERROR('18. RTSR - Forecast Wholesale'!$F$109*M23), "", '18. RTSR - Forecast Wholesale'!$F$109*M23) -> 7237.841404 | Q23: 2.252673951
A24: STREET LIGHTING | B24: Retail Transmission Rate - Network Service Rate | C24: $/kW | E24: 1.965819848 | G24: 0 | I24: 13844 | K24: 27214.80997 | M24: =IF(ISERROR(K24/SUM(K19:K100)),"",K24/SUM(K19:K100)) -> 0.006881154756 | O24: =IF(ISERROR('18. RTSR - Forecast Wholesale'!$F$109*M24), "", '18. RTSR - Forecast Wholesale'!$F$109*M24) -> 27085.89309 | Q24: 1.956507735

Sheet 22. RTSR Adj Conn. to Forcst WS
A13: The purpose of this sheet is to update the re-aligned RTS Connection Rates to recover forecast wholesale connection costs.
A16: Rate Class | B16: Rate Description | C16: Unit | E16: Adjusted RTSR-Connection | G16: Loss Adjusted Billed kWh | I16: Loss Adjusted Billed kW | K16: Billed Amount | M16: Billed Amount % | O16: Forecast Wholesale Billing | Q16: Proposed RTSR Connection
A19: RESIDENTIAL | B19: Retail Transmission Rate - Line and Transformation Connection Service Rate | C19: $/kWh | E19: 0.005685322609 | G19: 217436216.3 | I19: 0 | K19: =IF(E19="", "", IF(C19="$/kWh", E19*G19, E19*I19)) -> 1236195.036 | M19: =IF(ISERROR(K19/SUM(K19:K100)),"",K19/SUM(K19:K100)) -> 0.4040337778 | O19: =IF(ISERROR('18. RTSR - Forecast Wholesale'!$P$113*M19), "", '18. RTSR - Forecast Wholesale'!$P$113*M19) -> 1232626.32 | Q19: =IF(C19="","",IF(C19="$/kWh",IF(G19<>0,O19/G19,),IF(I19<>0,O19/I19,0))) -> 0.005668909902
A20: GENERAL SERVICE LESS THAN 50 KW | B20: Retail Transmission Rate - Line and Transformation Connection Service Rate | C20: $/kWh | E20: 0.004948336345 | G20: 72396738.65 | I20: 0 | K20: 358243.4131 | M20: =IF(ISERROR(K20/SUM(K19:K100)),"",K20/SUM(K19:K100)) -> 0.1170870577 | O20: =IF(ISERROR('18. RTSR - Forecast Wholesale'!$P$113*M20), "", '18. RTSR - Forecast Wholesale'!$P$113*M20) -> 357209.216 | Q20: 0.004934051211
A21: GENERAL SERVICE 50 TO 4,999 KW | B21: Retail Transmission Rate - Line and Transformation Connection Service Rate | C21: $/kW | E21: 2.037345885 | G21: 0 | I21: 701974 | K21: 1430163.84 | M21: =IF(ISERROR(K21/SUM(K19:K100)),"",K21/SUM(K19:K100)) -> 0.4674298815 | O21: =IF(ISERROR('18. RTSR - Forecast Wholesale'!$P$113*M21), "", '18. RTSR - Forecast Wholesale'!$P$113*M21) -> 1426035.164 | Q21: 2.031464362
A22: UNMETERED SCATTERED LOAD | B22: Retail Transmission Rate - Line and Transformation Connection Service Rate | C22: $/kWh | E22: 0.005053620097 | G22: 1615879.552 | I22: 0 | K22: 8166.041379 | M22: =IF(ISERROR(K22/SUM(K19:K100)),"",K22/SUM(K19:K100)) -> 0.002668961168 | O22: =IF(ISERROR('18. RTSR - Forecast Wholesale'!$P$113*M22), "", '18. RTSR - Forecast Wholesale'!$P$113*M22) -> 8142.467195 | Q22: 0.005039031024
A23: SENTINEL LIGHTING | B23: Retail Transmission Rate - Line and Transformation Connection Service Rate | C23: $/kW | E23: 1.662746296 | G23: 0 | I23: 3213 | K23: 5342.403848 | M23: =IF(ISERROR(K23/SUM(K19:K100)),"",K23/SUM(K19:K100)) -> 0.001746093089 | O23: =IF(ISERROR('18. RTSR - Forecast Wholesale'!$P$113*M23), "", '18. RTSR - Forecast Wholesale'!$P$113*M23) -> 5326.981098 | Q23: 1.657946187
A24: STREET LIGHTING | B24: Retail Transmission Rate - Line and Transformation Connection Service Rate | C24: $/kW | E24: 1.554619882 | G24: 0 | I24: 13844 | K24: 21522.15765 | M24: =IF(ISERROR(K24/SUM(K19:K100)),"",K24/SUM(K19:K100)) -> 0.007034228747 | O24: =IF(ISERROR('18. RTSR - Forecast Wholesale'!$P$113*M24), "", '18. RTSR - Forecast Wholesale'!$P$113*M24) -> 21460.02629 | Q24: 1.550131919

Sheet 23. RTSR Final 2015 RTS Rates
A13: This sheet lists proposed RTSRs for all classes. No input required.
A16: Rate Class | B16: Rate Description | C16: Unit | E16: Proposed Retail Transmission Rate
A19: RESIDENTIAL | B19: Retail Transmission Rate - Network Service Rate | C19: $/kWh | E19: 0.007319152669
A20: RESIDENTIAL | B20: Retail Transmission Rate - Line and Transformation Connection Service Rate | C20: $/kWh | E20: 0.005685322609
A21: GENERAL SERVICE LESS THAN 50 KW | B21: Retail Transmission Rate - Network Service Rate | C21: $/kWh | E21: 0.006273559431
A22: GENERAL SERVICE LESS THAN 50 KW | B22: Retail Transmission Rate - Line and Transformation Connection Service Rate | C22: $/kWh | E22: 0.004948336345
A23: GENERAL SERVICE 50 TO 4,999 KW | B23: Retail Transmission Rate - Network Service Rate | C23: $/kW | E23: 2.655911385
A24: GENERAL SERVICE 50 TO 4,999 KW | B24: Retail Transmission Rate - Line and Transformation Connection Service Rate | C24: $/kW | E24: 2.037345885
A25: UNMETERED SCATTERED LOAD | B25: Retail Transmission Rate - Network Service Rate | C25: $/kWh | E25: 0.006482678079
A26: UNMETERED SCATTERED LOAD | B26: Retail Transmission Rate - Line and Transformation Connection Service Rate | C26: $/kWh | E26: 0.005053620097
A27: SENTINEL LIGHTING | B27: Retail Transmission Rate - Network Service Rate | C27: $/kW | E27: 2.263395683
A28: SENTINEL LIGHTING | B28: Retail Transmission Rate - Line and Transformation Connection Service Rate | C28: $/kW | E28: 1.662746296
A29: STREET LIGHTING | B29: Retail Transmission Rate - Network Service Rate | C29: $/kW | E29: 1.965819848
A30: STREET LIGHTING | B30: Retail Transmission Rate - Line and Transformation Connection Service Rate | C30: $/kW | E30: 1.554619882

Sheet 24. Rev2Cost_GDPIPI
Y1: FALSE | Z1: 0 | AC1: NO
Y2: TRUE
A12: If applicable, please enter any adjustments related to the revenue to cost ratio model into columns C and E. The Price Escalator and Stretch Factor have been set at the 2014 values and will be updated by Board staff at a later date.
A15: Price Escalator | B15: 0.016 | C15: Choose Stretch Factor Group | E15: IV
A16: Productivity Factor | B16: 0 | C16: Associated Stretch Factor Value | E16: =IF(E15="I", 0%, IF(E15="II", 0.15%, IF(E15="III", 0.3%, IF(E15="IV", 0.45%, 0.6%)))) -> 0.0045
A17: Price Cap Index | B17: =B15-B16-E16 -> 0.0115
B19: Current MFC | C19: MFC Adjustment from R/C Model | D19: Current Volumetric Charge | E19: DVR Adjustment from R/C Model | F19: Price Cap Index to be Applied to MFC and DVR | G19: Proposed MFC | H19: Proposed Volumetric Charge
A20: Rate Class
A22: RESIDENTIAL | F22: =$B$17 -> 0.0115 | G22: =ROUND(SUM(B22,C22)*(1+F22),2) -> 0 | H22: =ROUND(SUM(D22,E22)*(1+F22),4) -> 0
A23: GENERAL SERVICE LESS THAN 50 KW | F23: 0.0115 | G23: 0 | H23: 0
A24: GENERAL SERVICE 50 TO 4,999 KW | F24: 0.0115 | G24: 0 | H24: 0
A25: UNMETERED SCATTERED LOAD | F25: 0.0115 | G25: 0 | H25: 0
A26: SENTINEL LIGHTING | F26: 0.0115 | G26: 0 | H26: 0
A27: STREET LIGHTING | F27: 0.0115 | G27: 0 | H27: 0

Sheet 24. hidden (hidden)
A1: Rate Class | B1: MFC Adjustment from R/C Model | C1: DVR Adjustment from R/C Model

Sheet 25. Other Charges & LF
A11: Please enter the following charges as found on your most recent Board-Approved Tariff Schedule. The standard Allowance rates have been included as default entries. If you have different rates, please make the appropriate corrections in the applicable cells below. As well, please enter the current Specific Service Charges below. The standard Retail Service Charges have been entered below. If you have different rates, please make the appropriate corrections in columns A, C or D as applicable (cells are unlocked).
C13: UNIT | D13: RATE
A15: ALLOWANCES
A17: Transformer Allowance for Ownership - per kW of billing demand/month
A20: Primary Metering Allowance for transformer losses – applied to measured demand and energy
A22: SPECIFIC SERVICE CHARGES
A24: APPLICATION
A26: The application of these rates and charges shall be in accordance with the Licence of the Distributor and any Code or Order of the Board, and amendments thereto as approved by the Board, which may be applicable to the administration of this schedule.
A27: No charges to meet the costs of any work or service done or furnished for the purpose of the distribution of electricity shall be made except as permitted by this schedule, unless required by the Distributor’s Licence or a Code or Order of the Board, and amendments thereto as approved by the Board, or as specified herein.
A28: It should be noted that this schedule does not list any charges, assessments or credits that are required by law to be invoiced by a distributor and that are not subject to Board approval, such as the Debt Retirement Charge, the Global Adjustment, the Ontario Clean Energy Benefit and the HST.
A30: Customer Administration
A67: Non-Payment of Account
A116: RETAIL SERVICE CHARGES (if applicable)
A118: The application of these rates and charges shall be in accordance with the Licence of the Distributor and any Code or Order of the Board, and amendments thereto as approved by the Board, which may be applicable to the administration of this schedule.
A120: No rates and charges for the distribution of electricity and charges to meet the costs of any work or service done or furnished for the purpose of the distribution of electricity shall be made except as permitted by this schedule, unless required by the Distributor’s Licence or a Code or Order of the Board, and amendments thereto as approved by the Board, or as specified herein.
A122: Unless specifically noted, this schedule does not contain any charges for the electricity commodity, be it under the Regulated Price Plan, a contract with a retailer or the wholesale market price, as applicable.
A124: It should be noted that this schedule does not list any charges, assessments, or credits that are required by law to be invoiced by a distributor and that are not subject to Board approval, such as the Debt Retirement Charge, the Global Adjustment, the Ontario Clean Energy Benefit and the HST.
A126: Retail Service Charges refer to services provided by a distributor to retailers or customers related to the supply of competitive electricity.
A128: One-time charge, per retailer, to establish the service agreement between the distributor and the retailer | C128: $ | D128: 100
A129: Monthly Fixed Charge, per retailer | C129: $ | D129: 20
A130: Monthly Variable Charge, per customer, per retailer | C130: $/cust. | D130: 0.5
A131: Distributor-consolidated billing monthly charge, per customer, per retailer | C131: $/cust. | D131: 0.3
A132: Retailer-consolidated billing monthly credit, per customer, per retailer | C132: $/cust. | D132: -0.3
A133: Service Transaction Requests (STR)
A134: Request fee, per request, applied to the requesting party | C134: $ | D134: 0.25
A135: Processing fee, per request, applied to the requesting party | C135: $ | D135: 0.5
A136: Request for customer information as outlined in Section 10.6.3 and Chapter 11 of the Retail
A137: Settlement Code directly to retailers and customers, if not delivered electronically through the
A138: Electronic Business Transaction (EBT) system, applied to the requesting party
A139: Up to twice a year | C139: $ | D139: no charge
A140: More than twice a year, per request (plus incremental delivery costs) | C140: $ | D140: 2
A143: LOSS FACTORS
A145: If the distributor is not capable of prorating changed loss factors jointly with distribution rates, the revised loss factors will be implemented upon the first subsequent billing for each billing cycle.
A148: Total Loss Factor – Secondary Metered Customer < 5,000 kW | D148: 1 | H148: TLF_Secondary_LT_5000kW
H149: TLF_Primary_LT_5000kW

Sheet 26. Proposed Rates
Z1: 3
L5: =ROUND(LEN(B5), -2) / 100 -> 0
L9: =ROUND(LEN(B9), -2) / 100 -> 0
B12: In the Green Cells below, enter any proposed rate riders that are not already included in this model (e.g: ICM rate riders). In column B, the rate rider descriptions must begin with "Rate Rider for". In column C, choose the associated unit from the drop-down menu. In column D, enter the rate. All rate riders with a "$" unit will be rounded to 2 decimal places and all others will be rounded to 4 decimal places.
A20: RESIDENTIAL | B20: RESIDENTIAL SERVICE CLASSIFICATION | C20: Unit | D20: Rate
A21: RESIDENTIAL
A22: RESIDENTIAL
A23: RESIDENTIAL
A24: RESIDENTIAL
A25: RESIDENTIAL
A26: RESIDENTIAL
A27: RESIDENTIAL
A28: RESIDENTIAL
A29: RESIDENTIAL
A30: RESIDENTIAL
A32: STREET LIGHTING | B32: STREET LIGHTING SERVICE CLASSIFICATION | C32: Unit | D32: Rate
A33: STREET LIGHTING
A34: STREET LIGHTING
A35: STREET LIGHTING
A36: STREET LIGHTING
A37: STREET LIGHTING
A38: STREET LIGHTING
A39: STREET LIGHTING
A40: STREET LIGHTING
A41: STREET LIGHTING
A42: STREET LIGHTING
A44: STANDBY POWER | B44: STANDBY POWER SERVICE CLASSIFICATION | C44: Unit | D44: Rate
A45: STANDBY POWER
A46: STANDBY POWER
A47: STANDBY POWER
A48: STANDBY POWER
A49: STANDBY POWER
A50: STANDBY POWER
A51: STANDBY POWER
A52: STANDBY POWER
A53: STANDBY POWER
A54: STANDBY POWER
B58: PROPOSED MONTHLY RATES AND CHARGES - Regulatory Component
A60: Wholesale Market Service Rate | B60: Wholesale Market Service Rate | C60: $/kWh | D60: 0.0044
A61: Rural or Remote Electricity Rate Protection Charge (RRRP) | B61: Rural or Remote Electricity Rate Protection Charge (RRRP) | C61: $/kWh | D61: 0.0013
A62: Standard Supply Service - Administrative Charge (if applicable) | B62: Standard Supply Service - Administrative Charge (if applicable) | C62: $ | D62: 0.25

Sheet 26. Hidden (hidden)
A1: RESIDENTIAL | B1: RESIDENTIAL SERVICE CLASSIFICATION | C1: Unit | D1: Rate
A2: RESIDENTIAL
A3: RESIDENTIAL
A4: RESIDENTIAL
A5: RESIDENTIAL
A6: RESIDENTIAL
A7: RESIDENTIAL
A8: RESIDENTIAL
A9: RESIDENTIAL
A10: RESIDENTIAL
A11: RESIDENTIAL
A13: GENERAL SERVICE LESS THAN 50 KW | B13: GENERAL SERVICE LESS THAN 50 KW SERVICE CLASSIFICATION | C13: Unit | D13: Rate
A14: GENERAL SERVICE LESS THAN 50 KW
A15: GENERAL SERVICE LESS THAN 50 KW
A16: GENERAL SERVICE LESS THAN 50 KW
A17: GENERAL SERVICE LESS THAN 50 KW
A18: GENERAL SERVICE LESS THAN 50 KW
A19: GENERAL SERVICE LESS THAN 50 KW
A20: GENERAL SERVICE LESS THAN 50 KW
A21: GENERAL SERVICE LESS THAN 50 KW
A22: GENERAL SERVICE LESS THAN 50 KW
A23: GENERAL SERVICE LESS THAN 50 KW
A25: GENERAL SERVICE 50 TO 4,999 KW | B25: GENERAL SERVICE 50 TO 4,999 KW SERVICE CLASSIFICATION | C25: Unit | D25: Rate
A26: GENERAL SERVICE 50 TO 4,999 KW
A27: GENERAL SERVICE 50 TO 4,999 KW
A28: GENERAL SERVICE 50 TO 4,999 KW
A29: GENERAL SERVICE 50 TO 4,999 KW
A30: GENERAL SERVICE 50 TO 4,999 KW
A31: GENERAL SERVICE 50 TO 4,999 KW
A32: GENERAL SERVICE 50 TO 4,999 KW
A33: GENERAL SERVICE 50 TO 4,999 KW
A34: GENERAL SERVICE 50 TO 4,999 KW
A35: GENERAL SERVICE 50 TO 4,999 KW
A37: UNMETERED SCATTERED LOAD | B37: UNMETERED SCATTERED LOAD SERVICE CLASSIFICATION | C37: Unit | D37: Rate
A38: UNMETERED SCATTERED LOAD
A39: UNMETERED SCATTERED LOAD
A40: UNMETERED SCATTERED LOAD
A41: UNMETERED SCATTERED LOAD
A42: UNMETERED SCATTERED LOAD
A43: UNMETERED SCATTERED LOAD
A44: UNMETERED SCATTERED LOAD
A45: UNMETERED SCATTERED LOAD
A46: UNMETERED SCATTERED LOAD
A47: UNMETERED SCATTERED LOAD
A49: SENTINEL LIGHTING | B49: SENTINEL LIGHTING SERVICE CLASSIFICATION | C49: Unit | D49: Rate
A50: SENTINEL LIGHTING
A51: SENTINEL LIGHTING
A52: SENTINEL LIGHTING
A53: SENTINEL LIGHTING
A54: SENTINEL LIGHTING
A55: SENTINEL LIGHTING
A56: SENTINEL LIGHTING
A57: SENTINEL LIGHTING
A58: SENTINEL LIGHTING
A59: SENTINEL LIGHTING
A61: STREET LIGHTING | B61: STREET LIGHTING SERVICE CLASSIFICATION | C61: Unit | D61: Rate
A62: STREET LIGHTING
A63: STREET LIGHTING
A64: STREET LIGHTING
A65: STREET LIGHTING
A66: STREET LIGHTING
A67: STREET LIGHTING
A68: STREET LIGHTING
A69: STREET LIGHTING
A70: STREET LIGHTING
A71: STREET LIGHTING
A73: microFIT | B73: microFIT SERVICE CLASSIFICATION | C73: Unit | D73: Rate
A74: microFIT
A75: microFIT
A76: microFIT
A77: microFIT
A78: microFIT
A79: microFIT
A80: microFIT
A81: microFIT
A82: microFIT
A83: microFIT
B87: PROPOSED MONTHLY RATES AND CHARGES - Regulatory Component
A89: Wholesale Market Service Rate | B89: Wholesale Market Service Rate | C89: $/kWh | D89: 0.0044
A90: Rural or Remote Electricity Rate Protection Charge (RRRP) | B90: Rural or Remote Electricity Rate Protection Charge (RRRP) | C90: $/kWh | D90: 0.0013
A91: Standard Supply Service - Administrative Charge (if applicable) | B91: Standard Supply Service - Administrative Charge (if applicable) | C91: $ | D91: 0.25

Sheet 27. Final Tariff Schedule
A1: hidden column | B1: ='1. Information Sheet'!F14 -> Canadian Niagara Power Inc. | F1: hidden column | Z1: 3
A2: for rate classes | B2: TARIFF OF RATES AND CHARGES | F2: for proposed
B3: ="Effective and Implementation Date " & TEXT('1. Information Sheet'!F26, "mmmm dd, yyyy") -> Effective and Implementation Date January 01, 2015 | F3: labeliing
B5: This schedule supersedes and replaces all previously
B6: approved schedules of Rates, Charges and Loss Factors | L6: =ROUND(LEN(B6), -2) / 100 -> 1
B7: =IF(LEN('1. Information Sheet'!F18)=0, "Please enter your assigned EB# on Sheet 1", '1. Information Sheet'!F18) -> EB-2014-0061
B9: RESIDENTIAL SERVICE CLASSIFICATION
L11: =ROUND(LEN(B11), -2) / 100 -> 0
B13: APPLICATION
L15: =ROUND(LEN(B15), -2) / 100 -> 0
L17: =ROUND(LEN(B17), -2) / 100 -> 0
L19: =ROUND(LEN(B19), -2) / 100 -> 0
L21: =ROUND(LEN(B21), -2) / 100 -> 0
B23: MONTHLY RATES AND CHARGES - Delivery Component
A25: RESIDENTIAL
A26: RESIDENTIAL | B26: MONTHLY RATES AND CHARGES - Regulatory Component
A27: RESIDENTIAL
A28: RESIDENTIAL | B28: Wholesale Market Service Rate | D28: $/kWh | E28: 0.0044 | K28: 1_P_WMSR
A29: RESIDENTIAL | B29: Rural or Remote Electricity Rate Protection Charge (RRRP) | D29: $/kWh | E29: 0.0013 | K29: 1_P_RRPC
A30: RESIDENTIAL | B30: Standard Supply Service - Administrative Charge (if applicable) | D30: $ | E30: 0.25 | K30: 1_P_SSS
B32: STREET LIGHTING SERVICE CLASSIFICATION
L34: =ROUND(LEN(B34), -2) / 100 -> 0
B36: APPLICATION
L38: =ROUND(LEN(B38), -2) / 100 -> 0
L40: =ROUND(LEN(B40), -2) / 100 -> 0
L42: =ROUND(LEN(B42), -2) / 100 -> 0
L44: =ROUND(LEN(B44), -2) / 100 -> 0
B46: MONTHLY RATES AND CHARGES - Delivery Component
A48: STREET LIGHTING
A49: STREET LIGHTING | B49: MONTHLY RATES AND CHARGES - Regulatory Component
A50: STREET LIGHTING
A51: STREET LIGHTING | B51: Wholesale Market Service Rate | D51: $/kWh | E51: 0.0044 | K51: 2_P_WMSR
A52: STREET LIGHTING | B52: Rural or Remote Electricity Rate Protection Charge (RRRP) | D52: $/kWh | E52: 0.0013 | K52: 2_P_RRPC
A53: STREET LIGHTING | B53: Standard Supply Service - Administrative Charge (if applicable) | D53: $ | E53: 0.25 | K53: 2_P_SSS
B55: STANDBY POWER SERVICE CLASSIFICATION
L57: =ROUND(LEN(B57), -2) / 100 -> 0
B59: APPLICATION
L61: =ROUND(LEN(B61), -2) / 100 -> 0
L63: =ROUND(LEN(B63), -2) / 100 -> 0
L65: =ROUND(LEN(B65), -2) / 100 -> 0
L67: =ROUND(LEN(B67), -2) / 100 -> 0
B69: MONTHLY RATES AND CHARGES - Delivery Component
A71: STANDBY POWER
A72: STANDBY POWER | B72: MONTHLY RATES AND CHARGES - Regulatory Component
A73: STANDBY POWER
A74: STANDBY POWER | B74: Wholesale Market Service Rate | D74: $/kWh | E74: 0.0044 | K74: 3_P_WMSR
A75: STANDBY POWER | B75: Rural or Remote Electricity Rate Protection Charge (RRRP) | D75: $/kWh | E75: 0.0013 | K75: 3_P_RRPC
A76: STANDBY POWER | B76: Standard Supply Service - Administrative Charge (if applicable) | D76: $ | E76: 0.25 | K76: 3_P_SSS
B78: ALLOWANCES
B80: Transformer Allowance for Ownership - per kW of billing demand/month
B81: Primary Metering Allowance for transformer losses – applied to measured demand and energy
B83: SPECIFIC SERVICE CHARGES
B85: The application of these rates and charges shall be in accordance with the Licence of the Distributor and any Code or Order of the Board, and amendments thereto as approved by the Board, which may be applicable to the administration of this schedule.
B87: No charges to meet the costs of any work or service done or furnished for the purpose of the distribution of electricity shall be made except as permitted by this schedule, unless required by the Distributor’s Licence or a Code or Order of the Board, and amendments thereto as approved by the Board, or as specified herein.
B89: It should be noted that this schedule does not list any charges, assessments, or credits that are required by law to be invoiced by a distributor and that are not subject to Board approval, such as the Debt Retirement Charge, the Global Adjustment, the Ontario Clean Energy Benefit and the HST.
B91: Customer Administration
B94: Non-Payment of Account
B97: RETAIL SERVICE CHARGES (if applicable)
B99: The application of these rates and charges shall be in accordance with the Licence of the Distributor and any Code or Order of the Board, and amendments thereto as approved by the Board, which may be applicable to the administration of this schedule.
B101: No rates and charges for the distribution of electricity and charges to meet the costs of any work or service done or furnished for the purpose of the distribution of electricity shall be made except as permitted by this schedule, unless required by the Distributor’s Licence or a Code or Order of the Board, and amendments thereto as approved by the Board, or as specified herein.
B103: Unless specifically noted, this schedule does not contain any charges for the electricity commodity, be it under the Regulated Price Plan, a contract with a retailer or the wholesale market price, as applicable.
B105: It should be noted that this schedule does not list any charges, assessments, or credits that are required by law to be invoiced by a distributor and that are not subject to Board approval, such as the Debt Retirement Charge, the Global Adjustment, the Ontario Clean Energy Benefit and the HST.
B107: Retail Service Charges refer to services provided by a distributor to retailers or customers related to the supply of competitive electricity.
B109: One-time charge, per retailer, to establish the service agreement between the distributor and the retailer | D109: $ | E109: 100
B110: Monthly Fixed Charge, per retailer | D110: $ | E110: 20
B111: Monthly Variable Charge, per customer, per retailer | D111: $/cust. | E111: 0.5
B112: Distributor-consolidated billing monthly charge, per customer, per retailer | D112: $/cust. | E112: 0.3
B113: Retailer-consolidated billing monthly credit, per customer, per retailer | D113: $/cust. | E113: -0.3
B114: Service Transaction Requests (STR)
B115: Request fee, per request, applied to the requesting party | D115: $ | E115: 0.25
B116: Processing fee, per request, applied to the requesting party | D116: $ | E116: 0.5
B117: Request for customer information as outlined in Section 10.6.3 and Chapter 11 of the Retail
B118: Settlement Code directly to retailers and customers, if not delivered electronically through the
B119: Electronic Business Transaction (EBT) system, applied to the requesting party
B120: Up to twice a year | D120: $ | E120: no charge
B121: More than twice a year, per request (plus incremental delivery costs) | D121: $ | E121: 2
B123: LOSS FACTORS
B125: If the distributor is not capable of prorating changed loss factors jointly with distribution rates, the revised loss factors will be implemented upon the first subsequent billing for each billing cycle.
B127: Total Loss Factor – Secondary Metered Customer < 5,000 kW | E127: 1 | K127: TLF_Secondary_LT_5000kW

Sheet 14. Bill Impacts (hidden)
Z1: =MATCH(A13, '3. Rate Class Selection'!B19:B40,0) -> 1 | AA1: =VLOOKUP(A13, lists!AO:AP,2,0) -> kWh
A11: Choose a Rate Class from the drop-down menu below and click UPDATE. For Street Lighting and USL classes, please ensure that the number of customers is manually entered into cells B30 and B31. Click the UPDATE button to refresh the sheet.
A13: RESIDENTIAL | F13: =IF(ISERROR(SEARCH("MicroFit",A13,1))=FALSE,"Bill impact presentation for this class does not exist.", "") -> 
A15: Consumption | B15: =730*D15*B17 -> 3650000 | C15: kWh | D15: 10000 | E15: =IF(AA1 = "kWh", "", "kW") -> 
A16: RPP Tier One | B16: 600 | C16: kWh | E16: 1
A17: Load Factor | B17: 0.5
A18: Loss Factor | B18: 1
B21: CURRENT ESTIMATED BILL | E21: PROPOSED ESTIMATED BILL
B22: Volume | C22: Current Rate ($) | D22: Current Charge ($) | E22: Volume | F22: Proposed Rate ($) | G22: Proposed Charge ($) | I22: Change ($) | J22: Change (%) | K22: % of Total RPP Bill | L22: % of Total TOU Bill
A23: Energy First Tier (kWh) | B23: 3650000 | C23: 0.075 | D23: =B23*C23 -> 273750 | E23: =B23 -> 3650000 | F23: =C23 -> 0.075 | G23: =E23*F23 -> 273750 | I23: =G23-D23 -> 0 | J23: =I23/D23 -> 0 | K23: =G23/G48 -> 0.8646078577
A24: Energy Second Tier (kWh) | B24: 0 | C24: 0.088 | D24: =B24*C24 -> 0 | E24: =B24 -> 0 | F24: =C24 -> 0.088 | G24: =E24*F24 -> 0 | I24: =G24-D24 -> 0 | J24: 0 | K24: =G24/G48 -> 0
A26: TOU - Off Peak | B26: =0.64*$B$15*$B$18 -> 2336000 | C26: 0.065 | D26: =C26*B26 -> 151840 | E26: =B26 -> 2336000 | F26: =C26 -> 0.065 | G26: =F26*E26 -> 151840 | I26: =G26-D26 -> 0 | J26: =I26/D26 -> 0 | L26: =G26/G54 -> 0.449726096
A27: TOU - Mid Peak | B27: =0.18*$B$15*$B$18 -> 657000 | C27: 0.1 | D27: =C27*B27 -> 65700 | E27: =B27 -> 657000 | F27: =C27 -> 0.1 | G27: =F27*E27 -> 65700 | H27: =G27*F27 -> 6570 | I27: =G27-D27 -> 0 | J27: =I27/D27 -> 0 | L27: =G27/G54 -> 0.1945930223
A28: TOU - On Peak | B28: =0.18*$B$15*$B$18 -> 657000 | C28: 0.117 | D28: 76869 | F28: =C28 -> 0.117 | G28: =F28*E28 -> 0 | H28: =G28*F28 -> 0 | J28: =I28/D28 -> 0 | L28: =G28/G54 -> 0
A30: Service Charge | B30: 1 | D30: 0 | G30: =F30*E30 -> 0 | H30: 0 | J30: 0 | K30: 0 | L30: 0
A31: Service Charge Rate Rider(s) | B31: 1 | C31: 0 | D31: 0 | F31: 0 | G31: 0 | H31: 0 | J31: 0 | K31: 0 | L31: 0
A32: Distribution Volumetric Rate | B32: 10000 | D32: 0 | E32: =B32 -> 10000 | G32: 0 | H32: 0 | I32: =G32-D32 -> 0 | J32: 0 | K32: 0 | L32: 0
A33: Low Voltage Volumetric Rate | B33: 10000 | D33: 0 | G33: 0 | H33: 0 | J33: 0 | K33: 0 | L33: 0
A34: Distribution Volumetric Rate Rider(s) | B34: 10000 | C34: 0 | D34: 0 | F34: 1.2025 | G34: 0 | H34: 0 | J34: 0 | K34: =G34/G48 -> 0 | L34: =G34/G54 -> 0
A35: Total: Distribution | D35: =ROUND(SUM(D30:D34),2) -> 0 | G35: =ROUND(SUM(G30:G34),2) -> 0 | J35: 0 | K35: =G35/G48 -> 0 | L35: =G35/G54 -> 0
A36: Total: Retail Transmission
A37: Sub-Total: Delivery (Distribution and Retail Transmission) | D37: =SUM(D36,D35) -> 0 | G37: =SUM(G36,G35) -> 0 | J37: 0 | K37: =G37/G48 -> 0 | L37: =G37/G54 -> 0
A38: Wholesale Market Service Rate | B38: 3650000 | C38: 0 | D38: =B38*C38 -> 0 | F38: =C38 -> 0 | G38: =E38*F38 -> 0 | J38: 0 | K38: 0 | L38: 0
A39: Rural Rate Protection Charge | B39: 3650000 | C39: 0 | D39: =B39*C39 -> 0 | E39: 3650000 | F39: 0 | G39: =E39*F39 -> 0 | I39: =G39-D39 -> 0 | J39: 0 | K39: 0 | L39: 0
A40: Standard Supply Service – Administration Charge (if applicable) | B40: 1 | C40: 0 | D40: =B40*C40 -> 0 | E40: 1 | F40: 0 | G40: =E40*F40 -> 0 | I40: =G40-D40 -> 0 | J40: 0 | K40: 0 | L40: 0
A41: Sub-Total: Regulatory | D41: =SUM(D38:D40) -> 0 | G41: =SUM(G38:H40) -> 0 | I41: =G41-D41 -> 0 | J41: 0 | K41: 0 | L41: 0
A42: Debt Retirement Charge (DRC) | B42: 3650000 | C42: 0.007 | D42: =B42*C42 -> 25550 | E42: =B42 -> 3650000 | F42: =C42 -> 0.007 | G42: =E42*F42 -> 25550 | I42: =G42-D42 -> 0 | J42: =I42/D42 -> 0 | K42: =G42/G48 -> 0.08069673339 | L42: =G42/G54 -> 0.07567506422
A44: Total Bill on RPP (before taxes) | D44: 299300 | G44: 311325 | I44: =G44-D44 -> 12025 | J44: =I44/D44 -> 0.04017707985 | K44: =G44/G48 -> 0.9832841691
A45: HST | C45: 0.13 | D45: =C45*D44 -> 38909 | F45: =C45 -> 0.13 | G45: =F45*G44 -> 40472.25 | I45: =G45-D45 -> 1563.25 | J45: =I45/D45 -> 0.04017707985 | K45: =G45/G48 -> 0.127826942
A46: Total Bill (including HST) | D46: =D45+D44 -> 338209 | G46: =G45+G44 -> 351797.25 | I46: =G46-D46 -> 13588.25 | J46: =I46/D46 -> 0.04017707985 | K46: =G46/G48 -> 1.111111111
A47: Ontario Clean Energy Benefit (OCEB) | C47: -0.1 | D47: =-0.1*D46 -> -33820.9 | F47: =C47 -> -0.1 | G47: =-0.1*G46 -> -35179.725 | I47: =G47-D47 -> -1358.825 | J47: =I47/D47 -> 0.04017707985 | K47: =G47/G48 -> -0.1111111111
A48: Total Bill on RPP (including OCEB) | D48: =D46+D47 -> 304388.1 | G48: =G46+G47 -> 316617.525 | I48: =G48-D48 -> 12229.425 | J48: =I48/D48 -> 0.04017707985 | K48: =G48/G48 -> 1
A50: Total Bill on TOU (before taxes) | D50: 319959 | G50: 331984 | I50: =G50-D50 -> 12025 | J50: =I50/D50 -> 0.03758294031 | L50: =G50/G54 -> 0.9832841691
A51: HST | C51: 0.13 | D51: =C51*D50 -> 41594.67 | F51: =C51 -> 0.13 | G51: =F51*G50 -> 43157.92 | I51: =G51-D51 -> 1563.25 | J51: =I51/D51 -> 0.03758294031 | L51: =G51/G54 -> 0.127826942
A52: Total Bill (including HST) | D52: =D51+D50 -> 361553.67 | G52: =G51+G50 -> 375141.92 | I52: =G52-D52 -> 13588.25 | J52: =I52/D52 -> 0.03758294031 | L52: =G52/G54 -> 1.111111111
A53: Ontario Clean Energy Benefit (OCEB) | C53: -0.1 | D53: =-0.1*D52 -> -36155.367 | F53: =C53 -> -0.1 | G53: =-0.1*G52 -> -37514.192 | I53: =G53-D53 -> -1358.825 | J53: =I53/D53 -> 0.03758294031 | L53: =G53/G54 -> -0.1111111111
A54: Total Bill on TOU (including OCEB) | D54: =D52+D53 -> 325398.303 | G54: =G52+G53 -> 337627.728 | I54: =G54-D54 -> 12229.425 | J54: =I54/D54 -> 0.03758294031 | L54: =G54/G54 -> 1
A57: Applicants must provide bill impacts for residential at 800 kWh and GS<50kW at 2000 kWh. In addition, their filing should cover the range that is relevant to their service territory, class by class. A general guideline of consumption levels follows: Residential (kWh) - 100, 250, 500, 800, 1000, 1500, 2000 GS<50kW (kWh) - 1000, 2000, 5000, 10000, 15000 GS>50kW (kW) 100, 500, 1000 Large User - range appropriate for utility Street/Sentinel Lighting Classes and USL - 150 kWh and 1 kW, range appropriate for utility.

Sheet 28. Bill Impacts
S1: 1 | Z1: =MATCH(C14, '3. Rate Class Selection'!B19:B40,0) -> 1 | AA1: =VLOOKUP(C14, lists!AO:AP,2,0) -> kWh
A14: Rate Class | C14: RESIDENTIAL
A16: Loss Factor | E16: 1
A18: Consumption | C18: kWh | E18: 800
A20: If Billed on a kW basis:
A21: Demand | C21: kW
E25: Current Board-Approved | I25: Proposed | M25: Impact
E26: Rate | F26: Volume | G26: Charge | I26: Rate | J26: Volume | K26: Charge | M26: $ Change | N26: % Change
E27: ($) | G27: ($) | I27: ($) | K27: ($)
A28: Monthly Service Charge | F28: 1 | G28: =F28*E28 -> 0 | J28: 1 | K28: =J28*I28 -> 0 | M28: =K28-G28 -> 0 | N28: =IF((G28)=0,"",(M28/G28)) -> 
A29: Distribution Volumetric Rate | F29: 800 | G29: =F29*E29 -> 0 | J29: =F29 -> 800 | K29: =J29*I29 -> 0 | M29: 0
A30: Fixed Rate Riders | E30: 0 | F30: 1 | G30: =F30*E30 -> 0 | I30: 0 | J30: 1 | K30: =J30*I30 -> 0 | M30: 0
A31: Volumetric Rate Riders | E31: 0 | F31: 800 | G31: =F31*E31 -> 0 | I31: 0 | J31: =F31 -> 800 | K31: =J31*I31 -> 0 | M31: 0
A32: Sub-Total A (excluding pass through) | G32: =SUM(G28:G31) -> 0 | K32: =SUM(K28:K31) -> 0 | M32: 0
A33: Line Losses on Cost of Power | E33: =E45*0.64+E46*0.18+E47*0.18 -> 0.08392 | F33: =E18*(E16-1) -> 0 | G33: =E33*F33 -> 0 | I33: =I45*0.64+I46*0.18+I47*0.18 -> 0.08392 | J33: =F33 -> 0 | K33: =I33*J33 -> 0 | M33: 0
A34: Total Deferral/Variance Account Rate Riders | E34: 0 | F34: 800 | G34: =F34*E34 -> 0 | I34: 0 | J34: =F34 -> 800 | K34: =J34*I34 -> 0 | M34: 0
A35: Low Voltage Service Charge | F35: 800 | G35: =F35*E35 -> 0 | J35: =F35 -> 800 | K35: =J35*I35 -> 0 | M35: 0
A36: Smart Meter Entity Charge | F36: 1 | G36: =F36*E36 -> 0 | J36: =F36 -> 1 | K36: =J36*I36 -> 0 | M36: 0
A37: Sub-Total B - Distribution (includes Sub-Total A) | G37: =SUM(G32:G36) -> 0 | K37: =SUM(K32:K36) -> 0 | M37: =K37-G37 -> 0 | N37: =IF((G37)=0,"",(M37/G37)) -> 
A38: RTSR - Network | F38: 800 | G38: =F38*E38 -> 0 | J38: =F38 -> 800 | K38: =J38*I38 -> 0 | M38: 0
A39: RTSR - Connection and/or Line and Transformation Connection | E39: 0 | F39: 800 | G39: =F39*E39 -> 0 | J39: =F39 -> 800 | K39: =J39*I39 -> 0 | M39: 0
A40: Sub-Total C - Delivery (including Sub-Total B) | G40: =SUM(G37:G39) -> 0 | K40: =SUM(K37:K39) -> 0 | M40: 0
A41: Wholesale Market Service Charge (WMSC) | E41: 0.0044 | F41: =E18*E16 -> 800 | G41: =F41*E41 -> 3.52 | I41: 0.0044 | J41: =E18*E16 -> 800 | K41: =J41*I41 -> 3.52 | M41: 0 | N41: 0
A42: Rural and Remote Rate Protection (RRRP) | E42: 0.0013 | F42: =E18*E16 -> 800 | G42: 1.04 | I42: 0.0013 | J42: =E18*E16 -> 800 | K42: 1.04 | M42: 0 | N42: 0
A43: Standard Supply Service Charge | E43: 0.25 | F43: 1 | G43: 0.25 | I43: 0.25 | J43: 1 | K43: 0.25 | M43: 0 | N43: 0
A44: Debt Retirement Charge (DRC) | E44: 0.007 | F44: =E18 -> 800 | G44: 5.6 | I44: 0.007 | J44: =E18 -> 800 | K44: 5.6 | M44: 0 | N44: 0
A45: TOU - Off Peak | E45: 0.067 | F45: 512 | G45: 34.304 | I45: 0.067 | J45: =F45 -> 512 | K45: 34.304 | M45: 0 | N45: 0
A46: TOU - Mid Peak | E46: 0.104 | F46: 144 | G46: 14.976 | I46: 0.104 | J46: =F46 -> 144 | K46: 14.976 | M46: 0 | N46: 0
A47: TOU - On Peak | E47: 0.124 | F47: 144 | G47: 17.856 | I47: 0.124 | J47: =F47 -> 144 | K47: 17.856 | M47: 0 | N47: 0
A49: Total Bill on TOU (before Taxes) | G49: =SUM(G40:G44,G45:G47) -> 77.546 | K49: =SUM(K40:K44,K45:K47) -> 77.546 | M49: =K49-G49 -> 0 | N49: =IF((G49)=0,"",(M49/G49)) -> 0
A50: HST | E50: 0.13 | G50: =G49*E50 -> 10.08098 | I50: 0.13 | K50: =K49*I50 -> 10.08098 | M50: 0 | N50: 0
A51: Total Bill (including HST) | G51: =G49+G50 -> 87.62698 | K51: =K49+K50 -> 87.62698 | M51: 0 | N51: 0
A52: Ontario Clean Energy Benefit 1 | G52: =ROUND(-G51*10%,2) -> -8.76 | K52: =ROUND(-K51*10%,2) -> -8.76 | M52: 0 | N52: 0
A53: Total Bill on TOU (including OCEB) | G53: =G51+G52 -> 78.86698 | K53: =K51+K52 -> 78.86698 | M53: 0 | N53: 0
A58: Note: For distributors who have a majority of customers on Tiered pricing, please provide a separate bill impact for such customers.

Sheet lists (hidden)
A1: DISTRIBUTED GENERATION [DGEN] | B1: Embedded Distributor | C1: =COUNTA(B1:B17) -> 4 | I1: A Standby Service Charge will be applied for a month where standby power is not provided. The applicable rate is the approved Distribution Volumetric Rate of the applicable service class and is applied to gross metered demand or contracted amount, whichever is greater. A monthly administration charge of $200, for simple metering arrangements, or $500, for complex metering arrangements, will also be applied. | L1: Loss Factors | N1: Units | O1: Units1 | P1: Units2 | Z1: Account History | AA1: Account set up charge/change of occupancy charge (plus credit agency costs if applicable) | AB1: Total Loss Factor – Embedded Distributor – Hydro One Networks Inc. | AL1: Algoma Power Inc. | AM1: Algoma Power Inc. | AO1: DISTRIBUTED GENERATION [DGEN] | AP1: kW | AT1: Sub-Total: Delivery (Distribution and Retail Transmission)
A2: EMBEDDED DISTRIBUTOR | B2: General Service 3,000 to 4,999 kW | I2: Distribution Volumetric Rate | L2: Total Loss Factor – Primary Metered Customer | N2: $ | O2: $/kWh | P2: $ | Z2: Account set up charge/change of occupancy charge | AA2: Administrative Billing Charge | AB2: Total Loss Factor – Primary Metered Customer | AL2: Atikokan Hydro Inc. | AM2: Atikokan Hydro Inc. | AO2: EMBEDDED DISTRIBUTOR | AP2: kW | AT2: Wholesale Market Service Rate | AW2: =AU2*AV2 -> 0 | AX2: =AU2 -> 0 | AY2: 0 | AZ2: =AX2*AY2 -> 0 | BB2: =AZ2-AW2 -> 0 | BC2: =BB2/AW2 -> 
A3: EMBEDDED DISTRIBUTOR | B3: General Service 1,000 to 4,999 kW | I3: Distribution Volumetric Rate - $/kW of contracted amount | L3: Total Loss Factor – Primary Metered Customer < 5,000 kW | N3: $/kWh | O3: $/kW | P3: % | W3: MSC | Z3: Account set up charge/change of occupancy charge (plus credit agency costs if applicable – Residential) | AA3: Bell Canada Pole Rentals | AB3: Total Loss Factor – Primary Metered Customer < 5,000 kW | AL3: Bluewater Power Distribution Corporation | AM3: Bluewater Power Distribution Corporation | AO3: EMBEDDED DISTRIBUTOR | AP3: kW | AT3: Rural or Remote Electricity Rate Protection Charge (RRRP) | AW3: =AU3*AV3 -> 0 | AX3: 0 | AY3: 0 | AZ3: =AX3*AY3 -> 0 | BB3: =AZ3-AW3 -> 0 | BC3: =BB3/AW3 -> 
A4: FARMS - SINGLE PHASE ENERGY-BILLED [F1] | B4: General Service Equal To Or Greater Than 1,500 kW - Interval Metered | I4: Distribution Wheeling Service Rate | L4: Total Loss Factor – Primary Metered Customer > 5,000 kW | N4: $/kW | O4: $/kVA | W4: SM_Rate_Adder | Z4: Account set up charge/change of occupancy charge (plus credit agency costs if applicable) | AA4: Clearance Pole Attachment charge $/pole/year | AB4: Total Loss Factor – Primary Metered Customer > 5,000 kW | AL4: Brant County Power Inc. | AM4: Brant County Power Inc. | AO4: FARMS - SINGLE PHASE ENERGY-BILLED [F1] | AP4: kWh | AT4: Standard Supply Service – Administration Charge (if applicable) | AW4: =AU4*AV4 -> 0 | AX4: 0 | AY4: 0 | AZ4: =AX4*AY4 -> 0 | BB4: =AZ4-AW4 -> 0 | BC4: =BB4/AW4 -> 
A5: FARMS - THREE PHASE ENERGY-BILLED [F3] | I5: Electricity Rate | L5: Total Loss Factor – Secondary Metered Customer | N5: $/kVA | W5: MSC_Rate_Rider_ | Z5: Arrears certificate | AA5: Collection of account charge – no disconnection | AB5: Total Loss Factor – Secondary Metered Customer | AL5: Brantford Power Inc. | AM5: Brantford Power Inc. | AO5: FARMS - THREE PHASE ENERGY-BILLED [F3] | AP5: kWh | AT5: Sub-Total: Regulatory | AW5: =SUM(AW2:AW4) -> 0 | AZ5: =SUM(AZ2:BA4) -> 0 | BB5: =AZ5-AW5 -> 0 | BC5: =BB5/AW5 -> 
A6: GENERAL SERVICE - COMMERCIAL | I6: Electricity Rate - All Additional kWh | L6: Total Loss Factor – Secondary Metered Customer < 5,000 kW | W6: VC | Z6: Arrears certificate (credit reference) | AA6: Collection of account charge – no disconnection – after regular hours | AB6: Total Loss Factor – Secondary Metered Customer < 5,000 kW | AL6: Burlington Hydro Inc. | AM6: Burlington Hydro Inc. | AO6: GENERAL SERVICE - COMMERCIAL | AP6: kW | AT6: Debt Retirement Charge (DRC) | AW6: =AU6*AV6 -> 0 | AX6: =AU6 -> 0 | AY6: =AV6 -> 0 | AZ6: =AX6*AY6 -> 0 | BB6: =AZ6-AW6 -> 0 | BC6: =BB6/AW6 -> 
A7: GENERAL SERVICE - INSTITUTIONAL | I7: Electricity Rate - First 250 kWh | AL7: Cambridge and North Dumfries Hydro Inc. | AM7: Cambridge and North Dumfries Hydro Inc. | AO7: GENERAL SERVICE - INSTITUTIONAL | AP7: kW
A8: GENERAL SERVICE 1,000 TO 2,999 KW | I8: Electricity Rate -All Additional kWh | L8: Total Loss Factor – Secondary Metered Customer > 5,000 kW | W8: VC_Rate_Rider_ | Z8: Charge to certify cheque | AA8: Collection of account charge – no disconnection - during regular business hours | AB8: Total Loss Factor – Secondary Metered Customer > 5,000 kW | AL8: Canadian Niagara Power Inc. | AM8: Canadian Niagara Power Inc. | AO8: GENERAL SERVICE 1,000 TO 2,999 KW | AP8: kW | AT8: Total Bill on RPP (before taxes) | BB8: =AZ8-AW8 -> 0
A9: GENERAL SERVICE 1,000 TO 4,999 KW | I9: Electricity Rate First 1,000 kWh | L9: Distribution Loss Factor - Secondary Metered Customer < 5,000 kW | W9: VC_GA_Rate_Rider_kW_ | Z9: Collection of Account Charge – No Disconnection | AA9: Collection of account charge – no disconnection – during regular hours | AL9: Centre Wellington Hydro Ltd. | AM9: Centre Wellington Hydro Ltd. | AO9: GENERAL SERVICE 1,000 TO 4,999 KW | AP9: kW | AT9: HST | AW9: =AV9*AW8 -> 0 | AY9: =AV9 -> 0 | AZ9: =AY9*AZ8 -> 0 | BB9: =AZ9-AW9 -> 0 | BC9: =BB9/AW9 -> 
A10: GENERAL SERVICE 1,000 TO 4,999 KW - INTERVAL METERS | I10: Electricity Rate First 25,000 kWh | L10: Distribution Loss Factor - Secondary Metered Customer > 5,000 kW | W10: VC_LV_Rate | Z10: Credit Card Convenience Charge | AA10: Collection/Disconnection/Load Limiter/Reconnection – if in Community | AL10: Chapleau Public Utilities Corporation | AM10: Chapleau Public Utilities Corporation | AO10: GENERAL SERVICE 1,000 TO 4,999 KW - INTERVAL METERS | AP10: kW | AT10: Total Bill (including HST) | AW10: =AW9+AW8 -> 0 | AZ10: =AZ9+AZ8 -> 0 | BB10: =AZ10-AW10 -> 0 | BC10: =BB10/AW10 -> 
A11: GENERAL SERVICE 1,000 TO 4,999 KW (CO-GENERATION) | I11: Electricity Rate First 6,000 kWh | L11: Distribution Loss Factor - Primary Metered Customer < 5,000 kW | W11: RTSR_Network | Z11: Credit check (plus credit agency costs) | AA11: Credit Card Convenience Charge | AL11: Collus PowerStream Corporation | AM11: Collus PowerStream Corporation | AO11: GENERAL SERVICE 1,000 TO 4,999 KW (CO-GENERATION) | AP11: kW | AT11: Ontario Clean Energy Benefit (OCEB) | AW11: =-0.1*AW10 -> 0 | AY11: =AV11 -> 0 | AZ11: =-0.1*AZ10 -> 0 | BB11: =AZ11-AW11 -> 0 | BC11: =BB11/AW11 -> 
A12: GENERAL SERVICE 1,500 TO 4,999 KW | I12: Electricity Rate Next 1,500 kWh | L12: Distribution Loss Factor - Primary Metered Customer > 5,000 kW | W12: RTSR_Connection | Z12: Credit reference Letter | AA12: Disconnect/Reconnect at meter – after regular hours | AL12: Cooperative Hydro Embrun Inc. | AM12: Cooperative Hydro Embrun Inc. | AO12: GENERAL SERVICE 1,500 TO 4,999 KW | AP12: kW | AT12: Total Bill on RPP (including OCEB) | AW12: =AW10+AW11 -> 0 | AZ12: =AZ10+AZ11 -> 0 | BB12: =AZ12-AW12 -> 0 | BC12: =BB12/AW12 -> 
A13: GENERAL SERVICE 2,500 TO 4,999 KW | I13: General Service 1,500 to 4,999 kW customer | AL13: E.L.K. Energy Inc. | AM13: E.L.K. Energy Inc. | AO13: GENERAL SERVICE 2,500 TO 4,999 KW | AP13: kW
A14: GENERAL SERVICE 3,000 TO 4,999 KW | I14: General Service 50 to 1,499 kW customer | L14: Total Loss Factor - Embedded Distributor | W14: RTSR_Network_Interval | Z14: Credit reference/credit check (plus credit agency costs – General Service) | AA14: Disconnect/Reconnect at meter – during regular hours | AL14: Enersource Hydro Mississauga Inc. | AM14: Enersource Hydro Mississauga Inc. | AO14: GENERAL SERVICE 3,000 TO 4,999 KW | AP14: kW | AT14: Total Bill on TOU (before taxes) | BB14: =AZ14-AW14 -> 0
A15: GENERAL SERVICE 3,000 TO 4,999 KW - INTERMEDIATE USE | I15: General Service Large Use customer | L15: Total Loss Factor – Embedded Distributor – Hydro One Networks Inc. | W15: RTSR_Connection_Interval | Z15: Credit Reference/credit check (plus credit agency costs) | AA15: Disconnect/Reconnect at pole – after regular hours | AL15: Entegrus Powerlines Inc. | AM15: Entegrus Powerlines Inc. | AO15: GENERAL SERVICE 3,000 TO 4,999 KW - INTERMEDIATE USE | AP15: kW | AT15: HST | AW15: =AV15*AW14 -> 0 | AY15: =AV15 -> 0 | AZ15: =AY15*AZ14 -> 0 | BB15: =AZ15-AW15 -> 0 | BC15: =BB15/AW15 -> 
A16: GENERAL SERVICE 3,000 TO 4,999 KW - INTERVAL METERED | I16: Green Energy Act Initiatives Funding Adder - effective until the date of the next cost of service-based rate order | W16: RTSR_Network_Interval_GR1000kW | Z16: Dispute Test – Commercial self contained -- MC | AA16: Disconnect/Reconnect at pole – during regular hours | AL16: Entegrus Powerlines Inc. - Dutton Service Area | AM16: Entegrus Powerlines Inc. - Dutton Service Area | AO16: GENERAL SERVICE 3,000 TO 4,999 KW - INTERVAL METERED | AP16: kW | AT16: Total Bill (including HST) | AW16: =AW15+AW14 -> 0 | AZ16: =AZ15+AZ14 -> 0 | BB16: =AZ16-AW16 -> 0 | BC16: =BB16/AW16 -> 
A17: GENERAL SERVICE 3,000 TO 4,999 KW - TIME OF USE | I17: Green Energy Act Plan Funding Adder | W17: RTSR_Connection_Interval_GR1000kW | Z17: Dispute Test – Commercial TT -- MC | AA17: Disconnect/Reconnect Charge – At Meter – After Hours | AL17: Entegrus Powerlines Inc. - former Chatham-Kent Hydro Service Area | AM17: Entegrus Powerlines Inc. - former Chatham-Kent Hydro Service Area | AO17: GENERAL SERVICE 3,000 TO 4,999 KW - TIME OF USE | AP17: kW | AT17: Ontario Clean Energy Benefit (OCEB) | AW17: =-0.1*AW16 -> 0 | AY17: =AV17 -> 0 | AZ17: =-0.1*AZ16 -> 0 | BB17: =AZ17-AW17 -> 0 | BC17: =BB17/AW17 -> 
A18: GENERAL SERVICE 50 TO 1,000 KW | I18: Green Energy Act Plan Funding Adder - effective April 1, 2013 until March 31, 2014 | W18: RTSR_Line_Connection | Z18: Dispute Test – Residential | AA18: Disconnect/Reconnect Charge – At Meter – During Regular Hours | AL18: Entegrus Powerlines Inc. - Newbury Service Area | AM18: Entegrus Powerlines Inc. - Newbury Service Area | AO18: GENERAL SERVICE 50 TO 1,000 KW | AP18: kW | AT18: Total Bill on TOU (including OCEB) | AW18: =AW16+AW17 -> 0 | AZ18: =AZ16+AZ17 -> 0 | BB18: =AZ18-AW18 -> 0 | BC18: =BB18/AW18 -> 
A19: GENERAL SERVICE 50 TO 1,000 KW - INTERVAL METERS | I19: Green Energy Act Plan Funding Adder - effective April 1, 2014 until March 31, 2015 | W19: RTSR_Transformer_Connection | Z19: Duplicate Invoices for previous billing | AA19: Disconnect/Reconnect Charge – At Pole – After Hours | AL19: Entegrus Powerlines Inc. - Strathroy, Mount Brydges and Parkhill Service Areas | AM19: Entegrus Powerlines Inc. - Strathroy, Mount Brydges and Parkhill Service Areas | AO19: GENERAL SERVICE 50 TO 1,000 KW - INTERVAL METERS | AP19: kW
A20: GENERAL SERVICE 50 TO 1,000 KW - NON INTERVAL METERS | I20: ICM Rate Rider (2014) - in effect until the effective date of the next cost of service rates | W20: WMSR | Z20: Easement Letter | AA20: Disconnect/Reconnect Charge – At Pole – During Regular Hours | AL20: ENWIN Utilities Ltd. | AM20: ENWIN Utilities Ltd. | AO20: GENERAL SERVICE 50 TO 1,000 KW - NON INTERVAL METERS | AP20: kW
A21: GENERAL SERVICE 50 TO 1,499 KW | I21: Low Voltage Service Charge | W21: RRRP | Z21: Income Tax Letter | AA21: Disconnect/Reconnect Charges for non payment of account - At Meter After Hours | AL21: Erie Thames Powerlines Corporation | AM21: Erie Thames Powerlines Corporation | AO21: GENERAL SERVICE 50 TO 1,499 KW | AP21: kW
A22: GENERAL SERVICE 50 TO 1,499 KW - INTERVAL METERED | I22: Low Voltage Service Rate | W22: SPC | Z22: Interval Meter Interrogation | AA22: Disconnect/Reconnect charges for non payment of account – at meter after regular hours | AL22: Espanola Regional Hydro Distribution Corporation | AM22: Espanola Regional Hydro Distribution Corporation | AO22: GENERAL SERVICE 50 TO 1,499 KW - INTERVAL METERED | AP22: kW
A23: GENERAL SERVICE 50 TO 2,499 KW | I23: Low Voltage Volumetric Rate | W23: DRC | Z23: Interval meter request change | AA23: Disconnect/Reconnect Charges for non payment of account - At Meter During Regular Hours | AL23: Essex Powerlines Corporation | AM23: Essex Powerlines Corporation | AO23: GENERAL SERVICE 50 TO 2,499 KW | AP23: kW
A24: GENERAL SERVICE 50 TO 2,999 KW | I24: LRAM Rate Rider - Effective Until April 30, 2015 | W24: SSS | Z24: Legal letter | AA24: Disconnect/Reconnect charges for non payment of account – at meter during regular hours | AL24: Festival Hydro Inc. | AM24: Festival Hydro Inc. | AO24: GENERAL SERVICE 50 TO 2,999 KW | AP24: kW
A25: GENERAL SERVICE 50 TO 2,999 KW - INTERVAL METERED | I25: Minimum Distribution Charge - per KW of maximum billing demand in the previous 11 months | W25: SFLF | Z25: Legal letter charge | AA25: Disconnect/Reconnect charges for non payment of account – at pole after regular hours | AL25: Fort Frances Power Corporation | AM25: Fort Frances Power Corporation | AO25: GENERAL SERVICE 50 TO 2,999 KW - INTERVAL METERED | AP25: kW
A26: GENERAL SERVICE 50 TO 2,999 KW - TIME OF USE | B26: January | I26: Monthly Distribution Wheeling Service Rate - Dedicated LV Line | W26: DLF_Secondary_LT_5000kW | Z26: Meter dispute charge plus Measurement Canada fees (if meter found correct) | AA26: Disconnect/Reconnect charges for non payment of account – at pole during regular hours | AL26: Greater Sudbury Hydro Inc. | AM26: Greater Sudbury Hydro Inc. | AO26: GENERAL SERVICE 50 TO 2,999 KW - TIME OF USE | AP26: kW
A27: GENERAL SERVICE 50 TO 4,999 KW | B27: February | I27: Monthly Distribution Wheeling Service Rate - Hydro One Networks | W27: DLF_Secondary_GT_5000kW | Z27: Notification charge | AA27: Disconnect/Reconnection for >300 volts - after regular hours | AL27: Grimsby Power Inc. | AM27: Grimsby Power Inc. | AO27: GENERAL SERVICE 50 TO 4,999 KW | AP27: kW
A28: GENERAL SERVICE 50 TO 4,999 KW - INTERVAL METERED | B28: March | I28: Monthly Distribution Wheeling Service Rate - Shared LV Line | W28: DLF_Primary_LT_5000kW | Z28: Pulling Post Dated Cheques | AA28: Disconnect/Reconnection for >300 volts - during regular hours | AL28: Guelph Hydro Electric Systems Inc. | AM28: Guelph Hydro Electric Systems Inc. | AO28: GENERAL SERVICE 50 TO 4,999 KW - INTERVAL METERED | AP28: kW
A29: GENERAL SERVICE 50 TO 4,999 KW - TIME OF USE | B29: April | I29: Monthly Distribution Wheeling Service Rate - Waterloo North Hydro | W29: DLF_Primary_GT_5000kW | Z29: Request for other billing information | AA29: Disposal of Concrete Poles | AL29: Haldimand County Hydro Inc. | AM29: Haldimand County Hydro Inc. | AO29: GENERAL SERVICE 50 TO 4,999 KW - TIME OF USE | AP29: kW
A30: GENERAL SERVICE 50 TO 4,999 KW (COGENERATION) | B30: May | I30: Rate Rider for Application of Tax Change - effective until April 30, 2015 | W30: TLF_Secondary_LT_5000kW | Z30: Returned cheque (plus bank charges) | AA30: Dispute Test – Commercial TT -- MC | AL30: Halton Hills Hydro Inc. | AM30: Halton Hills Hydro Inc. | AO30: GENERAL SERVICE 50 TO 4,999 KW (COGENERATION) | AP30: kW
A31: GENERAL SERVICE 50 TO 4,999 KW (FORMERLY TIME OF USE) | B31: June | I31: Rate Rider for Application of Tax Change - effective until December 31, 2014 | W31: TLF_Secondary_GT_5000kW | Z31: Returned cheque charge (plus bank charges) | AA31: Install/Remove load control device – after regular hours | AL31: Hearst Power Distribution Company Limited | AM31: Hearst Power Distribution Company Limited | AO31: GENERAL SERVICE 50 TO 4,999 KW (FORMERLY TIME OF USE) | AP31: kW
A32: GENERAL SERVICE 50 TO 499 KW | B32: July | I32: Rate Rider for Application of Tax Change (2014) - effective until April 30, 2015 | W32: TLF_Primary_LT_5000kW | Z32: Special Billing Service (aggregation) | AA32: Install/Remove load control device – during regular hours | AL32: Horizon Utilities Corporation | AM32: Horizon Utilities Corporation | AO32: GENERAL SERVICE 50 TO 499 KW | AP32: kW
A33: GENERAL SERVICE 50 TO 699 KW | B33: August | I33: Rate Rider for Application of Tax Change (per connection) - effective until April 30, 2015 | W33: TLF_Primary_GT_5000kW | Z33: Special Billing Service (sub-metering charge per meter) | AA33: Interval Meter Interrogation | AL33: Hydro 2000 Inc. | AM33: Hydro 2000 Inc. | AO33: GENERAL SERVICE 50 TO 699 KW | AP33: kW
A34: GENERAL SERVICE 50 TO 999 KW | B34: September | I34: Rate Rider for CGAAP Accounting Changes (2013) - effective until April 30, 2017 | W34: TLF_EmbeddedDistributor | Z34: Special meter reads | AA34: Interval Meter Load Management Tool Charge $/month | AL34: Hydro Hawkesbury Inc. | AM34: Hydro Hawkesbury Inc. | AO34: GENERAL SERVICE 50 TO 999 KW | AP34: kW
A35: GENERAL SERVICE 50 TO 999 KW - INTERVAL METERED | B35: October | I35: Rate Rider for Deferral/Variance Account (2012) - effective unitl April 30, 2016 | Z35: Statement of Account | AA35: Interval meter request change | AL35: Hydro One Brampton Networks Inc. | AM35: Hydro One Brampton Networks Inc. | AO35: GENERAL SERVICE 50 TO 999 KW - INTERVAL METERED | AP35: kW
A36: GENERAL SERVICE 500 TO 4,999 KW | B36: November | I36: Rate Rider for Deferral/Variance Account Disposition – effective until April 30, 2015 | Z36: Unprocessed Payment Charge (plus bank charges) | AA36: Late Payment – per annum | AL36: Hydro One Networks Inc. | AM36: Hydro One Networks Inc. | AO36: GENERAL SERVICE 500 TO 4,999 KW | AP36: kW
A37: GENERAL SERVICE 700 TO 4,999 KW | B37: December | I37: Rate Rider for Deferral/Variance Account Disposition (2012) - effective until April 30, 2016 | AA37: Late Payment – per month | AL37: Hydro Ottawa Limited | AM37: Hydro Ottawa Limited | AO37: GENERAL SERVICE 700 TO 4,999 KW | AP37: kW
A38: GENERAL SERVICE DEMAND BILLED (50 KW AND ABOVE) [GSD] | I38: Rate Rider for Deferral/Variance Account Disposition (2013) - effective until April 30, 2014 | AA38: Layout fees | AL38: Innisfil Hydro Distribution Systems Limited | AM38: Innisfil Hydro Distribution Systems Limited | AO38: GENERAL SERVICE DEMAND BILLED (50 KW AND ABOVE) [GSD] | AP38: kW
A39: GENERAL SERVICE ENERGY BILLED (LESS THAN 50 KW) [GSE-METERED] | I39: Rate Rider for Deferral/Variance Account Disposition (2014) - effective until April 28, 2016 | AA39: Meter dispute charge plus Measurement Canada fees (if meter found correct) | AL39: Kenora Hydro Electric Corporation Ltd. | AM39: Kenora Hydro Electric Corporation Ltd. | AO39: GENERAL SERVICE ENERGY BILLED (LESS THAN 50 KW) [GSE-METERED] | AP39: kWh
A40: GENERAL SERVICE ENERGY BILLED (LESS THAN TO 50 KW) [GSE-UNMETERED] | I40: Rate Rider for Deferral/Variance Account Disposition (2014) - effective until April 30, 2015 | AA40: Meter Interrogation Charge | AL40: Kingston Hydro Corporation | AM40: Kingston Hydro Corporation | AO40: GENERAL SERVICE ENERGY BILLED (LESS THAN TO 50 KW) [GSE-UNMETERED] | AP40: kWh
A41: GENERAL SERVICE EQUAL TO OR GREATER THAN 1,500 KW | I41: Rate Rider for Deferral/Variance Account Disposition (2014) - effective until December 31, 2014 | AA41: Missed Service Appointment | AL41: Kitchener-Wilmot Hydro Inc. | AM41: Kitchener-Wilmot Hydro Inc. | AO41: GENERAL SERVICE EQUAL TO OR GREATER THAN 1,500 KW | AP41: kW
A42: GENERAL SERVICE EQUAL TO OR GREATER THAN 1,500 KW - INTERVAL METERED | I42: Rate Rider for Deferral/Variance Account Disposition (2014) - effective until December 31, 2015 | AA42: Norfolk Pole Rentals – Billed | AL42: Lakefront Utilities Inc. | AM42: Lakefront Utilities Inc. | AO42: GENERAL SERVICE EQUAL TO OR GREATER THAN 1,500 KW - INTERVAL METERED | AP42: kW
A43: GENERAL SERVICE GREATER THAN 1,000 KW | I43: Rate Rider for Deferral/Variance Account Dispositon (2012) - effective until April 30, 2016 | AA43: Optional Interval/TOU Meter charge $/month | AL43: Lakeland Power Distribution Ltd. | AM43: Lakeland Power Distribution Ltd. | AO43: GENERAL SERVICE GREATER THAN 1,000 KW | AP43: kW
A44: GENERAL SERVICE GREATER THAN 50 kW - WMP | I44: Rate Rider for Disposition of Accounting Changes Under CGAAP Account 1576 - effective until April 30, 2016 | AA44: Overtime Locate | AL44: London Hydro Inc. | AM44: London Hydro Inc. | AO44: GENERAL SERVICE GREATER THAN 50 kW - WMP | AP44: kW
A45: GENERAL SERVICE INTERMEDIATE 1,000 TO 4,999 KW | I45: Rate Rider for Disposition of Deferral/Variance Accounts (2010) - effective until December 31, 2014 | AA45: Owner Requested Disconnection/Reconnection – after regular hours | AL45: Midland Power Utility Corporation | AM45: Midland Power Utility Corporation | AO45: GENERAL SERVICE INTERMEDIATE 1,000 TO 4,999 KW | AP45: kW
A46: GENERAL SERVICE INTERMEDIATE RATE CLASS 1,000 TO 4,999 KW (FORMERLY GENERAL SERVICE > 50 KW CUSTOMERS) | I46: Rate Rider for Disposition of Deferral/Variance Accounts (2011) - effective until April 30, 2015 | AA46: Owner Requested Disconnection/Reconnection – during regular hours | AL46: Milton Hydro Distribution Inc. | AM46: Milton Hydro Distribution Inc. | AO46: GENERAL SERVICE INTERMEDIATE RATE CLASS 1,000 TO 4,999 KW (FORMERLY GENERAL SERVICE > 50 KW CUSTOMERS) | AP46: kW
A47: GENERAL SERVICE INTERMEDIATE RATE CLASS 1,000 TO 4,999 KW (FORMERLY LARGE USE CUSTOMERS) | I47: Rate Rider for Disposition of Deferral/Variance Accounts (2011) - effective until April 30, 2016 | AA47: Returned cheque (plus bank charges) | AL47: Newmarket - Tay Power Distribution Ltd. | AM47: Newmarket - Tay Power Distribution Ltd. | AO47: GENERAL SERVICE INTERMEDIATE RATE CLASS 1,000 TO 4,999 KW (FORMERLY LARGE USE CUSTOMERS) | AP47: kW
A48: GENERAL SERVICE LESS THAN 50 KW | I48: Rate Rider for Disposition of Deferral/Variance Accounts (2012) - effective until April 30, 2014 | AA48: Rural system expansion / line connection fee | AL48: Niagara Peninsula Energy Inc. | AM48: Niagara Peninsula Energy Inc. | AO48: GENERAL SERVICE LESS THAN 50 KW | AP48: kWh
A49: GENERAL SERVICE LESS THAN 50 KW - SINGLE PHASE ENERGY-BILLED [G1] | I49: Rate Rider for Disposition of Deferral/Variance Accounts (2012) - effective until April 30, 2015 | AA49: Same Day Open Trench | AL49: Niagara-on-the-Lake Hydro Inc. | AM49: Niagara-on-the-Lake Hydro Inc. | AO49: GENERAL SERVICE LESS THAN 50 KW - SINGLE PHASE ENERGY-BILLED [G1] | AP49: kWh
A50: GENERAL SERVICE LESS THAN 50 KW - THREE PHASE ENERGY-BILLED [G3] | I50: Rate Rider for Disposition of Deferral/Variance Accounts (2012) - effective until April 30, 2016 | AA50: Scheduled Day Open Trench | AL50: Norfolk Power Distribution Inc. | AM50: Norfolk Power Distribution Inc. | AO50: GENERAL SERVICE LESS THAN 50 KW - THREE PHASE ENERGY-BILLED [G3] | AP50: kWh
A51: GENERAL SERVICE LESS THAN 50 KW - TRANSMISSION CLASS ENERGY-BILLED [T] | I51: Rate Rider for Disposition of Deferral/Variance Accounts (2012) - effective until August 31, 2014 | AA51: Service call – after regular hours | AL51: North Bay Hydro Distribution Limited | AM51: North Bay Hydro Distribution Limited | AO51: GENERAL SERVICE LESS THAN 50 KW - TRANSMISSION CLASS ENERGY-BILLED [T] | AP51: kWh
A52: GENERAL SERVICE LESS THAN 50 KW - URBAN ENERGY-BILLED [UG] | I52: Rate Rider for Disposition of Deferral/Variance Accounts (2012) - effective until December 31, 2015 | AA52: Service call – customer owned equipment | AL52: Northern Ontario Wires Inc. | AM52: Northern Ontario Wires Inc. | AO52: GENERAL SERVICE LESS THAN 50 KW - URBAN ENERGY-BILLED [UG] | AP52: kWh
A53: GENERAL SERVICE SINGLE PHASE - G1 | I53: Rate Rider for Disposition of Deferral/Variance Accounts (2012) - effective until December 31, 2016 Applicable only in the former service area of Clinton Power | AA53: Service Call – Customer-owned Equipment – After Regular Hours | AL53: Oakville Hydro Electricity Distribution Inc. | AM53: Oakville Hydro Electricity Distribution Inc. | AO53: GENERAL SERVICE SINGLE PHASE - G1 | AP53: kW
A54: GENERAL SERVICE THREE PHASE - G3 | I54: Rate Rider for Disposition of Deferral/Variance Accounts (2012) – effective until December 31, 2016 Applicable only in the former service area of Clinton Power | AA54: Service Call – Customer-owned Equipment – During Regular Hours | AL54: Orangeville Hydro Limited | AM54: Orangeville Hydro Limited | AO54: GENERAL SERVICE THREE PHASE - G3 | AP54: kW
A55: INTERMEDIATE USERS | I55: Rate Rider for Disposition of Deferral/Variance Accounts (2012) - effective until January 31, 2014 | AA55: Service Charge for onsite interrogation of interval meter due to customer phone line failure - required weekly until line repaired $ 6 | AL55: Orillia Power Distribution Corporation | AM55: Orillia Power Distribution Corporation | AO55: INTERMEDIATE USERS | AP55: kW
A56: INTERMEDIATE WITH SELF GENERATION | I56: Rate Rider for Disposition of Deferral/Variance Accounts (2012) - effective until June 30, 2014 | AA56: Service Layout - Commercial | AL56: Oshawa PUC Networks Inc. | AM56: Oshawa PUC Networks Inc. | AO56: INTERMEDIATE WITH SELF GENERATION | AP56: kW
A57: LARGE USE | I57: Rate Rider for Disposition of Deferral/Variance Accounts (2013) - Applicable only to Wholesale Market Participants - effective until April 30, 2015 | AA57: Service Layout - ResidentiaI | AL57: Ottawa River Power Corporation | AM57: Ottawa River Power Corporation | AO57: LARGE USE | AP57: kW
A58: LARGE USE - 3TS | I58: Rate Rider for Disposition of Deferral/Variance Accounts (2013) - effective until April 30, 2014 | AA58: Special Billing Service (sub-metering charge per meter) | AL58: Parry Sound Power Corporation | AM58: Parry Sound Power Corporation | AO58: LARGE USE - 3TS | AP58: kW
A59: LARGE USE - FORD ANNEX | I59: Rate Rider for Disposition of Deferral/Variance Accounts (2013) - effective until April 30, 2015 | AA59: Special meter reads | AL59: Peterborough Distribution Incorporated | AM59: Peterborough Distribution Incorporated | AO59: LARGE USE - FORD ANNEX | AP59: kW
A60: LARGE USE - REGULAR | I60: Rate Rider for Disposition of Deferral/Variance Accounts (2013) - effective until April 30, 2015 - not applicable to Wholesale Market Participants | AA60: Specific Charge for Access to the Power Poles - $/pole/year | AL60: PowerStream Inc. | AM60: PowerStream Inc. | AO60: LARGE USE - REGULAR | AP60: kW
A61: LARGE USE > 5000 KW | I61: Rate Rider for Disposition of Deferral/Variance Accounts (2013) - effective until April 30, 2017 | AA61: Specific Charge for Bell Canada Access to the Power Poles – per pole/year | AL61: PUC Distribution Inc. | AM61: PUC Distribution Inc. | AO61: LARGE USE > 5000 KW | AP61: kW
A62: microFIT | I62: Rate Rider for Disposition of Deferral/Variance Accounts (2013) - effective until August 31, 2014 | AA62: Switching for company maintenance – Charge based on Time and Materials | AL62: Renfrew Hydro Inc. | AM62: Renfrew Hydro Inc. | AO62: microFIT | AP62: $
A63: RESIDENTIAL | I63: Rate Rider for Disposition of Deferral/Variance Accounts (2013) - effective until December 31, 2014 | AA63: Temporary Service – Install & remove – overhead – no transformer | AL63: Rideau St. Lawrence Distribution Inc. | AM63: Rideau St. Lawrence Distribution Inc. | AO63: RESIDENTIAL | AP63: kWh
A64: RESIDENTIAL - HENSALL | I64: Rate Rider for Disposition of Deferral/Variance Accounts (2013) - effective until May 31, 2014 | AA64: Temporary Service – Install & remove – overhead – with transformer | AL64: Sioux Lookout Hydro Inc. | AM64: Sioux Lookout Hydro Inc. | AO64: RESIDENTIAL - HENSALL | AP64: kWh
A65: RESIDENTIAL - HIGH DENSITY [R1] | I65: Rate Rider for Disposition of Deferral/Variance Accounts (2014) - effective until December 31, 2015 | AA65: Temporary Service – Install & remove – underground – no transformer | AL65: St. Thomas Energy Inc. | AM65: St. Thomas Energy Inc. | AO65: RESIDENTIAL - HIGH DENSITY [R1] | AP65: kWh
A66: RESIDENTIAL - LOW DENSITY [R2] | I66: Rate Rider for Disposition of Deferred PILs Variance Account 1562 - effective until March 31, 2016 | AA66: Temporary service install & remove – overhead – no transformer | AL66: Thunder Bay Hydro Electricity Distribution Inc. | AM66: Thunder Bay Hydro Electricity Distribution Inc. | AO66: RESIDENTIAL - LOW DENSITY [R2] | AP66: kWh
A67: RESIDENTIAL - MEDIUM DENSITY [R1] | I67: Rate Rider for Disposition of Deferred PILs Variance Account 1562 (2012) - effective until April 30, 2015 | AA67: Temporary Service Install & Remove – Overhead – With Transformer | AL67: Tillsonburg Hydro Inc. | AM67: Tillsonburg Hydro Inc. | AO67: RESIDENTIAL - MEDIUM DENSITY [R1] | AP67: kWh
A68: RESIDENTIAL - NORMAL DENSITY [R2] | I68: Rate Rider for Disposition of Deferred PILs Variance Account 1562 (2012) - effective until April 30, 2016 | AA68: Temporary Service Install & Remove – Underground – No Transformer | AL68: Toronto Hydro-Electric System Limited | AM68: Toronto Hydro-Electric System Limited | AO68: RESIDENTIAL - NORMAL DENSITY [R2] | AP68: kWh
A69: RESIDENTIAL - TIME OF USE | I69: Rate Rider for Disposition of Deferred PILs Variance Account 1562 (2nd Installment - 2012) - effective until April 30, 2016 | AA69: Temporary service installation and removal – overhead – no transformer | AL69: Veridian Connections Inc. | AM69: Veridian Connections Inc. | AO69: RESIDENTIAL - TIME OF USE | AP69: kWh
A70: RESIDENTIAL - URBAN [UR] | I70: Rate Rider for Disposition of Deferred PILs Variance Account 1562 (per connection) (2012) - effective until April 30, 2015 | AA70: Temporary service installation and removal – overhead – with transformer | AL70: Wasaga Distribution Inc. | AM70: Wasaga Distribution Inc. | AO70: RESIDENTIAL - URBAN [UR] | AP70: kWh
A71: RESIDENTIAL REGULAR | I71: Rate Rider for Disposition of Deferred PILs Variance Account 1562 (per connection) (2012) - effective until April 30, 2016 | AA71: Temporary service installation and removal – underground – no transformer | AL71: Waterloo North Hydro Inc. | AM71: Waterloo North Hydro Inc. | AO71: RESIDENTIAL REGULAR | AP71: kWh
A72: RESIDENTIAL SUBURBAN | I72: Rate Rider for Disposition of Global Adjustment Sub-Account (2011) - effective until April 30, 2015 Applicable only for Non-RPP Customers | AL72: Welland Hydro-Electric System Corp. | AM72: Welland Hydro-Electric System Corp. | AO72: RESIDENTIAL SUBURBAN | AP72: kWh
A73: RESIDENTIAL SUBURBAN SEASONAL | I73: Rate Rider for Disposition of Global Adjustment Sub-Account (2011) - effective until April 30, 2016 Applicable only for Non-RPP Customers | AL73: Wellington North Power Inc. | AM73: Wellington North Power Inc. | AO73: RESIDENTIAL SUBURBAN SEASONAL | AP73: kWh
A74: RESIDENTIAL SUBURBAN YEAR ROUND | I74: Rate Rider for Disposition of Global Adjustment Sub-Account (2012) - effective until April 30, 2014 Applicable only for Non-RPP Customers | AL74: West Coast Huron Energy Inc. | AM74: West Coast Huron Energy Inc. | AO74: RESIDENTIAL SUBURBAN YEAR ROUND | AP74: kWh
A75: RESIDENTIAL URBAN | I75: Rate Rider for Disposition of Global Adjustment Sub-Account (2012) - effective until April 30, 2015 Applicable only for Non-RPP Customers | AL75: Westario Power Inc. | AM75: Westario Power Inc. | AO75: RESIDENTIAL URBAN | AP75: kWh
A76: RESIDENTIAL URBAN YEAR-ROUND | I76: Rate Rider for Disposition of Global Adjustment Sub-Account (2012) - effective until April 30, 2015 Applicatble only for Non-RPP Customers | AL76: Whitby Hydro Electric Corporation | AM76: Whitby Hydro Electric Corporation | AO76: RESIDENTIAL URBAN YEAR-ROUND | AP76: kWh
A77: SEASONAL RESIDENTIAL | I77: Rate Rider for Disposition of Global Adjustment Sub-Account (2012) - effective until April 30, 2016 Applicable only for Non-RPP Customers | AL77: Woodstock Hydro Services Inc. | AM77: Woodstock Hydro Services Inc. | AO77: SEASONAL RESIDENTIAL | AP77: kWh
A78: SEASONAL RESIDENTIAL - HIGH DENSITY [R3] | I78: Rate Rider for Disposition of Global Adjustment Sub-Account (2012) - effective until January 31, 2014. Applicable only for Non-RPP Customers | AO78: SEASONAL RESIDENTIAL - HIGH DENSITY [R3] | AP78: kWh
A79: SEASONAL RESIDENTIAL - NORMAL DENSITY [R4] | I79: Rate Rider for Disposition of Global Adjustment Sub-Account (2012) - effective until June 30, 2014 Applicable only for Non-RPP Customers | AO79: SEASONAL RESIDENTIAL - NORMAL DENSITY [R4] | AP79: kWh
A80: SENTINEL LIGHTING | I80: Rate Rider for Disposition of Global Adjustment Sub-Account (2012) Applicable only for Non-RPP Customers - effective until August 31, 2014 | AO80: SENTINEL LIGHTING | AP80: kW
A81: SMALL COMMERCIAL AND USL - PER CONNECTION | I81: Rate Rider for Disposition of Global Adjustment Sub-Account (2012) Applicable only to Non-RPP Customers - effective until August 31, 2014 | AO81: SMALL COMMERCIAL AND USL - PER CONNECTION | AP81: kWh
A82: SMALL COMMERCIAL AND USL - PER METER | I82: Rate Rider for Disposition of Global Adjustment Sub-Account (2013) - effective until April 30, 2014 Applicable only for Non-RPP Customers | AO82: SMALL COMMERCIAL AND USL - PER METER | AP82: kWh
A83: STANDARD A GENERAL SERVICE AIR ACCESS | I83: Rate Rider for Disposition of Global Adjustment Sub-Account (2013) - effective until April 30, 2015 Applicable only for Non-RPP Customers | AO83: STANDARD A GENERAL SERVICE AIR ACCESS | AP83: kWh
A84: STANDARD A GENERAL SERVICE ROAD/RAIL | I84: Rate Rider for Disposition of Global Adjustment Sub-Account (2013) - effective until April 30, 2015 Applicable only for Non-RPP Customers and excluding Wholesale Market Participants | AO84: STANDARD A GENERAL SERVICE ROAD/RAIL | AP84: kWh
A85: STANDARD A GRID CONNECTED | I85: Rate Rider for Disposition of Global Adjustment Sub-Account (2013) - effective until April 30, 2017 Applicable only for Non-RPP Customers | AO85: STANDARD A GRID CONNECTED | AP85: kWh
A86: STANDARD A RESIDENTIAL AIR ACCESS | I86: Rate Rider For Disposition of Global Adjustment Sub-Account (2013) - effective until August 31, 2014 Applicable only for Non-RPP Customers | AO86: STANDARD A RESIDENTIAL AIR ACCESS | AP86: kWh
A87: STANDARD A RESIDENTIAL ROAD/RAIL | I87: Rate Rider for Disposition of Global Adjustment Sub-Account (2013) - effective until December 31, 2014 Applicable only for Non-RPP Customers | AO87: STANDARD A RESIDENTIAL ROAD/RAIL | AP87: kWh
A88: STANDBY - GENERAL SERVICE 1,000 - 5,000 KW | I88: Rate Rider for Disposition of Global Adjustment Sub-Account (2013) - effective until May 31, 2014 Applicable only for Non-RPP Customers | AO88: STANDBY - GENERAL SERVICE 1,000 - 5,000 KW | AP88: kW
A89: STANDBY - GENERAL SERVICE 50 - 1,000 KW | I89: Rate Rider for Disposition of Global Adjustment Sub-Account (2014) - effective until December 31, 2014. Applicable only for Non-RPP - Class B Customers | AO89: STANDBY - GENERAL SERVICE 50 - 1,000 KW | AP89: kW
A90: STANDBY - LARGE USE | I90: Rate Rider for Disposition of Global Adjustment Sub-Account (2014) - effective until December 31, 2014. Applicable only for Non-RPP Customers | AO90: STANDBY - LARGE USE | AP90: kW
A91: STANDBY DISTRIBUTION SERVICE | I91: Rate Rider for Disposition of Global Adjustment Sub-Account (2014) - effective until December 31, 2014. Applicable only for Non-RPP Customers - Class A Customers | AO91: STANDBY DISTRIBUTION SERVICE | AP91: kW
A92: STANDBY POWER | I92: Rate Rider for Disposition of Global Adjustment Sub-Account (2014) - effective until December 31, 2014. Applicable only for Non-RPP Customers - Interval Metered | AO92: STANDBY POWER | AP92: kW
A93: STANDBY POWER - APPROVED ON AN INTERIM BASIS | I93: Rate Rider for Disposition of Global Adjustment Sub-Account (2014) - effective until December 31, 2014. Applicable only for Non-RPP Customers - Non Interval Metered | AO93: STANDBY POWER - APPROVED ON AN INTERIM BASIS | AP93: kW
A94: STANDBY POWER GENERAL SERVICE 1,500 TO 4,999 KW | I94: Rate Rider for Disposition of Global Adjustment Sub-Account (2014) - effective until December 31, 2015. Applicable only for Non-RPP Customers. | AO94: STANDBY POWER GENERAL SERVICE 1,500 TO 4,999 KW | AP94: kW
A95: STANDBY POWER GENERAL SERVICE 50 TO 1,499 KW | I95: Rate Rider for Disposition of Post Retirement Actuarial Gain - effective until March 31, 2025 | AO95: STANDBY POWER GENERAL SERVICE 50 TO 1,499 KW | AP95: kW
A96: STANDBY POWER GENERAL SERVICE LARGE USE | I96: Rate Rider for Disposition of Residual Hisotrical Smart Meter Costs - effective until April 30, 2015 | AO96: STANDBY POWER GENERAL SERVICE LARGE USE | AP96: kW
A97: STREET LIGHTING | I97: Rate Rider for Disposition of Residual Hisotrical Smart Meter Costs - effective until April 30, 2017 | AO97: STREET LIGHTING | AP97: kW
A98: SUB TRANSMISSION [ST] | I98: Rate Rider for Disposition of Residual Historical Smart Meter Costs - effective until April 30, 2014 | AO98: SUB TRANSMISSION [ST] | AP98: kW
A99: UNMETERED SCATTERED LOAD | I99: Rate Rider for Disposition of Residual Historical Smart Meter Costs - effective until April 30, 2016 | AO99: UNMETERED SCATTERED LOAD | AP99: kWh
A100: URBAN GENERAL SERVICE DEMAND BILLED (50 KW AND ABOVE) [UGD] | I100: Rate Rider for Disposition of Residual Historical Smart Meter Costs - effective until August 31, 2014 | AO100: URBAN GENERAL SERVICE DEMAND BILLED (50 KW AND ABOVE) [UGD] | AP100: kW
A101: URBAN GENERAL SERVICE ENERGY BILLED (LESS THAN 50 KW) [UGE] | I101: Rate Rider for Disposition of Residual Historical Smart Meter Costs - effective until August 31, 2015 | AO101: URBAN GENERAL SERVICE ENERGY BILLED (LESS THAN 50 KW) [UGE] | AP101: kWh
A102: WESTPORT SEWAGE TREATMENT PLANT | I102: Rate Rider for Disposition of Residual Historical Smart Meter Costs - effective until December 31, 2014 | AO102: WESTPORT SEWAGE TREATMENT PLANT | AP102: kW
A103: YEAR-ROUND RESIDENTIAL - R2 | I103: Rate Rider for Disposition of Residual Historical Smart Meter Costs – effective until December 31, 2014 | AO103: YEAR-ROUND RESIDENTIAL - R2 | AP103: kWh
I104: Rate Rider for Disposition of Residual Historical Smart Meter Costs - effective until December 31, 2015
I105: Rate Rider for Disposition of Residual Historical Smart Meter Costs - effective until December 31, 2016
I106: Rate Rider for Disposition of Residual Historical Smart Meter Costs - effective until October 31, 2014
I107: Rate Rider for Disposition of Residual Historical Smart Meter Costs - effective until September 30, 2014
I108: Rate Rider for Disposition of Residual Historical Smart Meter Costs - Non-Interval Metered - effective until April 30, 2014
I109: Rate Rider for Disposition of Residual Historical Smart Meter Costs 2 - in effect until the effective date of the next cost of service-based rate order
I110: Rate Rider for Disposition of Residual Historical Smart Meter Costs 3 - in effect until the effective date of the next cost of service-based rate order
I111: Rate Rider for Disposition of Residual Incremental Historical Smart Meter Costs - effective until August 31, 2015
I112: Rate Rider for Disposition of Stranded Meter costs - effective until April 30, 2015
I113: Rate Rider for Disposition of Stranded Meter Costs - effective until April 30, 2016
I114: Rate Rider for Disposition of Stranded Meter Costs - effective until April 30, 2017
I115: Rate Rider for Global Adjustment Sub Account Disposition - effective until April 30, 2016 Applicable only for Non RPP Customers
I116: Rate Rider for Global Adjustment Sub-Account Disposition (2014) - effective until April 28, 2016 Applicable only for Non-RPP Customers
I117: Rate Rider for Global Adjustment Sub-Account Disposition (2014) - effective until April 30, 2015 Applicable only for Non-RPP Customers
I118: Rate Rider for Global Adjustment Sub-Account Disposition (2014) - effective until December 30, 2015 Applicable only for Non-RPP Customers
I119: Rate Rider for Global Adjustment Sub-Account Disposition (2014) - effective until December 31, 2014 Applicable only for Non-RPP Customers
I120: Rate Rider for Global Adjustment Sub-Account Disposition (2014) - effective until December 31, 2015 Applicable only for Non-RPP Customers
I121: Rate Rider for Global Adjustment Sub-Account Disposition Applicable only for Non-RPP Customers - effective until April 30, 2015
I122: Rate Rider for Incremental Capital - Distribution Volumetric - effective until April 30, 2016
I123: Rate Rider for Incremental Capital - Service Charge - effective until April 30, 2016
I124: Rate Rider for Incremental Capital (2012) - effective until April 30, 2015
I125: Rate Rider for Lost Revenue Adjustment Mechanism Variance Account (LRAMVA) Recovery (2012 CDM Activities) - effective until April 30, 2015
I126: Rate Rider for Recover of Residual Historical Smart meter Costs - effective until June 30, 2014
I127: Rate Rider for Recovery of CGAAP/CWIP Differential - in effect until December 31, 2016
I128: Rate Rider for Recovery of Foregone Revenue - effective until April 30, 2015
I129: Rate Rider for Recovery of Forgone Revenue - effective until April 30, 2015
I130: Rate Rider for Recovery of Forgone Revenue - effective until December 31, 2014
I131: Rate Rider for Recovery of Green Energy Act related costs - effective until December 31, 2014
I132: Rate Rider for Recovery of Incremental Capital (2013) - in effect until the effective date of the next cost of service-based rate order
I133: Rate Rider for Recovery of Incremental Capital (2013) - in effect until the effective date of the next cost of service-based rate order
I134: Rate Rider for Recovery of Incremental Capital (2013) (per connection) - in effect until the effective date of the next cost of service-based rate order
I135: Rate Rider for Recovery of Incremental Capital (2013) (per connection)- in effect until the effective date of the next cost of service-based rate order
I136: Rate Rider for Recovery of Incremental Capital Costs
I137: Rate Rider for Recovery of Incremental Capital Costs - effective until April 30, 2015
I138: Rate Rider for Recovery of Incremental Capital Module Costs (2014) - in effect until the effective date of the next cost of service-based rate order
I139: Rate Rider for Recovery of Incremental Capital Module Costs (2014) - in effect until the effective date of the next cost of service-based rate order
I140: Rate Rider for Recovery of Lost Revenue Adjustment Mechanism ( LRAM)/Shared Savings Mechanism (SSM) (2012) - effective until August 31, 2014
I141: Rate Rider for Recovery of Lost Revenue Adjustment Mechanism (2013) - effective until December 31, 2014
I142: Rate Rider for Recovery of Lost Revenue Adjustment Mechanism (LRAM) - effective until April 30, 2016
I143: Rate Rider for Recovery of Lost Revenue Adjustment Mechanism (LRAM) (pre-2011 CDM Activities) - effective until April 30, 2015
I144: Rate Rider for Recovery of Lost Revenue Adjustment Mechanism (LRAM) (pre-2011 CDM Activities) (2013) - effective until April 30, 2015
I145: Rate Rider for Recovery of Lost Revenue Adjustment Mechanism (LRAM)/Shared Savings
I146: Rate Rider for Recovery of Lost Revenue Adjustment Mechanism (LRAM)/Shared Savings Mechanism (SSM) - effective until December 31, 2018 and applicable in the service area excluding the former service areas of Clinton Power and West Perth Power
I147: Rate Rider for Recovery of Lost Revenue Adjustment Mechanism (LRAM)/Shared Savings Mechanism (SSM) - effective until December 31, 2014 and applicable in the service area excluding the former service areas of Clinton Power and West Perth Power
I148: Rate Rider for Recovery of Lost Revenue Adjustment Mechanism (LRAM)/Shared Savings Mechanism (SSM) - effective until December 31, 2014 and applicable only in the former service area of Clinton Power
I149: Rate Rider for Recovery of Lost Revenue Adjustment Mechanism (LRAM)/Shared Savings Mechanism (SSM) - effective until December 31, 2014 and applicable only in the former service area of West Perth Power
I150: Rate Rider for Recovery of Lost Revenue Adjustment Mechanism (LRAM)/Shared Savings Mechanism (SSM) - effective until December 31, 2014 and applicable in the service area excluding the former service area of Clinton Power
I151: Rate Rider for Recovery of Lost Revenue Adjustment Mechanism (LRAM)/Shared Savings Mechanism (SSM) - effective until March 31, 2016
I152: Rate Rider for Recovery of Lost Revenue Adjustment Mechanism (LRAM)/Shared Savings Mechanism (SSM) (2012) - effective until August 31, 2014
I153: Rate Rider for Recovery of Lost Revenue Adjustment Mechanism (LRAM)/Shared Savings Mechanism (SSM) Recovery - effective until April 30, 2015
I154: Rate Rider for Recovery of Lost Revenue Adjustment Mechanism Variance Account (LRAMVA) (2014) - effective until April 30, 2015
I155: Rate Rider for Recovery of Residual Historical Smart Meter Costs - effective July 1, 2012 - April 30, 2016
I156: Rate Rider for Recovery of Smart Meter Incremental Revenue Requirement - effective until the date of the next cost of service-based rate order
I157: Rate Rider for Recovery of Smart Meter Incremental Revenue Requirement - effective until the effective date of the next cost of service-based rate order, or October 31, 2017, whichever occurs earlier
I158: Rate Rider for Recovery of Smart Meter Incremental Revenue Requirement - in effect until the effective date of the next cost of service-based rate order
I159: Rate Rider for Recovery of Smart Meter Incremental Revenue Requirement - Non-Interval Metered - in effect until the effective date of the next cost of service-based rate order
I160: Rate Rider for Recovery of Smart Meter Incremental Revenue Requirements - in effect until the effective date of the next cost of service application
I161: Rate Rider for Recovery of Smart Meter Stranded Assets - effective until April 30, 2016
I162: Rate Rider for Recovery of Storm Damage Costs - effective until August 31, 2017
I163: Rate Rider for Recovery of Stranded Assets - effective until April 30, 2016
I164: Rate Rider for Recovery of Stranded Meter Assets - effective July 1, 2012 - April 30, 2016
I165: Rate Rider for Recovery of Stranded Meter Assets – effective until April 30, 2015
I166: Rate Rider for Recovery of Stranded Meter Assets - effective until April 30, 2016
I167: Rate Rider for Recovery of Stranded Meter Assets - effective until April 30, 2017
I168: Rate Rider for Recovery of Stranded Meter Assets - effective until August 31, 2015
I169: Rate Rider for Recovery of Stranded Meter Assets - effective until August 31, 2017
I170: Rate Rider for Recovery of Stranded Meter Assets - effective until December 31, 2014
I171: Rate Rider for Recovery of Stranded Meter Assets - effective until December 31, 2015
I172: Rate Rider for Recovery of Stranded Meter Assets - effective until June 30, 2016
I173: Rate Rider for Recovery of Stranded Meter Assets - effective until March 31, 2016
I174: Rate Rider for Recovery of Stranded Meter Assets - effective until May 31, 2014
I175: Rate Rider for Reversal of Deferral/Variance Account Disposition (2011) - effective until April 30, 2015
I176: Rate Rider for Smart Meter Disposition - effective until April 30, 2016
I177: Rate Rider for Smart Meter Incremental Revenue Requirement - in effect until the effective date of the next cost of service-based rate order
I178: Rate Rider for Smart Metering Entity Charge - effective until October 31, 2018
I179: Rate Rider for Stranded Meter Cost Recovery - effective until April 30, 2017
I180: Rate Rider for Tax Change
I181: Rate Rider for Tax Change - effective until April 30, 2015
I182: Rate Rider for Tax Change (2014) - effective until April 30, 2015
I183: Retail Transmission Rate - Line and Transformation Connection Service Rate
I184: Retail Transmission Rate - Line and Transformation Connection Service Rate - (less than 1,000 kW)
I185: Retail Transmission Rate - Line and Transformation Connection Service Rate - Interval Metered
I186: Retail Transmission Rate - Line and Transformation Connection Service Rate - Interval Metered (1,000 to 4,999 kW)
I187: Retail Transmission Rate - Line and Transformation Connection Service Rate - Interval Metered (less than 1,000 kW)
I188: Retail Transmission Rate - Line and Transformation Connection Service Rate - Interval Metered < 1,000 kW
I189: Retail Transmission Rate - Line and Transformation Connection Service Rate FOR ALL SERVICE AREAS EXCEPT HENSALL
I190: Retail Transmission Rate - Line and Transformation Connection Service Rate - Interval Metered > 1,000 kW
I191: Retail Transmission Rate - Line Connection Service Rate
I192: Retail Transmission Rate - Network Service Rate
I193: Retail Transmission Rate - Network Service Rate - (less than 1,000 kW)
I194: Retail Transmission Rate - Network Service Rate - Interval Metered
I195: Retail Transmission Rate - Network Service Rate - Interval Metered (1,000 to 4,999 kW)
I196: Retail Transmission Rate - Network Service Rate - Interval Metered (less than 1,000 kW)
I197: Retail Transmission Rate - Network Service Rate - Interval Metered > 1,000 kW
I198: Retail Transmission Rate - Transformation Connection Service Rate
I199: Rider for Global Adjustment Sub-Account Disposition (2012) - effective until April 30, 2016 Applicable only for Non-RPP Customers
I200: Rural or Remote Electricity Rate Protection Charge (RRRP)
... 14 more rows

Sheet Sheet1 (hidden)
